Body,Body Name,Date,TransNo,Amount � (Excl VAT),Supplier name,Supplier ID,Expense Area,Expense Type,Expense Code,,
http://opendatacommunities.org/id/london-borough-council/sutton,London Borough of Sutton,08/01/2017,6923061,924,21st Century Legacy Ltd,26497,Peoples Services Directorate,Miscellaneous Training Courses,F304,,
http://opendatacommunities.org/id/london-borough-council/sutton,London Borough of Sutton,20/12/2017,40145226,550,220 Soft Ltd,21849,Peoples Services Directorate,Books,F006,,
http://opendatacommunities.org/id/london-borough-council/sutton,London Borough of Sutton,08/01/2018,6923074,640,A Froley & B Ghoorbin,25732,Chief Executive's Directorate,Provider Contract Payments,F470,,
http://opendatacommunities.org/id/london-borough-council/sutton,London Borough of Sutton,01/12/2017,6922645,"1,546.90",A To Z Property Management Ltd,26729,"Environment, Housing & Regeneration Directorate",Bed and Breakfast Accommodation,G400,,
http://opendatacommunities.org/id/london-borough-council/sutton,London Borough of Sutton,17/01/2018,6923684,868,AA Guesthouses Ltd,29292,Peoples Services Directorate,C.C.A Rent & Utilities,H211,,
http://opendatacommunities.org/id/london-borough-council/sutton,London Borough of Sutton,01/01/2018,1247386,"4,150.00",Abbey Primary School,10011,Peoples Services Directorate,Top-up Funding,G064,,
http://opendatacommunities.org/id/london-borough-council/sutton,London Borough of Sutton,04/01/2018,40146229,"2,280.00",Abbeyfield Kent Society,28532,Peoples Services Directorate,Residential Care - Ext Provider,G310,,
http://opendatacommunities.org/id/london-borough-council/sutton,London Borough of Sutton,26/01/2018,40154519,"2,280.00",Abbeyfield Kent Society,28532,Peoples Services Directorate,Residential Care - Ext Provider,G310,,
http://opendatacommunities.org/id/london-borough-council/sutton,London Borough of Sutton,22/01/2018,1248381,"2,466.54",ABC Pre-School Beddington LLP,28675,Peoples Services Directorate,Non-Maintained Childrens' Nurseries - 2 Year Olds,G404,,
http://opendatacommunities.org/id/london-borough-council/sutton,London Borough of Sutton,22/01/2018,1248440,"3,887.50",ABC Pre-School Beddington LLP,28675,Peoples Services Directorate,Non-Maintained Childrens' Nurseries - 3 & 4 yr olds,G405,,
http://opendatacommunities.org/id/london-borough-council/sutton,London Borough of Sutton,04/12/2017,6921278,"5,070.19",Absolute Care Services Ltd,10021,Peoples Services Directorate,Homecare Core Services,G336,,
http://opendatacommunities.org/id/london-borough-council/sutton,London Borough of Sutton,04/12/2017,6921279,"4,851.00",Absolute Care Services Ltd,10021,Peoples Services Directorate,Homecare Core Services,G336,,
http://opendatacommunities.org/id/london-borough-council/sutton,London Borough of Sutton,11/12/2017,6921753,"4,851.00",Absolute Care Services Ltd,10021,Peoples Services Directorate,Homecare Core Services,G336,,
http://opendatacommunities.org/id/london-borough-council/sutton,London Borough of Sutton,18/12/2017,6922202,"5,766.81",Absolute Care Services Ltd,10021,Peoples Services Directorate,Homecare Core Services,G336,,
http://opendatacommunities.org/id/london-borough-council/sutton,London Borough of Sutton,19/12/2017,6922242,"4,851.00",Absolute Care Services Ltd,10021,Peoples Services Directorate,Homecare Core Services,G336,,
http://opendatacommunities.org/id/london-borough-council/sutton,London Borough of Sutton,25/12/2017,6922527,"4,851.00",Absolute Care Services Ltd,10021,Peoples Services Directorate,Homecare Core Services,G336,,
http://opendatacommunities.org/id/london-borough-council/sutton,London Borough of Sutton,25/12/2017,6922530,"5,766.81",Absolute Care Services Ltd,10021,Peoples Services Directorate,Homecare Core Services,G336,,
http://opendatacommunities.org/id/london-borough-council/sutton,London Borough of Sutton,01/01/2018,6922613,"5,070.19",Absolute Care Services Ltd,10021,Peoples Services Directorate,Homecare Core Services,G336,,
http://opendatacommunities.org/id/london-borough-council/sutton,London Borough of Sutton,01/01/2018,6922614,"4,851.00",Absolute Care Services Ltd,10021,Peoples Services Directorate,Homecare Core Services,G336,,
http://opendatacommunities.org/id/london-borough-council/sutton,London Borough of Sutton,01/01/2018,6922615,"5,766.81",Absolute Care Services Ltd,10021,Peoples Services Directorate,Homecare Core Services,G336,,
http://opendatacommunities.org/id/london-borough-council/sutton,London Borough of Sutton,01/01/2018,6922616,921.69,Absolute Care Services Ltd,10021,Peoples Services Directorate,Homecare Core Services,G336,,
http://opendatacommunities.org/id/london-borough-council/sutton,London Borough of Sutton,01/01/2018,6922750,486.42,Absolute Care Services Ltd,10021,Peoples Services Directorate,Homecare Core Services,G336,,
http://opendatacommunities.org/id/london-borough-council/sutton,London Borough of Sutton,08/01/2018,6923129,"5,070.19",Absolute Care Services Ltd,10021,Peoples Services Directorate,Homecare Core Services,G336,,
http://opendatacommunities.org/id/london-borough-council/sutton,London Borough of Sutton,08/01/2018,6923130,"5,766.81",Absolute Care Services Ltd,10021,Peoples Services Directorate,Homecare Core Services,G336,,
http://opendatacommunities.org/id/london-borough-council/sutton,London Borough of Sutton,08/01/2018,6923132,486.42,Absolute Care Services Ltd,10021,Peoples Services Directorate,Homecare Core Services,G336,,
http://opendatacommunities.org/id/london-borough-council/sutton,London Borough of Sutton,08/01/2018,6923133,921.69,Absolute Care Services Ltd,10021,Peoples Services Directorate,Homecare Core Services,G336,,
http://opendatacommunities.org/id/london-borough-council/sutton,London Borough of Sutton,15/01/2018,6923454,486.42,Absolute Care Services Ltd,10021,Peoples Services Directorate,Homecare Core Services,G336,,
http://opendatacommunities.org/id/london-borough-council/sutton,London Borough of Sutton,15/01/2018,6923455,921.69,Absolute Care Services Ltd,10021,Peoples Services Directorate,Homecare Core Services,G336,,
http://opendatacommunities.org/id/london-borough-council/sutton,London Borough of Sutton,15/01/2018,6923456,"5,766.81",Absolute Care Services Ltd,10021,Peoples Services Directorate,Homecare Core Services,G336,,
http://opendatacommunities.org/id/london-borough-council/sutton,London Borough of Sutton,22/01/2018,6923844,486.42,Absolute Care Services Ltd,10021,Peoples Services Directorate,Homecare Core Services,G336,,
http://opendatacommunities.org/id/london-borough-council/sutton,London Borough of Sutton,22/01/2018,6923845,"5,766.81",Absolute Care Services Ltd,10021,Peoples Services Directorate,Homecare Core Services,G336,,
http://opendatacommunities.org/id/london-borough-council/sutton,London Borough of Sutton,22/01/2018,6923846,921.69,Absolute Care Services Ltd,10021,Peoples Services Directorate,Homecare Core Services,G336,,
http://opendatacommunities.org/id/london-borough-council/sutton,London Borough of Sutton,22/01/2018,6923847,"5,070.19",Absolute Care Services Ltd,10021,Peoples Services Directorate,Homecare Core Services,G336,,
http://opendatacommunities.org/id/london-borough-council/sutton,London Borough of Sutton,29/01/2018,6924257,"5,070.19",Absolute Care Services Ltd,10021,Peoples Services Directorate,Homecare Core Services,G336,,
http://opendatacommunities.org/id/london-borough-council/sutton,London Borough of Sutton,29/01/2018,6924259,"5,766.81",Absolute Care Services Ltd,10021,Peoples Services Directorate,Homecare Core Services,G336,,
http://opendatacommunities.org/id/london-borough-council/sutton,London Borough of Sutton,29/01/2018,6924260,921.69,Absolute Care Services Ltd,10021,Peoples Services Directorate,Homecare Core Services,G336,,
http://opendatacommunities.org/id/london-borough-council/sutton,London Borough of Sutton,29/01/2018,6924261,486.42,Absolute Care Services Ltd,10021,Peoples Services Directorate,Homecare Core Services,G336,,
http://opendatacommunities.org/id/london-borough-council/sutton,London Borough of Sutton,24/12/2017,40147122,589.72,Absolute Care Services Ltd,10021,Peoples Services Directorate,Home Care,G334,,
http://opendatacommunities.org/id/london-borough-council/sutton,London Borough of Sutton,24/12/2017,40147123,596.82,Absolute Care Services Ltd,10021,Peoples Services Directorate,Home Care,G334,,
http://opendatacommunities.org/id/london-borough-council/sutton,London Borough of Sutton,24/12/2017,40147135,547.09,Absolute Care Services Ltd,10021,Peoples Services Directorate,Home Care,G334,,
http://opendatacommunities.org/id/london-borough-council/sutton,London Borough of Sutton,12/11/2017,40147491,447.62,Absolute Care Services Ltd,10021,Peoples Services Directorate,Home Care,G334,,
http://opendatacommunities.org/id/london-borough-council/sutton,London Borough of Sutton,26/11/2017,40147492,447.62,Absolute Care Services Ltd,10021,Peoples Services Directorate,Home Care,G334,,
http://opendatacommunities.org/id/london-borough-council/sutton,London Borough of Sutton,03/12/2017,40147493,447.62,Absolute Care Services Ltd,10021,Peoples Services Directorate,Home Care,G334,,
http://opendatacommunities.org/id/london-borough-council/sutton,London Borough of Sutton,10/12/2017,40147494,447.62,Absolute Care Services Ltd,10021,Peoples Services Directorate,Home Care,G334,,
http://opendatacommunities.org/id/london-borough-council/sutton,London Borough of Sutton,17/12/2017,40147495,447.62,Absolute Care Services Ltd,10021,Peoples Services Directorate,Home Care,G334,,
http://opendatacommunities.org/id/london-borough-council/sutton,London Borough of Sutton,12/11/2017,40147526,596.82,Absolute Care Services Ltd,10021,Peoples Services Directorate,Home Care,G334,,
http://opendatacommunities.org/id/london-borough-council/sutton,London Borough of Sutton,26/11/2017,40147527,596.82,Absolute Care Services Ltd,10021,Peoples Services Directorate,Home Care,G334,,
http://opendatacommunities.org/id/london-borough-council/sutton,London Borough of Sutton,03/12/2017,40147528,596.82,Absolute Care Services Ltd,10021,Peoples Services Directorate,Home Care,G334,,
http://opendatacommunities.org/id/london-borough-council/sutton,London Borough of Sutton,10/12/2017,40147529,596.82,Absolute Care Services Ltd,10021,Peoples Services Directorate,Home Care,G334,,
http://opendatacommunities.org/id/london-borough-council/sutton,London Borough of Sutton,17/12/2017,40147530,596.82,Absolute Care Services Ltd,10021,Peoples Services Directorate,Home Care,G334,,
http://opendatacommunities.org/id/london-borough-council/sutton,London Borough of Sutton,12/11/2017,40147667,447.62,Absolute Care Services Ltd,10021,Peoples Services Directorate,Home Care,G334,,
http://opendatacommunities.org/id/london-borough-council/sutton,London Borough of Sutton,10/12/2017,40147670,447.62,Absolute Care Services Ltd,10021,Peoples Services Directorate,Home Care,G334,,
http://opendatacommunities.org/id/london-borough-council/sutton,London Borough of Sutton,17/12/2017,40147671,447.62,Absolute Care Services Ltd,10021,Peoples Services Directorate,Home Care,G334,,
http://opendatacommunities.org/id/london-borough-council/sutton,London Borough of Sutton,12/11/2017,40147704,497.35,Absolute Care Services Ltd,10021,Peoples Services Directorate,Home Care,G334,,
http://opendatacommunities.org/id/london-borough-council/sutton,London Borough of Sutton,26/11/2017,40147705,497.35,Absolute Care Services Ltd,10021,Peoples Services Directorate,Home Care,G334,,
http://opendatacommunities.org/id/london-borough-council/sutton,London Borough of Sutton,03/12/2017,40147706,490.25,Absolute Care Services Ltd,10021,Peoples Services Directorate,Home Care,G334,,
http://opendatacommunities.org/id/london-borough-council/sutton,London Borough of Sutton,10/12/2017,40147707,490.25,Absolute Care Services Ltd,10021,Peoples Services Directorate,Home Care,G334,,
http://opendatacommunities.org/id/london-borough-council/sutton,London Borough of Sutton,17/12/2017,40147708,490.25,Absolute Care Services Ltd,10021,Peoples Services Directorate,Home Care,G334,,
http://opendatacommunities.org/id/london-borough-council/sutton,London Borough of Sutton,12/11/2017,40147709,447.62,Absolute Care Services Ltd,10021,Peoples Services Directorate,Home Care,G334,,
http://opendatacommunities.org/id/london-borough-council/sutton,London Borough of Sutton,26/11/2017,40147710,447.62,Absolute Care Services Ltd,10021,Peoples Services Directorate,Home Care,G334,,
http://opendatacommunities.org/id/london-borough-council/sutton,London Borough of Sutton,17/12/2017,40147721,447.62,Absolute Care Services Ltd,10021,Peoples Services Directorate,Home Care,G334,,
http://opendatacommunities.org/id/london-borough-council/sutton,London Borough of Sutton,17/12/2017,40147722,696.29,Absolute Care Services Ltd,10021,Peoples Services Directorate,Home Care,G334,,
http://opendatacommunities.org/id/london-borough-council/sutton,London Borough of Sutton,12/11/2017,40147755,447.62,Absolute Care Services Ltd,10021,Peoples Services Directorate,Home Care,G334,,
http://opendatacommunities.org/id/london-borough-council/sutton,London Borough of Sutton,26/11/2017,40147756,447.62,Absolute Care Services Ltd,10021,Peoples Services Directorate,Home Care,G334,,
http://opendatacommunities.org/id/london-borough-council/sutton,London Borough of Sutton,03/12/2017,40147757,447.62,Absolute Care Services Ltd,10021,Peoples Services Directorate,Home Care,G334,,
http://opendatacommunities.org/id/london-borough-council/sutton,London Borough of Sutton,10/12/2017,40147758,447.62,Absolute Care Services Ltd,10021,Peoples Services Directorate,Home Care,G334,,
http://opendatacommunities.org/id/london-borough-council/sutton,London Borough of Sutton,17/12/2017,40147759,447.62,Absolute Care Services Ltd,10021,Peoples Services Directorate,Home Care,G334,,
http://opendatacommunities.org/id/london-borough-council/sutton,London Borough of Sutton,12/11/2017,40147770,497.35,Absolute Care Services Ltd,10021,Peoples Services Directorate,Home Care,G334,,
http://opendatacommunities.org/id/london-borough-council/sutton,London Borough of Sutton,26/11/2017,40147771,497.35,Absolute Care Services Ltd,10021,Peoples Services Directorate,Home Care,G334,,
http://opendatacommunities.org/id/london-borough-council/sutton,London Borough of Sutton,03/12/2017,40147772,497.35,Absolute Care Services Ltd,10021,Peoples Services Directorate,Home Care,G334,,
http://opendatacommunities.org/id/london-borough-council/sutton,London Borough of Sutton,10/12/2017,40147773,497.35,Absolute Care Services Ltd,10021,Peoples Services Directorate,Home Care,G334,,
http://opendatacommunities.org/id/london-borough-council/sutton,London Borough of Sutton,17/12/2017,40147774,497.35,Absolute Care Services Ltd,10021,Peoples Services Directorate,Home Care,G334,,
http://opendatacommunities.org/id/london-borough-council/sutton,London Borough of Sutton,17/12/2017,40149956,426.56,Absolute Care Services Ltd,10021,Peoples Services Directorate,Home Care,G334,,
http://opendatacommunities.org/id/london-borough-council/sutton,London Borough of Sutton,17/12/2017,40149957,433.44,Absolute Care Services Ltd,10021,Peoples Services Directorate,Home Care,G334,,
http://opendatacommunities.org/id/london-borough-council/sutton,London Borough of Sutton,24/12/2017,40149963,462.52,Absolute Care Services Ltd,10021,Peoples Services Directorate,Home Care,G334,,
http://opendatacommunities.org/id/london-borough-council/sutton,London Borough of Sutton,24/12/2017,40149971,500.84,Absolute Care Services Ltd,10021,Peoples Services Directorate,Home Care,G334,,
http://opendatacommunities.org/id/london-borough-council/sutton,London Borough of Sutton,17/12/2017,40149984,433.44,Absolute Care Services Ltd,10021,Peoples Services Directorate,Home Care,G334,,
http://opendatacommunities.org/id/london-borough-council/sutton,London Borough of Sutton,17/12/2017,40150000,468.58,Absolute Care Services Ltd,10021,Peoples Services Directorate,Home Care,G334,,
http://opendatacommunities.org/id/london-borough-council/sutton,London Borough of Sutton,29/10/2017,40150034,447.62,Absolute Care Services Ltd,10021,Peoples Services Directorate,Home Care,G334,,
http://opendatacommunities.org/id/london-borough-council/sutton,London Borough of Sutton,19/11/2017,40150035,447.62,Absolute Care Services Ltd,10021,Peoples Services Directorate,Home Care,G334,,
http://opendatacommunities.org/id/london-borough-council/sutton,London Borough of Sutton,31/12/2017,40150036,433.41,Absolute Care Services Ltd,10021,Peoples Services Directorate,Home Care,G334,,
http://opendatacommunities.org/id/london-borough-council/sutton,London Borough of Sutton,29/10/2017,40150042,525.77,Absolute Care Services Ltd,10021,Peoples Services Directorate,Home Care,G334,,
http://opendatacommunities.org/id/london-borough-council/sutton,London Borough of Sutton,19/11/2017,40150043,497.35,Absolute Care Services Ltd,10021,Peoples Services Directorate,Home Care,G334,,
http://opendatacommunities.org/id/london-borough-council/sutton,London Borough of Sutton,31/12/2017,40150044,497.35,Absolute Care Services Ltd,10021,Peoples Services Directorate,Home Care,G334,,
http://opendatacommunities.org/id/london-borough-council/sutton,London Borough of Sutton,29/10/2017,40150083,447.62,Absolute Care Services Ltd,10021,Peoples Services Directorate,Home Care,G334,,
http://opendatacommunities.org/id/london-borough-council/sutton,London Borough of Sutton,19/11/2017,40150084,447.62,Absolute Care Services Ltd,10021,Peoples Services Directorate,Home Care,G334,,
http://opendatacommunities.org/id/london-borough-council/sutton,London Borough of Sutton,29/10/2017,40150169,596.82,Absolute Care Services Ltd,10021,Peoples Services Directorate,Home Care,G334,,
http://opendatacommunities.org/id/london-borough-council/sutton,London Borough of Sutton,19/11/2017,40150170,596.82,Absolute Care Services Ltd,10021,Peoples Services Directorate,Home Care,G334,,
http://opendatacommunities.org/id/london-borough-council/sutton,London Borough of Sutton,31/12/2017,40150171,575.51,Absolute Care Services Ltd,10021,Peoples Services Directorate,Home Care,G334,,
http://opendatacommunities.org/id/london-borough-council/sutton,London Borough of Sutton,29/10/2017,40150237,447.62,Absolute Care Services Ltd,10021,Peoples Services Directorate,Home Care,G334,,
http://opendatacommunities.org/id/london-borough-council/sutton,London Borough of Sutton,19/11/2017,40150238,447.62,Absolute Care Services Ltd,10021,Peoples Services Directorate,Home Care,G334,,
http://opendatacommunities.org/id/london-borough-council/sutton,London Borough of Sutton,29/10/2017,40150275,476.04,Absolute Care Services Ltd,10021,Peoples Services Directorate,Home Care,G334,,
http://opendatacommunities.org/id/london-borough-council/sutton,London Borough of Sutton,19/11/2017,40150276,497.35,Absolute Care Services Ltd,10021,Peoples Services Directorate,Home Care,G334,,
http://opendatacommunities.org/id/london-borough-council/sutton,London Borough of Sutton,31/12/2017,40150277,476.04,Absolute Care Services Ltd,10021,Peoples Services Directorate,Home Care,G334,,
http://opendatacommunities.org/id/london-borough-council/sutton,London Borough of Sutton,19/11/2017,40150279,447.62,Absolute Care Services Ltd,10021,Peoples Services Directorate,Home Care,G334,,
http://opendatacommunities.org/id/london-borough-council/sutton,London Borough of Sutton,31/12/2017,40150289,447.62,Absolute Care Services Ltd,10021,Peoples Services Directorate,Home Care,G334,,
http://opendatacommunities.org/id/london-borough-council/sutton,London Borough of Sutton,31/12/2017,40150290,696.29,Absolute Care Services Ltd,10021,Peoples Services Directorate,Home Care,G334,,
http://opendatacommunities.org/id/london-borough-council/sutton,London Borough of Sutton,24/12/2017,40152723,447.62,Absolute Care Services Ltd,10021,Peoples Services Directorate,Home Care,G334,,
http://opendatacommunities.org/id/london-borough-council/sutton,London Borough of Sutton,07/01/2018,40152724,447.62,Absolute Care Services Ltd,10021,Peoples Services Directorate,Home Care,G334,,
http://opendatacommunities.org/id/london-borough-council/sutton,London Borough of Sutton,24/12/2017,40152755,596.82,Absolute Care Services Ltd,10021,Peoples Services Directorate,Home Care,G334,,
http://opendatacommunities.org/id/london-borough-council/sutton,London Borough of Sutton,07/01/2018,40152756,596.82,Absolute Care Services Ltd,10021,Peoples Services Directorate,Home Care,G334,,
http://opendatacommunities.org/id/london-borough-council/sutton,London Borough of Sutton,31/12/2017,40152774,468.58,Absolute Care Services Ltd,10021,Peoples Services Directorate,Home Care,G334,,
http://opendatacommunities.org/id/london-borough-council/sutton,London Borough of Sutton,07/01/2018,40152775,468.58,Absolute Care Services Ltd,10021,Peoples Services Directorate,Home Care,G334,,
http://opendatacommunities.org/id/london-borough-council/sutton,London Borough of Sutton,24/12/2017,40152796,447.62,Absolute Care Services Ltd,10021,Peoples Services Directorate,Home Care,G334,,
http://opendatacommunities.org/id/london-borough-council/sutton,London Borough of Sutton,07/01/2018,40152797,447.62,Absolute Care Services Ltd,10021,Peoples Services Directorate,Home Care,G334,,
http://opendatacommunities.org/id/london-borough-council/sutton,London Borough of Sutton,24/12/2017,40152832,490.25,Absolute Care Services Ltd,10021,Peoples Services Directorate,Home Care,G334,,
http://opendatacommunities.org/id/london-borough-council/sutton,London Borough of Sutton,07/01/2018,40152833,490.25,Absolute Care Services Ltd,10021,Peoples Services Directorate,Home Care,G334,,
http://opendatacommunities.org/id/london-borough-council/sutton,London Borough of Sutton,24/12/2017,40152842,447.62,Absolute Care Services Ltd,10021,Peoples Services Directorate,Home Care,G334,,
http://opendatacommunities.org/id/london-borough-council/sutton,London Borough of Sutton,07/01/2018,40152843,447.62,Absolute Care Services Ltd,10021,Peoples Services Directorate,Home Care,G334,,
http://opendatacommunities.org/id/london-borough-council/sutton,London Borough of Sutton,24/12/2017,40152844,696.29,Absolute Care Services Ltd,10021,Peoples Services Directorate,Home Care,G334,,
http://opendatacommunities.org/id/london-borough-council/sutton,London Borough of Sutton,07/01/2018,40152845,696.29,Absolute Care Services Ltd,10021,Peoples Services Directorate,Home Care,G334,,
http://opendatacommunities.org/id/london-borough-council/sutton,London Borough of Sutton,24/12/2017,40152864,447.62,Absolute Care Services Ltd,10021,Peoples Services Directorate,Home Care,G334,,
http://opendatacommunities.org/id/london-borough-council/sutton,London Borough of Sutton,07/01/2018,40152865,447.62,Absolute Care Services Ltd,10021,Peoples Services Directorate,Home Care,G334,,
http://opendatacommunities.org/id/london-borough-council/sutton,London Borough of Sutton,24/12/2017,40152870,497.35,Absolute Care Services Ltd,10021,Peoples Services Directorate,Home Care,G334,,
http://opendatacommunities.org/id/london-borough-council/sutton,London Borough of Sutton,07/01/2018,40152871,497.35,Absolute Care Services Ltd,10021,Peoples Services Directorate,Home Care,G334,,
http://opendatacommunities.org/id/london-borough-council/sutton,London Borough of Sutton,31/12/2017,40152880,426.56,Absolute Care Services Ltd,10021,Peoples Services Directorate,Home Care,G334,,
http://opendatacommunities.org/id/london-borough-council/sutton,London Borough of Sutton,07/01/2018,40152881,426.56,Absolute Care Services Ltd,10021,Peoples Services Directorate,Home Care,G334,,
http://opendatacommunities.org/id/london-borough-council/sutton,London Borough of Sutton,31/12/2017,40152882,433.44,Absolute Care Services Ltd,10021,Peoples Services Directorate,Home Care,G334,,
http://opendatacommunities.org/id/london-borough-council/sutton,London Borough of Sutton,07/01/2018,40152883,433.44,Absolute Care Services Ltd,10021,Peoples Services Directorate,Home Care,G334,,
http://opendatacommunities.org/id/london-borough-council/sutton,London Borough of Sutton,24/12/2017,40152918,"2,415.00",Absolute Care Services Ltd,10021,Peoples Services Directorate,Home Care,G334,,
http://opendatacommunities.org/id/london-borough-council/sutton,London Borough of Sutton,31/12/2017,40152943,426.56,Absolute Care Services Ltd,10021,Peoples Services Directorate,Home Care,G334,,
http://opendatacommunities.org/id/london-borough-council/sutton,London Borough of Sutton,07/01/2018,40152944,433.44,Absolute Care Services Ltd,10021,Peoples Services Directorate,Home Care,G334,,
http://opendatacommunities.org/id/london-borough-council/sutton,London Borough of Sutton,31/12/2017,40152993,583.26,Absolute Care Services Ltd,10021,Peoples Services Directorate,Home Care,G334,,
http://opendatacommunities.org/id/london-borough-council/sutton,London Borough of Sutton,31/12/2017,40152994,579.06,Absolute Care Services Ltd,10021,Peoples Services Directorate,Home Care,G334,,
http://opendatacommunities.org/id/london-borough-council/sutton,London Borough of Sutton,31/12/2017,40153007,518.67,Absolute Care Services Ltd,10021,Peoples Services Directorate,Home Care,G334,,
http://opendatacommunities.org/id/london-borough-council/sutton,London Borough of Sutton,07/01/2018,40153056,427.83,Absolute Care Services Ltd,10021,Peoples Services Directorate,Home Care,G334,,
http://opendatacommunities.org/id/london-borough-council/sutton,London Borough of Sutton,07/01/2018,40153075,500.84,Absolute Care Services Ltd,10021,Peoples Services Directorate,Home Care,G334,,
http://opendatacommunities.org/id/london-borough-council/sutton,London Borough of Sutton,29/10/2017,40154805,583.93,Absolute Care Services Ltd,10021,Peoples Services Directorate,Home Care,G334,,
http://opendatacommunities.org/id/london-borough-council/sutton,London Borough of Sutton,05/11/2017,40154806,583.93,Absolute Care Services Ltd,10021,Peoples Services Directorate,Home Care,G334,,
http://opendatacommunities.org/id/london-borough-council/sutton,London Borough of Sutton,29/10/2017,40154822,500.84,Absolute Care Services Ltd,10021,Peoples Services Directorate,Home Care,G334,,
http://opendatacommunities.org/id/london-borough-council/sutton,London Borough of Sutton,05/11/2017,40154823,500.84,Absolute Care Services Ltd,10021,Peoples Services Directorate,Home Care,G334,,
http://opendatacommunities.org/id/london-borough-council/sutton,London Borough of Sutton,10/12/2017,40154851,596.82,Absolute Care Services Ltd,10021,Peoples Services Directorate,Home Care,G334,,
http://opendatacommunities.org/id/london-borough-council/sutton,London Borough of Sutton,17/12/2017,40154852,596.82,Absolute Care Services Ltd,10021,Peoples Services Directorate,Home Care,G334,,
http://opendatacommunities.org/id/london-borough-council/sutton,London Borough of Sutton,10/12/2017,40154853,596.82,Absolute Care Services Ltd,10021,Peoples Services Directorate,Home Care,G334,,
http://opendatacommunities.org/id/london-borough-council/sutton,London Borough of Sutton,17/12/2017,40154854,603.93,Absolute Care Services Ltd,10021,Peoples Services Directorate,Home Care,G334,,
http://opendatacommunities.org/id/london-borough-council/sutton,London Borough of Sutton,10/12/2017,40154877,547.09,Absolute Care Services Ltd,10021,Peoples Services Directorate,Home Care,G334,,
http://opendatacommunities.org/id/london-borough-council/sutton,London Borough of Sutton,17/12/2017,40154878,547.09,Absolute Care Services Ltd,10021,Peoples Services Directorate,Home Care,G334,,
http://opendatacommunities.org/id/london-borough-council/sutton,London Borough of Sutton,17/12/2017,40154894,426.3,Absolute Care Services Ltd,10021,Peoples Services Directorate,Home Care,G334,,
http://opendatacommunities.org/id/london-borough-council/sutton,London Borough of Sutton,03/12/2017,40155007,468.58,Absolute Care Services Ltd,10021,Peoples Services Directorate,Home Care,G334,,
http://opendatacommunities.org/id/london-borough-council/sutton,London Borough of Sutton,10/12/2017,40155008,468.58,Absolute Care Services Ltd,10021,Peoples Services Directorate,Home Care,G334,,
http://opendatacommunities.org/id/london-borough-council/sutton,London Borough of Sutton,24/12/2017,40155009,468.58,Absolute Care Services Ltd,10021,Peoples Services Directorate,Home Care,G334,,
http://opendatacommunities.org/id/london-borough-council/sutton,London Borough of Sutton,03/12/2017,40155059,426.56,Absolute Care Services Ltd,10021,Peoples Services Directorate,Home Care,G334,,
http://opendatacommunities.org/id/london-borough-council/sutton,London Borough of Sutton,10/12/2017,40155060,426.56,Absolute Care Services Ltd,10021,Peoples Services Directorate,Home Care,G334,,
http://opendatacommunities.org/id/london-borough-council/sutton,London Borough of Sutton,24/12/2017,40155061,426.56,Absolute Care Services Ltd,10021,Peoples Services Directorate,Home Care,G334,,
http://opendatacommunities.org/id/london-borough-council/sutton,London Borough of Sutton,03/12/2017,40155062,433.44,Absolute Care Services Ltd,10021,Peoples Services Directorate,Home Care,G334,,
http://opendatacommunities.org/id/london-borough-council/sutton,London Borough of Sutton,10/12/2017,40155063,433.44,Absolute Care Services Ltd,10021,Peoples Services Directorate,Home Care,G334,,
http://opendatacommunities.org/id/london-borough-council/sutton,London Borough of Sutton,24/12/2017,40155064,433.44,Absolute Care Services Ltd,10021,Peoples Services Directorate,Home Care,G334,,
http://opendatacommunities.org/id/london-borough-council/sutton,London Borough of Sutton,21/01/2018,40155078,601.27,Absolute Care Services Ltd,10021,Peoples Services Directorate,Home Care,G334,,
http://opendatacommunities.org/id/london-borough-council/sutton,London Borough of Sutton,21/01/2018,40155128,500.84,Absolute Care Services Ltd,10021,Peoples Services Directorate,Home Care,G334,,
http://opendatacommunities.org/id/london-borough-council/sutton,London Borough of Sutton,03/12/2017,40155144,460.16,Absolute Care Services Ltd,10021,Peoples Services Directorate,Home Care,G334,,
http://opendatacommunities.org/id/london-borough-council/sutton,London Borough of Sutton,10/12/2017,40155145,433.44,Absolute Care Services Ltd,10021,Peoples Services Directorate,Home Care,G334,,
http://opendatacommunities.org/id/london-borough-council/sutton,London Borough of Sutton,24/12/2017,40155146,433.44,Absolute Care Services Ltd,10021,Peoples Services Directorate,Home Care,G334,,
http://opendatacommunities.org/id/london-borough-council/sutton,London Borough of Sutton,05/11/2017,40155244,468.58,Absolute Care Services Ltd,10021,Peoples Services Directorate,Home Care,G334,,
http://opendatacommunities.org/id/london-borough-council/sutton,London Borough of Sutton,05/11/2017,40155285,426.56,Absolute Care Services Ltd,10021,Peoples Services Directorate,Home Care,G334,,
http://opendatacommunities.org/id/london-borough-council/sutton,London Borough of Sutton,05/11/2017,40155286,433.44,Absolute Care Services Ltd,10021,Peoples Services Directorate,Home Care,G334,,
http://opendatacommunities.org/id/london-borough-council/sutton,London Borough of Sutton,05/11/2017,40155309,433.44,Absolute Care Services Ltd,10021,Peoples Services Directorate,Home Care,G334,,
http://opendatacommunities.org/id/london-borough-council/sutton,London Borough of Sutton,12/11/2017,40155404,583.93,Absolute Care Services Ltd,10021,Peoples Services Directorate,Home Care,G334,,
http://opendatacommunities.org/id/london-borough-council/sutton,London Borough of Sutton,19/11/2017,40155405,583.93,Absolute Care Services Ltd,10021,Peoples Services Directorate,Home Care,G334,,
http://opendatacommunities.org/id/london-borough-council/sutton,London Borough of Sutton,26/11/2017,40155406,583.93,Absolute Care Services Ltd,10021,Peoples Services Directorate,Home Care,G334,,
http://opendatacommunities.org/id/london-borough-council/sutton,London Borough of Sutton,03/12/2017,40155407,583.93,Absolute Care Services Ltd,10021,Peoples Services Directorate,Home Care,G334,,
http://opendatacommunities.org/id/london-borough-council/sutton,London Borough of Sutton,10/12/2017,40155408,583.93,Absolute Care Services Ltd,10021,Peoples Services Directorate,Home Care,G334,,
http://opendatacommunities.org/id/london-borough-council/sutton,London Borough of Sutton,17/12/2017,40155409,583.93,Absolute Care Services Ltd,10021,Peoples Services Directorate,Home Care,G334,,
http://opendatacommunities.org/id/london-borough-council/sutton,London Borough of Sutton,12/11/2017,40155480,500.84,Absolute Care Services Ltd,10021,Peoples Services Directorate,Home Care,G334,,
http://opendatacommunities.org/id/london-borough-council/sutton,London Borough of Sutton,19/11/2017,40155481,500.84,Absolute Care Services Ltd,10021,Peoples Services Directorate,Home Care,G334,,
http://opendatacommunities.org/id/london-borough-council/sutton,London Borough of Sutton,26/11/2017,40155482,500.84,Absolute Care Services Ltd,10021,Peoples Services Directorate,Home Care,G334,,
http://opendatacommunities.org/id/london-borough-council/sutton,London Borough of Sutton,03/12/2017,40155483,500.84,Absolute Care Services Ltd,10021,Peoples Services Directorate,Home Care,G334,,
http://opendatacommunities.org/id/london-borough-council/sutton,London Borough of Sutton,10/12/2017,40155484,500.84,Absolute Care Services Ltd,10021,Peoples Services Directorate,Home Care,G334,,
http://opendatacommunities.org/id/london-borough-council/sutton,London Borough of Sutton,17/12/2017,40155485,500.84,Absolute Care Services Ltd,10021,Peoples Services Directorate,Home Care,G334,,
http://opendatacommunities.org/id/london-borough-council/sutton,London Borough of Sutton,21/01/2018,40156052,589.72,Absolute Care Services Ltd,10021,Peoples Services Directorate,Home Care,G334,,
http://opendatacommunities.org/id/london-borough-council/sutton,London Borough of Sutton,21/01/2018,40156053,596.82,Absolute Care Services Ltd,10021,Peoples Services Directorate,Home Care,G334,,
http://opendatacommunities.org/id/london-borough-council/sutton,London Borough of Sutton,21/01/2018,40156088,426.3,Absolute Care Services Ltd,10021,Peoples Services Directorate,Home Care,G334,,
http://opendatacommunities.org/id/london-borough-council/sutton,London Borough of Sutton,21/01/2018,40156423,468.58,Absolute Care Services Ltd,10021,Peoples Services Directorate,Home Care,G334,,
http://opendatacommunities.org/id/london-borough-council/sutton,London Borough of Sutton,21/01/2018,40156534,426.56,Absolute Care Services Ltd,10021,Peoples Services Directorate,Home Care,G334,,
http://opendatacommunities.org/id/london-borough-council/sutton,London Borough of Sutton,21/01/2018,40156535,433.44,Absolute Care Services Ltd,10021,Peoples Services Directorate,Home Care,G334,,
http://opendatacommunities.org/id/london-borough-council/sutton,London Borough of Sutton,31/12/2017,1247818,988,Access Mobility Transport Ltd,27456,Peoples Services Directorate,Hired Peoples Transport (Children),E072,,
http://opendatacommunities.org/id/london-borough-council/sutton,London Borough of Sutton,31/12/2017,1247819,"2,368.00",Access Mobility Transport Ltd,27456,Peoples Services Directorate,Hired Peoples Transport (Children),E072,,
http://opendatacommunities.org/id/london-borough-council/sutton,London Borough of Sutton,20/12/2017,6924086,"5,145.00",Accessible Solutions,99815,"Environment, Housing & Regeneration Directorate",Grants -Made,Y610,,
http://opendatacommunities.org/id/london-borough-council/sutton,London Borough of Sutton,05/01/2018,1248612,"5,178.50",Achieving For Children Limited,28009,Peoples Services Directorate,Independent Schools,G325,,
http://opendatacommunities.org/id/london-borough-council/sutton,London Borough of Sutton,01/12/2017,40146713,"10,407.01",Acorn Homes UK Ltd,25726,Peoples Services Directorate,Residential Care-Children,G330,,
http://opendatacommunities.org/id/london-borough-council/sutton,London Borough of Sutton,01/12/2017,40146714,"10,850.00",Acorn Homes UK Ltd,25726,Peoples Services Directorate,Residential Care-Children,G330,,
http://opendatacommunities.org/id/london-borough-council/sutton,London Borough of Sutton,01/12/2017,40146715,"4,530.03",Acorn Homes UK Ltd,25726,Peoples Services Directorate,Approved Lodgings,H323,,
http://opendatacommunities.org/id/london-borough-council/sutton,London Borough of Sutton,04/01/2018,40146205,"2,903.20",Acorn Lodge,15804,Peoples Services Directorate,Residential Care - Ext Provider,G310,,
http://opendatacommunities.org/id/london-borough-council/sutton,London Borough of Sutton,26/01/2018,40154252,"2,903.20",Acorn Lodge,15804,Peoples Services Directorate,Residential Care - Ext Provider,G310,,
http://opendatacommunities.org/id/london-borough-council/sutton,London Borough of Sutton,04/01/2018,40146532,"3,042.36",Acorn Residential Home,15828,Peoples Services Directorate,Residential Care - Ext Provider,G310,,
http://opendatacommunities.org/id/london-borough-council/sutton,London Borough of Sutton,26/01/2018,40154593,"3,042.36",Acorn Residential Home,15828,Peoples Services Directorate,Residential Care - Ext Provider,G310,,
http://opendatacommunities.org/id/london-borough-council/sutton,London Borough of Sutton,04/01/2018,6922886,"1,200.00",Active Prospects,13617,Peoples Services Directorate,Supported Living - Ext Provider,G306,,
http://opendatacommunities.org/id/london-borough-council/sutton,London Borough of Sutton,10/01/2018,6923214,"1,200.00",Active Prospects,13617,Peoples Services Directorate,Supported Living - Ext Provider,G306,,
http://opendatacommunities.org/id/london-borough-council/sutton,London Borough of Sutton,16/01/2018,6923676,"1,200.00",Active Prospects,13617,Peoples Services Directorate,Supported Living - Ext Provider,G306,,
http://opendatacommunities.org/id/london-borough-council/sutton,London Borough of Sutton,03/01/2018,1247378,"107,436.64",Adecco Uk Ltd,10059,Resources Directorate,Suspense/Holding Accounts,X550,,
http://opendatacommunities.org/id/london-borough-council/sutton,London Borough of Sutton,10/01/2018,1248145,"156,069.30",Adecco Uk Ltd,10059,Resources Directorate,Suspense/Holding Accounts,X550,,
http://opendatacommunities.org/id/london-borough-council/sutton,London Borough of Sutton,17/01/2018,1248335,"193,903.14",Adecco Uk Ltd,10059,Resources Directorate,Suspense/Holding Accounts,X550,,
http://opendatacommunities.org/id/london-borough-council/sutton,London Borough of Sutton,24/01/2018,1248665,"170,036.94",Adecco Uk Ltd,10059,Resources Directorate,Suspense/Holding Accounts,X550,,
http://opendatacommunities.org/id/london-borough-council/sutton,London Borough of Sutton,31/01/2018,1249233,"173,686.55",Adecco Uk Ltd,10059,Resources Directorate,Suspense/Holding Accounts,X550,,
http://opendatacommunities.org/id/london-borough-council/sutton,London Borough of Sutton,01/11/2017,6923549,"3,334.00",Adt Fire & Security Plc,10063,Peoples Services Directorate,Security Systems - SCH,D880,,
http://opendatacommunities.org/id/london-borough-council/sutton,London Borough of Sutton,31/12/2017,6923163,506.99,Advanced Demand Side Management Ltd,26989,Resources Directorate,Water - Metered,D690,,
http://opendatacommunities.org/id/london-borough-council/sutton,London Borough of Sutton,19/12/2017,6922957,830.67,Advanced Health & Care,23939,Peoples Services Directorate,Telephones - Other Expenses,F373,,
http://opendatacommunities.org/id/london-borough-council/sutton,London Borough of Sutton,11/01/2018,6923312,"15,833.33",Advocacy For All,24795,Peoples Services Directorate,Provider Contract Payments,F470,,
http://opendatacommunities.org/id/london-borough-council/sutton,London Borough of Sutton,11/01/2018,6923313,"4,166.66",Advocacy For All,24795,Peoples Services Directorate,Provider Contract Payments,F470,,
http://opendatacommunities.org/id/london-borough-council/sutton,London Borough of Sutton,23/06/2017,6924158,"1,750.00",Age UK Sutton,10092,"Environment, Housing & Regeneration Directorate",Other Equipment - Purchase,F015,,
http://opendatacommunities.org/id/london-borough-council/sutton,London Borough of Sutton,04/01/2018,40146350,"7,511.00",Aims Care Partnership (Leighton House Ltd),12628,Peoples Services Directorate,Residential Care - Ext Provider,G310,,
http://opendatacommunities.org/id/london-borough-council/sutton,London Borough of Sutton,26/01/2018,40154642,"7,511.00",Aims Care Partnership (Leighton House Ltd),12628,Peoples Services Directorate,Residential Care - Ext Provider,G310,,
http://opendatacommunities.org/id/london-borough-council/sutton,London Borough of Sutton,04/01/2018,40146342,"5,278.00",Aitch Care Homes,20446,Peoples Services Directorate,Residential Care - Ext Provider,G310,,
http://opendatacommunities.org/id/london-borough-council/sutton,London Borough of Sutton,04/01/2018,40146559,"8,400.16",Aitch Care Homes,20446,Peoples Services Directorate,Residential Care - Ext Provider,G310,,
http://opendatacommunities.org/id/london-borough-council/sutton,London Borough of Sutton,26/01/2018,40154394,"8,400.16",Aitch Care Homes,20446,Peoples Services Directorate,Residential Care - Ext Provider,G310,,
http://opendatacommunities.org/id/london-borough-council/sutton,London Borough of Sutton,26/01/2018,40154634,"5,278.00",Aitch Care Homes,20446,Peoples Services Directorate,Residential Care - Ext Provider,G310,,
http://opendatacommunities.org/id/london-borough-council/sutton,London Borough of Sutton,01/01/2018,6922668,666,Alarm,10132,Resources Directorate,Subscriptions - General,F450,,
http://opendatacommunities.org/id/london-borough-council/sutton,London Borough of Sutton,26/01/2018,6924206,"1,250.00",Aligned Assets Ltd,30095,Resources Directorate,IT Equipment - Repair and Maintenance,F382,,
http://opendatacommunities.org/id/london-borough-council/sutton,London Borough of Sutton,26/01/2018,6924207,500,Aligned Assets Ltd,30095,Resources Directorate,IT Licences,F385,,
http://opendatacommunities.org/id/london-borough-council/sutton,London Borough of Sutton,26/01/2018,6924208,500,Aligned Assets Ltd,30095,Resources Directorate,IT Licences,F385,,
http://opendatacommunities.org/id/london-borough-council/sutton,London Borough of Sutton,26/01/2018,6924209,"1,250.00",Aligned Assets Ltd,30095,Resources Directorate,IT Equipment - Repair and Maintenance,F382,,
http://opendatacommunities.org/id/london-borough-council/sutton,London Borough of Sutton,01/01/2018,1247387,"11,227.50",All Saints Benhilton C Of E,10115,Peoples Services Directorate,Top-up Funding,G064,,
http://opendatacommunities.org/id/london-borough-council/sutton,London Borough of Sutton,01/01/2018,1247388,"10,937.50",All Saints Carshalton Primary School,16772,Peoples Services Directorate,Top-up Funding,G064,,
http://opendatacommunities.org/id/london-borough-council/sutton,London Borough of Sutton,02/01/2018,6922686,"1,750.00",Allen Lane Ltd,18334,Resources Directorate,Agency Staff - Other,A301,,
http://opendatacommunities.org/id/london-borough-council/sutton,London Borough of Sutton,03/01/2018,6922715,970.59,Allen Lane Ltd,18334,Resources Directorate,Agency Staff - Other,A301,,
http://opendatacommunities.org/id/london-borough-council/sutton,London Borough of Sutton,03/01/2018,6922716,"1,750.00",Allen Lane Ltd,18334,Resources Directorate,Agency Staff - Other,A301,,
http://opendatacommunities.org/id/london-borough-council/sutton,London Borough of Sutton,16/01/2018,6923566,"1,617.65",Allen Lane Ltd,18334,Resources Directorate,Agency Staff - Other,A301,,
http://opendatacommunities.org/id/london-borough-council/sutton,London Borough of Sutton,23/01/2018,6923999,"1,294.12",Allen Lane Ltd,18334,Resources Directorate,Agency Staff - Other,A301,,
http://opendatacommunities.org/id/london-borough-council/sutton,London Borough of Sutton,06/12/2017,6924149,"1,575.00",Allen Lane Ltd,18334,Resources Directorate,Agency Staff - Other,A301,,
http://opendatacommunities.org/id/london-borough-council/sutton,London Borough of Sutton,04/01/2018,40146295,"3,625.00",Alliance Care (Dale Homes) Ltd T/A Uplands Care Home,26835,Peoples Services Directorate,Nursing Care - Ext Provider,G311,,
http://opendatacommunities.org/id/london-borough-council/sutton,London Borough of Sutton,26/01/2018,40154424,"3,089.28",Alliance Care (Dale Homes) Ltd T/A Uplands Care Home,26835,Peoples Services Directorate,Nursing Care - Ext Provider,G311,,
http://opendatacommunities.org/id/london-borough-council/sutton,London Borough of Sutton,04/01/2018,40146525,"6,234.48",Allied Care (Mhs) Ltd,10145,Peoples Services Directorate,Residential Care - Ext Provider,G310,,
http://opendatacommunities.org/id/london-borough-council/sutton,London Borough of Sutton,26/01/2018,40154587,"6,234.48",Allied Care (Mhs) Ltd,10145,Peoples Services Directorate,Residential Care - Ext Provider,G310,,
http://opendatacommunities.org/id/london-borough-council/sutton,London Borough of Sutton,01/01/2018,6922717,"1,554.00",Allstar Business Solutions,24482,"Environment, Housing & Regeneration Directorate",Fuel Etc,E030,,
http://opendatacommunities.org/id/london-borough-council/sutton,London Borough of Sutton,04/01/2018,40146268,"6,370.00",Allswell Care Services Ltd,20761,Peoples Services Directorate,Residential Care - Ext Provider,G310,,
http://opendatacommunities.org/id/london-borough-council/sutton,London Borough of Sutton,04/01/2018,40146386,"3,480.00",Allswell Care Services Ltd,20761,Peoples Services Directorate,Residential Care - Ext Provider,G310,,
http://opendatacommunities.org/id/london-borough-council/sutton,London Borough of Sutton,04/01/2018,40146515,"4,400.00",Allswell Care Services Ltd,20761,Peoples Services Directorate,Residential Care - Ext Provider,G310,,
http://opendatacommunities.org/id/london-borough-council/sutton,London Borough of Sutton,26/01/2018,40154286,"3,480.00",Allswell Care Services Ltd,20761,Peoples Services Directorate,Residential Care - Ext Provider,G310,,
http://opendatacommunities.org/id/london-borough-council/sutton,London Borough of Sutton,26/01/2018,40154576,"4,400.00",Allswell Care Services Ltd,20761,Peoples Services Directorate,Residential Care - Ext Provider,G310,,
http://opendatacommunities.org/id/london-borough-council/sutton,London Borough of Sutton,26/01/2018,40154629,"6,370.00",Allswell Care Services Ltd,20761,Peoples Services Directorate,Residential Care - Ext Provider,G310,,
http://opendatacommunities.org/id/london-borough-council/sutton,London Borough of Sutton,22/01/2018,1248535,655.5,Amanda Harris,27152,Peoples Services Directorate,Non-Maintained Childrens' Nurseries - 3 & 4 yr olds,G405,,
http://opendatacommunities.org/id/london-borough-council/sutton,London Borough of Sutton,22/01/2018,1248548,"1,350.00",Amanda Marvell,29724,Peoples Services Directorate,Non-Maintained Childrens' Nurseries - 3 & 4 yr olds,G405,,
http://opendatacommunities.org/id/london-borough-council/sutton,London Borough of Sutton,05/12/2017,40153394,"13,285.67",Amegreen Childrens Services,27145,Peoples Services Directorate,Residential Care-Children,G330,,
http://opendatacommunities.org/id/london-borough-council/sutton,London Borough of Sutton,29/12/2017,6923819,"16,832.00",Ameo Professional Services Ltd,27868,Chief Executive's Directorate,Fees - Consultants (Ad Hoc),F283,,
http://opendatacommunities.org/id/london-borough-council/sutton,London Borough of Sutton,29/12/2017,6923822,"28,302.04",Ameo Professional Services Ltd,27868,Resources Directorate,Internal Fees - Project Management,Y180,,
http://opendatacommunities.org/id/london-borough-council/sutton,London Borough of Sutton,23/06/2017,40146149,504.46,Ana Homecare Ltd,29136,Peoples Services Directorate,Home Care,G334,,
http://opendatacommunities.org/id/london-borough-council/sutton,London Borough of Sutton,09/06/2017,40146150,504.44,Ana Homecare Ltd,29136,Peoples Services Directorate,Home Care,G334,,
http://opendatacommunities.org/id/london-borough-council/sutton,London Borough of Sutton,20/01/2017,40146162,468.2,Ana Homecare Ltd,29136,Peoples Services Directorate,Home Care,G334,,
http://opendatacommunities.org/id/london-borough-council/sutton,London Borough of Sutton,17/03/2017,40146171,534.35,Ana Homecare Ltd,29136,Peoples Services Directorate,Home Care,G334,,
http://opendatacommunities.org/id/london-borough-council/sutton,London Borough of Sutton,14/04/2017,40146172,500.23,Ana Homecare Ltd,29136,Peoples Services Directorate,Home Care,G334,,
http://opendatacommunities.org/id/london-borough-council/sutton,London Borough of Sutton,25/05/2017,40146175,449.86,Ana Homecare Ltd,29136,Peoples Services Directorate,Home Care,G334,,
http://opendatacommunities.org/id/london-borough-council/sutton,London Borough of Sutton,09/06/2017,40146176,445.12,Ana Homecare Ltd,29136,Peoples Services Directorate,Home Care,G334,,
http://opendatacommunities.org/id/london-borough-council/sutton,London Borough of Sutton,23/06/2017,40146177,450.63,Ana Homecare Ltd,29136,Peoples Services Directorate,Home Care,G334,,
http://opendatacommunities.org/id/london-borough-council/sutton,London Borough of Sutton,23/06/2017,40146985,498.22,Ana Homecare Ltd,29136,Peoples Services Directorate,Home Care,G334,,
http://opendatacommunities.org/id/london-borough-council/sutton,London Borough of Sutton,15/02/2017,40146998,520.96,Ana Homecare Ltd,29136,Peoples Services Directorate,Home Care,G334,,
http://opendatacommunities.org/id/london-borough-council/sutton,London Borough of Sutton,17/03/2017,40147000,509.94,Ana Homecare Ltd,29136,Peoples Services Directorate,Home Care,G334,,
http://opendatacommunities.org/id/london-borough-council/sutton,London Borough of Sutton,14/04/2017,40147001,516.94,Ana Homecare Ltd,29136,Peoples Services Directorate,Home Care,G334,,
http://opendatacommunities.org/id/london-borough-council/sutton,London Borough of Sutton,25/05/2017,40147002,520.96,Ana Homecare Ltd,29136,Peoples Services Directorate,Home Care,G334,,
http://opendatacommunities.org/id/london-borough-council/sutton,London Borough of Sutton,22/12/2017,40146700,"14,809.14",Anderida Adolescent Care Ltd,26195,Peoples Services Directorate,Residential Care-Children,G330,,
http://opendatacommunities.org/id/london-borough-council/sutton,London Borough of Sutton,19/01/2018,6923809,"1,200.00",Andrew Lettings,99898,"Environment, Housing & Regeneration Directorate",Depositors,X460,,
http://opendatacommunities.org/id/london-borough-council/sutton,London Borough of Sutton,07/01/2018,6922960,"1,900.00",Andy Stewart,26808,"Environment, Housing & Regeneration Directorate",General Office Expenses,F235,,
http://opendatacommunities.org/id/london-borough-council/sutton,London Borough of Sutton,30/01/2018,6924325,950,Andy Stewart,26808,"Environment, Housing & Regeneration Directorate",General Office Expenses,F235,,
http://opendatacommunities.org/id/london-borough-council/sutton,London Borough of Sutton,01/01/2018,6922718,"2,360.00",Angel Lettings,18658,"Environment, Housing & Regeneration Directorate",General Office Expenses,F235,,
http://opendatacommunities.org/id/london-borough-council/sutton,London Borough of Sutton,22/01/2018,1248526,900,Angela Ives,29706,Peoples Services Directorate,Non-Maintained Childrens' Nurseries - 3 & 4 yr olds,G405,,
http://opendatacommunities.org/id/london-borough-council/sutton,London Borough of Sutton,31/12/2017,6923421,"1,400.00",Aoc Archaeology Group,28515,Peoples Services Directorate,"Surveys, Trial Holes Etc",Y200,,
http://opendatacommunities.org/id/london-borough-council/sutton,London Borough of Sutton,31/12/2017,6922879,"6,010.87",Apetito Ltd,10206,Peoples Services Directorate,Provisions - General,F150,,
http://opendatacommunities.org/id/london-borough-council/sutton,London Borough of Sutton,31/12/2017,6924233,"10,125.30",Apex Housing Solutions Ltd,29950,"Environment, Housing & Regeneration Directorate",Bed and Breakfast Accommodation,G400,,
http://opendatacommunities.org/id/london-borough-council/sutton,London Borough of Sutton,03/01/2018,6923173,"9,529.93",Architype Ltd,25419,Peoples Services Directorate,External Fees  - Architects,Y100,,
http://opendatacommunities.org/id/london-borough-council/sutton,London Borough of Sutton,14/12/2017,6923369,"7,875.00",Archway Building Consultancy,30049,Peoples Services Directorate,Building Works -Main Contractor,Y350,,
http://opendatacommunities.org/id/london-borough-council/sutton,London Borough of Sutton,14/12/2017,6923370,"7,310.00",Archway Building Consultancy,30049,Peoples Services Directorate,Building Works -Main Contractor,Y350,,
http://opendatacommunities.org/id/london-borough-council/sutton,London Borough of Sutton,14/12/2017,6923373,"6,770.00",Archway Building Consultancy,30049,Peoples Services Directorate,Building Works -Main Contractor,Y350,,
http://opendatacommunities.org/id/london-borough-council/sutton,London Borough of Sutton,29/12/2017,6923254,798,Ardleigh Improvements Ltd,97701,Peoples Services Directorate,Building Works -Main Contractor,Y350,,
http://opendatacommunities.org/id/london-borough-council/sutton,London Borough of Sutton,29/12/2017,6923254,798,Ardleigh Improvements Ltd,97701,Peoples Services Directorate,Building Works -Main Contractor,Y350,,
http://opendatacommunities.org/id/london-borough-council/sutton,London Borough of Sutton,10/12/2017,40146760,"18,378.57",Area Camden Ltd,29908,Peoples Services Directorate,Residential Care-Children,G330,,
http://opendatacommunities.org/id/london-borough-council/sutton,London Borough of Sutton,02/01/2018,6923100,"7,452.42",Arnold & Self,16110,"Environment, Housing & Regeneration Directorate",Bed and Breakfast Accommodation,G400,,
http://opendatacommunities.org/id/london-borough-council/sutton,London Borough of Sutton,15/12/2017,40146671,"3,579.80",Ascent Fostering Agency Ltd,25280,Peoples Services Directorate,Foster Parents,G326,,
http://opendatacommunities.org/id/london-borough-council/sutton,London Borough of Sutton,01/12/2017,40149508,850.33,Ashbrook House Ltd,23499,Peoples Services Directorate,Supported Living - Ext Provider,G306,,
http://opendatacommunities.org/id/london-borough-council/sutton,London Borough of Sutton,01/01/2018,40149558,884.48,Ashlong House Ltd,23101,Peoples Services Directorate,Supported Living - Ext Provider,G306,,
http://opendatacommunities.org/id/london-borough-council/sutton,London Borough of Sutton,01/12/2017,40154206,"2,058.40",Ashlong House Ltd,23101,Peoples Services Directorate,Supported Living - Ext Provider,G306,,
http://opendatacommunities.org/id/london-borough-council/sutton,London Borough of Sutton,01/11/2017,40154230,"1,041.60",Ashlong House Ltd,23101,Peoples Services Directorate,Supported Living - Ext Provider,G306,,
http://opendatacommunities.org/id/london-borough-council/sutton,London Borough of Sutton,04/01/2018,40146289,"3,852.52",Ashtead House Ltd,29629,Peoples Services Directorate,Nursing Care - Ext Provider,G311,,
http://opendatacommunities.org/id/london-borough-council/sutton,London Borough of Sutton,29/12/2017,6923066,"1,054.00",Assetgrove Lettings Ltd,28820,"Environment, Housing & Regeneration Directorate",Bed and Breakfast Accommodation,G400,,
http://opendatacommunities.org/id/london-borough-council/sutton,London Borough of Sutton,29/12/2017,6923067,"1,085.00",Assetgrove Lettings Ltd,28820,"Environment, Housing & Regeneration Directorate",Bed and Breakfast Accommodation,G400,,
http://opendatacommunities.org/id/london-borough-council/sutton,London Borough of Sutton,29/12/2017,6923077,"1,236.90",Assetgrove Lettings Ltd,28820,"Environment, Housing & Regeneration Directorate",Bed and Breakfast Accommodation,G400,,
http://opendatacommunities.org/id/london-borough-council/sutton,London Borough of Sutton,29/12/2017,6923078,"1,619.75",Assetgrove Lettings Ltd,28820,"Environment, Housing & Regeneration Directorate",Bed and Breakfast Accommodation,G400,,
http://opendatacommunities.org/id/london-borough-council/sutton,London Borough of Sutton,29/12/2017,6923079,"1,240.00",Assetgrove Lettings Ltd,28820,"Environment, Housing & Regeneration Directorate",Bed and Breakfast Accommodation,G400,,
http://opendatacommunities.org/id/london-borough-council/sutton,London Borough of Sutton,29/12/2017,6923080,961,Assetgrove Lettings Ltd,28820,"Environment, Housing & Regeneration Directorate",Bed and Breakfast Accommodation,G400,,
http://opendatacommunities.org/id/london-borough-council/sutton,London Borough of Sutton,29/12/2017,6923103,"1,085.00",Assetgrove Lettings Ltd,28820,"Environment, Housing & Regeneration Directorate",Bed and Breakfast Accommodation,G400,,
http://opendatacommunities.org/id/london-borough-council/sutton,London Borough of Sutton,29/12/2017,6923104,961,Assetgrove Lettings Ltd,28820,"Environment, Housing & Regeneration Directorate",Bed and Breakfast Accommodation,G400,,
http://opendatacommunities.org/id/london-borough-council/sutton,London Borough of Sutton,29/12/2017,6923106,961,Assetgrove Lettings Ltd,28820,"Environment, Housing & Regeneration Directorate",Bed and Breakfast Accommodation,G400,,
http://opendatacommunities.org/id/london-borough-council/sutton,London Borough of Sutton,29/12/2017,6923107,961,Assetgrove Lettings Ltd,28820,"Environment, Housing & Regeneration Directorate",Bed and Breakfast Accommodation,G400,,
http://opendatacommunities.org/id/london-borough-council/sutton,London Borough of Sutton,29/12/2017,6923108,"1,054.00",Assetgrove Lettings Ltd,28820,"Environment, Housing & Regeneration Directorate",Bed and Breakfast Accommodation,G400,,
http://opendatacommunities.org/id/london-borough-council/sutton,London Borough of Sutton,29/12/2017,6923109,961,Assetgrove Lettings Ltd,28820,"Environment, Housing & Regeneration Directorate",Bed and Breakfast Accommodation,G400,,
http://opendatacommunities.org/id/london-borough-council/sutton,London Borough of Sutton,29/12/2017,6923110,961,Assetgrove Lettings Ltd,28820,"Environment, Housing & Regeneration Directorate",Bed and Breakfast Accommodation,G400,,
http://opendatacommunities.org/id/london-borough-council/sutton,London Borough of Sutton,29/12/2017,6923111,"1,054.00",Assetgrove Lettings Ltd,28820,"Environment, Housing & Regeneration Directorate",Bed and Breakfast Accommodation,G400,,
http://opendatacommunities.org/id/london-borough-council/sutton,London Borough of Sutton,29/12/2017,6923112,961,Assetgrove Lettings Ltd,28820,"Environment, Housing & Regeneration Directorate",Bed and Breakfast Accommodation,G400,,
http://opendatacommunities.org/id/london-borough-council/sutton,London Borough of Sutton,29/12/2017,6923277,961,Assetgrove Lettings Ltd,28820,"Environment, Housing & Regeneration Directorate",Bed and Breakfast Accommodation,G400,,
http://opendatacommunities.org/id/london-borough-council/sutton,London Borough of Sutton,29/12/2017,6923278,620,Assetgrove Lettings Ltd,28820,"Environment, Housing & Regeneration Directorate",Bed and Breakfast Accommodation,G400,,
http://opendatacommunities.org/id/london-borough-council/sutton,London Borough of Sutton,29/12/2017,6923279,"1,054.00",Assetgrove Lettings Ltd,28820,"Environment, Housing & Regeneration Directorate",Bed and Breakfast Accommodation,G400,,
http://opendatacommunities.org/id/london-borough-council/sutton,London Borough of Sutton,29/12/2017,6923289,"1,236.90",Assetgrove Lettings Ltd,28820,"Environment, Housing & Regeneration Directorate",Bed and Breakfast Accommodation,G400,,
http://opendatacommunities.org/id/london-borough-council/sutton,London Borough of Sutton,29/12/2017,6923290,961,Assetgrove Lettings Ltd,28820,"Environment, Housing & Regeneration Directorate",Bed and Breakfast Accommodation,G400,,
http://opendatacommunities.org/id/london-borough-council/sutton,London Borough of Sutton,29/12/2017,6923293,961,Assetgrove Lettings Ltd,28820,"Environment, Housing & Regeneration Directorate",Bed and Breakfast Accommodation,G400,,
http://opendatacommunities.org/id/london-borough-council/sutton,London Borough of Sutton,29/12/2017,6923294,961,Assetgrove Lettings Ltd,28820,"Environment, Housing & Regeneration Directorate",Bed and Breakfast Accommodation,G400,,
http://opendatacommunities.org/id/london-borough-council/sutton,London Borough of Sutton,29/12/2017,6923295,"1,054.00",Assetgrove Lettings Ltd,28820,"Environment, Housing & Regeneration Directorate",Bed and Breakfast Accommodation,G400,,
http://opendatacommunities.org/id/london-borough-council/sutton,London Borough of Sutton,29/12/2017,6923296,"1,236.90",Assetgrove Lettings Ltd,28820,"Environment, Housing & Regeneration Directorate",Bed and Breakfast Accommodation,G400,,
http://opendatacommunities.org/id/london-borough-council/sutton,London Borough of Sutton,29/12/2017,6923297,961,Assetgrove Lettings Ltd,28820,"Environment, Housing & Regeneration Directorate",Bed and Breakfast Accommodation,G400,,
http://opendatacommunities.org/id/london-borough-council/sutton,London Borough of Sutton,29/12/2017,6923298,"1,943.70",Assetgrove Lettings Ltd,28820,"Environment, Housing & Regeneration Directorate",Bed and Breakfast Accommodation,G400,,
http://opendatacommunities.org/id/london-borough-council/sutton,London Borough of Sutton,29/12/2017,6923299,961,Assetgrove Lettings Ltd,28820,"Environment, Housing & Regeneration Directorate",Bed and Breakfast Accommodation,G400,,
http://opendatacommunities.org/id/london-borough-council/sutton,London Borough of Sutton,29/12/2017,6923300,961,Assetgrove Lettings Ltd,28820,"Environment, Housing & Regeneration Directorate",Bed and Breakfast Accommodation,G400,,
http://opendatacommunities.org/id/london-borough-council/sutton,London Borough of Sutton,29/12/2017,6923301,478.8,Assetgrove Lettings Ltd,28820,"Environment, Housing & Regeneration Directorate",Bed and Breakfast Accommodation,G400,,
http://opendatacommunities.org/id/london-borough-council/sutton,London Borough of Sutton,29/12/2017,6923302,"1,236.90",Assetgrove Lettings Ltd,28820,"Environment, Housing & Regeneration Directorate",Bed and Breakfast Accommodation,G400,,
http://opendatacommunities.org/id/london-borough-council/sutton,London Borough of Sutton,29/12/2017,6923303,961,Assetgrove Lettings Ltd,28820,"Environment, Housing & Regeneration Directorate",Bed and Breakfast Accommodation,G400,,
http://opendatacommunities.org/id/london-borough-council/sutton,London Borough of Sutton,29/12/2017,6923304,961,Assetgrove Lettings Ltd,28820,"Environment, Housing & Regeneration Directorate",Bed and Breakfast Accommodation,G400,,
http://opendatacommunities.org/id/london-borough-council/sutton,London Borough of Sutton,29/12/2017,6923569,961,Assetgrove Lettings Ltd,28820,"Environment, Housing & Regeneration Directorate",Bed and Breakfast Accommodation,G400,,
http://opendatacommunities.org/id/london-borough-council/sutton,London Borough of Sutton,29/12/2017,6923570,"1,271.00",Assetgrove Lettings Ltd,28820,"Environment, Housing & Regeneration Directorate",Bed and Breakfast Accommodation,G400,,
http://opendatacommunities.org/id/london-borough-council/sutton,London Borough of Sutton,29/12/2017,6923571,961,Assetgrove Lettings Ltd,28820,"Environment, Housing & Regeneration Directorate",Bed and Breakfast Accommodation,G400,,
http://opendatacommunities.org/id/london-borough-council/sutton,London Borough of Sutton,29/12/2017,6923572,961,Assetgrove Lettings Ltd,28820,"Environment, Housing & Regeneration Directorate",Bed and Breakfast Accommodation,G400,,
http://opendatacommunities.org/id/london-borough-council/sutton,London Borough of Sutton,29/12/2017,6923573,"1,271.00",Assetgrove Lettings Ltd,28820,"Environment, Housing & Regeneration Directorate",Bed and Breakfast Accommodation,G400,,
http://opendatacommunities.org/id/london-borough-council/sutton,London Borough of Sutton,29/12/2017,6923574,961,Assetgrove Lettings Ltd,28820,"Environment, Housing & Regeneration Directorate",Bed and Breakfast Accommodation,G400,,
http://opendatacommunities.org/id/london-borough-council/sutton,London Borough of Sutton,29/12/2017,6923575,"1,236.90",Assetgrove Lettings Ltd,28820,"Environment, Housing & Regeneration Directorate",Bed and Breakfast Accommodation,G400,,
http://opendatacommunities.org/id/london-borough-council/sutton,London Borough of Sutton,31/10/2017,6923648,961,Assetgrove Lettings Ltd,28820,"Environment, Housing & Regeneration Directorate",Bed and Breakfast Accommodation,G400,,
http://opendatacommunities.org/id/london-borough-council/sutton,London Borough of Sutton,31/10/2017,6923649,961,Assetgrove Lettings Ltd,28820,"Environment, Housing & Regeneration Directorate",Bed and Breakfast Accommodation,G400,,
http://opendatacommunities.org/id/london-borough-council/sutton,London Borough of Sutton,31/10/2017,6923650,961,Assetgrove Lettings Ltd,28820,"Environment, Housing & Regeneration Directorate",Bed and Breakfast Accommodation,G400,,
http://opendatacommunities.org/id/london-borough-council/sutton,London Borough of Sutton,31/10/2017,6923651,961,Assetgrove Lettings Ltd,28820,"Environment, Housing & Regeneration Directorate",Bed and Breakfast Accommodation,G400,,
http://opendatacommunities.org/id/london-borough-council/sutton,London Borough of Sutton,31/10/2017,6923652,961,Assetgrove Lettings Ltd,28820,"Environment, Housing & Regeneration Directorate",Bed and Breakfast Accommodation,G400,,
http://opendatacommunities.org/id/london-borough-council/sutton,London Borough of Sutton,31/10/2017,6923653,"1,236.90",Assetgrove Lettings Ltd,28820,"Environment, Housing & Regeneration Directorate",Bed and Breakfast Accommodation,G400,,
http://opendatacommunities.org/id/london-borough-council/sutton,London Borough of Sutton,31/10/2017,6923654,961,Assetgrove Lettings Ltd,28820,"Environment, Housing & Regeneration Directorate",Bed and Breakfast Accommodation,G400,,
http://opendatacommunities.org/id/london-borough-council/sutton,London Borough of Sutton,31/10/2017,6923655,961,Assetgrove Lettings Ltd,28820,"Environment, Housing & Regeneration Directorate",Bed and Breakfast Accommodation,G400,,
http://opendatacommunities.org/id/london-borough-council/sutton,London Borough of Sutton,31/10/2017,6923656,961,Assetgrove Lettings Ltd,28820,"Environment, Housing & Regeneration Directorate",Bed and Breakfast Accommodation,G400,,
http://opendatacommunities.org/id/london-borough-council/sutton,London Borough of Sutton,31/10/2017,6923657,"1,236.90",Assetgrove Lettings Ltd,28820,"Environment, Housing & Regeneration Directorate",Bed and Breakfast Accommodation,G400,,
http://opendatacommunities.org/id/london-borough-council/sutton,London Borough of Sutton,31/10/2017,6923658,"1,271.00",Assetgrove Lettings Ltd,28820,"Environment, Housing & Regeneration Directorate",Bed and Breakfast Accommodation,G400,,
http://opendatacommunities.org/id/london-borough-council/sutton,London Borough of Sutton,31/10/2017,6923659,"1,619.75",Assetgrove Lettings Ltd,28820,"Environment, Housing & Regeneration Directorate",Bed and Breakfast Accommodation,G400,,
http://opendatacommunities.org/id/london-borough-council/sutton,London Borough of Sutton,31/10/2017,6923660,"1,236.90",Assetgrove Lettings Ltd,28820,"Environment, Housing & Regeneration Directorate",Bed and Breakfast Accommodation,G400,,
http://opendatacommunities.org/id/london-borough-council/sutton,London Borough of Sutton,31/10/2017,6923661,"1,236.90",Assetgrove Lettings Ltd,28820,"Environment, Housing & Regeneration Directorate",Bed and Breakfast Accommodation,G400,,
http://opendatacommunities.org/id/london-borough-council/sutton,London Borough of Sutton,31/10/2017,6923662,961,Assetgrove Lettings Ltd,28820,"Environment, Housing & Regeneration Directorate",Bed and Breakfast Accommodation,G400,,
http://opendatacommunities.org/id/london-borough-council/sutton,London Borough of Sutton,31/10/2017,6923663,961,Assetgrove Lettings Ltd,28820,"Environment, Housing & Regeneration Directorate",Bed and Breakfast Accommodation,G400,,
http://opendatacommunities.org/id/london-borough-council/sutton,London Borough of Sutton,31/10/2017,6923664,"1,302.00",Assetgrove Lettings Ltd,28820,"Environment, Housing & Regeneration Directorate",Bed and Breakfast Accommodation,G400,,
http://opendatacommunities.org/id/london-borough-council/sutton,London Borough of Sutton,31/10/2017,6923665,"1,054.00",Assetgrove Lettings Ltd,28820,"Environment, Housing & Regeneration Directorate",Bed and Breakfast Accommodation,G400,,
http://opendatacommunities.org/id/london-borough-council/sutton,London Borough of Sutton,31/10/2017,6923666,"1,943.70",Assetgrove Lettings Ltd,28820,"Environment, Housing & Regeneration Directorate",Bed and Breakfast Accommodation,G400,,
http://opendatacommunities.org/id/london-borough-council/sutton,London Borough of Sutton,31/10/2017,6923667,"1,085.00",Assetgrove Lettings Ltd,28820,"Environment, Housing & Regeneration Directorate",Bed and Breakfast Accommodation,G400,,
http://opendatacommunities.org/id/london-borough-council/sutton,London Borough of Sutton,31/08/2017,6923669,532,Assetgrove Lettings Ltd,28820,"Environment, Housing & Regeneration Directorate",Bed and Breakfast Accommodation,G400,,
http://opendatacommunities.org/id/london-borough-council/sutton,London Borough of Sutton,31/10/2017,6923670,899,Assetgrove Lettings Ltd,28820,"Environment, Housing & Regeneration Directorate",Bed and Breakfast Accommodation,G400,,
http://opendatacommunities.org/id/london-borough-council/sutton,London Borough of Sutton,29/12/2017,6923767,961,Assetgrove Lettings Ltd,28820,"Environment, Housing & Regeneration Directorate",Bed and Breakfast Accommodation,G400,,
http://opendatacommunities.org/id/london-borough-council/sutton,London Borough of Sutton,29/12/2017,6923871,"1,236.90",Assetgrove Lettings Ltd,28820,"Environment, Housing & Regeneration Directorate",Bed and Breakfast Accommodation,G400,,
http://opendatacommunities.org/id/london-borough-council/sutton,London Borough of Sutton,29/12/2017,6923872,744,Assetgrove Lettings Ltd,28820,"Environment, Housing & Regeneration Directorate",Bed and Breakfast Accommodation,G400,,
http://opendatacommunities.org/id/london-borough-council/sutton,London Borough of Sutton,29/12/2017,6923873,961,Assetgrove Lettings Ltd,28820,"Environment, Housing & Regeneration Directorate",Bed and Breakfast Accommodation,G400,,
http://opendatacommunities.org/id/london-borough-council/sutton,London Borough of Sutton,29/12/2017,6923874,961,Assetgrove Lettings Ltd,28820,"Environment, Housing & Regeneration Directorate",Bed and Breakfast Accommodation,G400,,
http://opendatacommunities.org/id/london-borough-council/sutton,London Borough of Sutton,29/12/2017,6923875,961,Assetgrove Lettings Ltd,28820,"Environment, Housing & Regeneration Directorate",Bed and Breakfast Accommodation,G400,,
http://opendatacommunities.org/id/london-borough-council/sutton,London Borough of Sutton,29/12/2017,6923876,961,Assetgrove Lettings Ltd,28820,"Environment, Housing & Regeneration Directorate",Bed and Breakfast Accommodation,G400,,
http://opendatacommunities.org/id/london-borough-council/sutton,London Borough of Sutton,29/12/2017,6923878,961,Assetgrove Lettings Ltd,28820,"Environment, Housing & Regeneration Directorate",Bed and Breakfast Accommodation,G400,,
http://opendatacommunities.org/id/london-borough-council/sutton,London Borough of Sutton,29/12/2017,6923879,961,Assetgrove Lettings Ltd,28820,"Environment, Housing & Regeneration Directorate",Bed and Breakfast Accommodation,G400,,
http://opendatacommunities.org/id/london-borough-council/sutton,London Borough of Sutton,29/12/2017,6923880,961,Assetgrove Lettings Ltd,28820,"Environment, Housing & Regeneration Directorate",Bed and Breakfast Accommodation,G400,,
http://opendatacommunities.org/id/london-borough-council/sutton,London Borough of Sutton,29/12/2017,6923899,961,Assetgrove Lettings Ltd,28820,"Environment, Housing & Regeneration Directorate",Bed and Breakfast Accommodation,G400,,
http://opendatacommunities.org/id/london-borough-council/sutton,London Borough of Sutton,31/10/2017,6923900,713,Assetgrove Lettings Ltd,28820,"Environment, Housing & Regeneration Directorate",Bed and Breakfast Accommodation,G400,,
http://opendatacommunities.org/id/london-borough-council/sutton,London Borough of Sutton,29/12/2017,6923901,558,Assetgrove Lettings Ltd,28820,"Environment, Housing & Regeneration Directorate",Bed and Breakfast Accommodation,G400,,
http://opendatacommunities.org/id/london-borough-council/sutton,London Borough of Sutton,30/11/2017,6924080,930,Assetgrove Lettings Ltd,28820,"Environment, Housing & Regeneration Directorate",Bed and Breakfast Accommodation,G400,,
http://opendatacommunities.org/id/london-borough-council/sutton,London Borough of Sutton,30/11/2017,6924081,"1,020.00",Assetgrove Lettings Ltd,28820,"Environment, Housing & Regeneration Directorate",Bed and Breakfast Accommodation,G400,,
http://opendatacommunities.org/id/london-borough-council/sutton,London Borough of Sutton,30/11/2017,6924082,930,Assetgrove Lettings Ltd,28820,"Environment, Housing & Regeneration Directorate",Bed and Breakfast Accommodation,G400,,
http://opendatacommunities.org/id/london-borough-council/sutton,London Borough of Sutton,30/11/2017,6924090,"1,050.00",Assetgrove Lettings Ltd,28820,"Environment, Housing & Regeneration Directorate",Bed and Breakfast Accommodation,G400,,
http://opendatacommunities.org/id/london-borough-council/sutton,London Borough of Sutton,30/11/2017,6924091,"1,050.00",Assetgrove Lettings Ltd,28820,"Environment, Housing & Regeneration Directorate",Bed and Breakfast Accommodation,G400,,
http://opendatacommunities.org/id/london-borough-council/sutton,London Borough of Sutton,30/11/2017,6924092,930,Assetgrove Lettings Ltd,28820,"Environment, Housing & Regeneration Directorate",Bed and Breakfast Accommodation,G400,,
http://opendatacommunities.org/id/london-borough-council/sutton,London Borough of Sutton,30/11/2017,6924093,"1,020.00",Assetgrove Lettings Ltd,28820,"Environment, Housing & Regeneration Directorate",Bed and Breakfast Accommodation,G400,,
http://opendatacommunities.org/id/london-borough-council/sutton,London Borough of Sutton,30/11/2017,6924094,930,Assetgrove Lettings Ltd,28820,"Environment, Housing & Regeneration Directorate",Bed and Breakfast Accommodation,G400,,
http://opendatacommunities.org/id/london-borough-council/sutton,London Borough of Sutton,30/11/2017,6924095,930,Assetgrove Lettings Ltd,28820,"Environment, Housing & Regeneration Directorate",Bed and Breakfast Accommodation,G400,,
http://opendatacommunities.org/id/london-borough-council/sutton,London Borough of Sutton,30/11/2017,6924096,930,Assetgrove Lettings Ltd,28820,"Environment, Housing & Regeneration Directorate",Bed and Breakfast Accommodation,G400,,
http://opendatacommunities.org/id/london-borough-council/sutton,London Borough of Sutton,04/01/2018,40146349,"3,639.72",Assurance Care Services Ltd T/A Christ the King Residential Care Homes,27458,Peoples Services Directorate,Residential Care - Ext Provider,G310,,
http://opendatacommunities.org/id/london-borough-council/sutton,London Borough of Sutton,26/01/2018,40154641,"3,639.72",Assurance Care Services Ltd T/A Christ the King Residential Care Homes,27458,Peoples Services Directorate,Residential Care - Ext Provider,G310,,
http://opendatacommunities.org/id/london-borough-council/sutton,London Borough of Sutton,13/12/2017,6921945,"9,351.25",Atkins Ltd,10307,Peoples Services Directorate,External Fees  - Architects,Y100,,
http://opendatacommunities.org/id/london-borough-council/sutton,London Borough of Sutton,04/01/2018,40146192,"4,580.72",Autism & Aspergers Care Services,10327,Peoples Services Directorate,Residential Care - Ext Provider,G310,,
http://opendatacommunities.org/id/london-borough-council/sutton,London Borough of Sutton,26/01/2018,40154259,"4,580.72",Autism & Aspergers Care Services,10327,Peoples Services Directorate,Residential Care - Ext Provider,G310,,
http://opendatacommunities.org/id/london-borough-council/sutton,London Borough of Sutton,04/01/2018,40146304,"2,805.00",Avante Ltd (Weybourne),24009,Peoples Services Directorate,Residential Care - Ext Provider,G310,,
http://opendatacommunities.org/id/london-borough-council/sutton,London Borough of Sutton,26/01/2018,40154530,"2,805.00",Avante Ltd (Weybourne),24009,Peoples Services Directorate,Residential Care - Ext Provider,G310,,
http://opendatacommunities.org/id/london-borough-council/sutton,London Borough of Sutton,01/01/2018,1247391,"26,756.25",Avenue Primary Acadamy,26025,Peoples Services Directorate,Place Funding,G063,,
http://opendatacommunities.org/id/london-borough-council/sutton,London Borough of Sutton,01/01/2018,1247392,"10,027.00",Avenue Primary Acadamy,26025,Peoples Services Directorate,Top-up Funding,G064,,
http://opendatacommunities.org/id/london-borough-council/sutton,London Borough of Sutton,13/12/2017,6924024,"5,050.75",Avocet Services Ltd,26548,Peoples Services Directorate,Children Assessments,G329,,
http://opendatacommunities.org/id/london-borough-council/sutton,London Borough of Sutton,22/01/2018,1248485,"25,320.63",B Mallen T/A The Adventure Pre-School,10072,Peoples Services Directorate,Non-Maintained Childrens' Nurseries - 3 & 4 yr olds,G405,,
http://opendatacommunities.org/id/london-borough-council/sutton,London Borough of Sutton,04/01/2018,40146204,"3,200.00",Balcombe Care Homes Ltd,10367,Peoples Services Directorate,Nursing Care - Ext Provider,G311,,
http://opendatacommunities.org/id/london-borough-council/sutton,London Borough of Sutton,26/01/2018,40154250,"3,200.00",Balcombe Care Homes Ltd,10367,Peoples Services Directorate,Nursing Care - Ext Provider,G311,,
http://opendatacommunities.org/id/london-borough-council/sutton,London Borough of Sutton,15/01/2018,1248101,600,Bandon Hill Pre-School,10357,Peoples Services Directorate,Non-Maintained Childrens' Nurseries - 3 & 4 yr olds,G405,,
http://opendatacommunities.org/id/london-borough-council/sutton,London Borough of Sutton,22/01/2018,1248382,"4,139.85",Bandon Hill Pre-School,10357,Peoples Services Directorate,Non-Maintained Childrens' Nurseries - 2 Year Olds,G404,,
http://opendatacommunities.org/id/london-borough-council/sutton,London Borough of Sutton,22/01/2018,1248442,"9,594.00",Bandon Hill Pre-School,10357,Peoples Services Directorate,Non-Maintained Childrens' Nurseries - 3 & 4 yr olds,G405,,
http://opendatacommunities.org/id/london-borough-council/sutton,London Borough of Sutton,01/01/2018,1247393,"16,341.67",Bandon Hill Primary,10372,Peoples Services Directorate,Top-up Funding,G064,,
http://opendatacommunities.org/id/london-borough-council/sutton,London Borough of Sutton,01/01/2018,1247394,"154,456.50",Bandon Hill Primary,10372,Peoples Services Directorate,Place Funding,G063,,
http://opendatacommunities.org/id/london-borough-council/sutton,London Borough of Sutton,01/01/2018,1247395,"2,229.50",Bandon Hill Primary,10372,Peoples Services Directorate,Top-up Funding,G064,,
http://opendatacommunities.org/id/london-borough-council/sutton,London Borough of Sutton,01/01/2018,1247395,"4,200.00",Bandon Hill Primary,10372,Peoples Services Directorate,Top-up Funding,G064,,
http://opendatacommunities.org/id/london-borough-council/sutton,London Borough of Sutton,01/01/2018,1247396,"2,500.00",Bandon Hill Primary,10372,Peoples Services Directorate,Payments to Schools,G065,,
http://opendatacommunities.org/id/london-borough-council/sutton,London Borough of Sutton,30/01/2018,6924442,"24,937.39",Bandon Hill Primary,10372,Peoples Services Directorate,Building Works -Main Contractor,Y350,,
http://opendatacommunities.org/id/london-borough-council/sutton,London Borough of Sutton,31/12/2017,40146789,"3,607.47",Banya,10375,Peoples Services Directorate,Foster Parents,G326,,
http://opendatacommunities.org/id/london-borough-council/sutton,London Borough of Sutton,31/12/2017,40146790,"3,607.47",Banya,10375,Peoples Services Directorate,Foster Parents,G326,,
http://opendatacommunities.org/id/london-borough-council/sutton,London Borough of Sutton,04/01/2018,40146466,"4,000.00",Barchester Healthcare - Atfield House,27028,Peoples Services Directorate,Nursing Care - Ext Provider,G311,,
http://opendatacommunities.org/id/london-borough-council/sutton,London Borough of Sutton,26/01/2018,40154369,"4,000.00",Barchester Healthcare - Atfield House,27028,Peoples Services Directorate,Nursing Care - Ext Provider,G311,,
http://opendatacommunities.org/id/london-borough-council/sutton,London Borough of Sutton,13/12/2017,40146745,"3,559.11",Barnardo's,10370,Peoples Services Directorate,Foster Parents,G326,,
http://opendatacommunities.org/id/london-borough-council/sutton,London Borough of Sutton,01/01/2018,1247397,"13,860.00",Barrow Hedges Primary School,10383,Peoples Services Directorate,Top-up Funding,G064,,
http://opendatacommunities.org/id/london-borough-council/sutton,London Borough of Sutton,04/01/2018,6923365,"1,465.67",Barts Health Nhs Trust,28991,Chief Executive's Directorate,Provider Contract Payments,F470,,
http://opendatacommunities.org/id/london-borough-council/sutton,London Borough of Sutton,01/12/2017,40146769,"3,963.66",Be My Family Fostering Agency,25179,Peoples Services Directorate,Foster Parents,G326,,
http://opendatacommunities.org/id/london-borough-council/sutton,London Borough of Sutton,01/12/2017,40146770,"3,591.66",Be My Family Fostering Agency,25179,Peoples Services Directorate,Foster Parents,G326,,
http://opendatacommunities.org/id/london-borough-council/sutton,London Borough of Sutton,01/01/2018,1247398,"5,962.50",Beddington Infants School,10445,Peoples Services Directorate,Top-up Funding,G064,,
http://opendatacommunities.org/id/london-borough-council/sutton,London Borough of Sutton,01/01/2018,1247399,"3,162.50",Beddington Park Primary (Academy),25879,Peoples Services Directorate,Top-up Funding,G064,,
http://opendatacommunities.org/id/london-borough-council/sutton,London Borough of Sutton,20/11/2017,6922408,"1,024.83",Bellville-Homes Ltd,26490,"Environment, Housing & Regeneration Directorate",General Office Expenses,F235,,
http://opendatacommunities.org/id/london-borough-council/sutton,London Borough of Sutton,14/01/2018,6923599,"1,024.83",Bellville-Homes Ltd,26490,"Environment, Housing & Regeneration Directorate",General Office Expenses,F235,,
http://opendatacommunities.org/id/london-borough-council/sutton,London Borough of Sutton,05/01/2018,6922920,"4,000.00",Belmont & South Cheam Neighbourhood Forum,99803,"Environment, Housing & Regeneration Directorate",Assistance to Voluntary Organisations,F471,,
http://opendatacommunities.org/id/london-borough-council/sutton,London Borough of Sutton,22/01/2018,1248383,"1,042.20",Belmont Village Playgroup,17807,Peoples Services Directorate,Non-Maintained Childrens' Nurseries - 2 Year Olds,G404,,
http://opendatacommunities.org/id/london-borough-council/sutton,London Borough of Sutton,22/01/2018,1248443,"10,867.13",Belmont Village Playgroup,17807,Peoples Services Directorate,Non-Maintained Childrens' Nurseries - 3 & 4 yr olds,G405,,
http://opendatacommunities.org/id/london-borough-council/sutton,London Borough of Sutton,24/01/2018,6924263,"2,530.00",Benhill & Belmont GP Centre,15665,Chief Executive's Directorate,Provider Contract Payments,F470,,
http://opendatacommunities.org/id/london-borough-council/sutton,London Borough of Sutton,24/01/2018,6924267,"1,040.00",Benhill & Belmont GP Centre,15665,Chief Executive's Directorate,Provider Contract Payments,F470,,
http://opendatacommunities.org/id/london-borough-council/sutton,London Borough of Sutton,20/11/2017,40153387,"15,300.67",Benjamin UK Ltd,23244,Peoples Services Directorate,Residential Care-Children,G330,,
http://opendatacommunities.org/id/london-borough-council/sutton,London Borough of Sutton,20/09/2017,40153388,"6,513.57",Benjamin UK Ltd,23244,Peoples Services Directorate,Residential Care-Children,G330,,
http://opendatacommunities.org/id/london-borough-council/sutton,London Borough of Sutton,22/01/2018,1248533,"1,800.00",Bernadine Willis,24139,Peoples Services Directorate,Non-Maintained Childrens' Nurseries - 3 & 4 yr olds,G405,,
http://opendatacommunities.org/id/london-borough-council/sutton,London Borough of Sutton,26/01/2018,40154438,"4,997.14",Bertinaley Care Ltd T/A Angel Lodge,27109,Peoples Services Directorate,Interim Placements - Ext Provider,G317,,
http://opendatacommunities.org/id/london-borough-council/sutton,London Borough of Sutton,31/12/2017,6923007,"2,802.00",Bestcourt UK Ltd,10441,"Environment, Housing & Regeneration Directorate",Bed and Breakfast Accommodation,G400,,
http://opendatacommunities.org/id/london-borough-council/sutton,London Borough of Sutton,29/12/2017,6923335,"17,409.71",Bevan Brittan LLP,28285,"Environment, Housing & Regeneration Directorate",External Fees  - Other,Y130,,
http://opendatacommunities.org/id/london-borough-council/sutton,London Borough of Sutton,04/01/2018,40146314,"2,800.00",Beverley Lodge Nursing Home,10434,Peoples Services Directorate,Nursing Care - Ext Provider,G311,,
http://opendatacommunities.org/id/london-borough-council/sutton,London Borough of Sutton,04/01/2018,40146354,"3,400.00",Beverley Lodge Nursing Home,10434,Peoples Services Directorate,Nursing Care - Ext Provider,G311,,
http://opendatacommunities.org/id/london-borough-council/sutton,London Borough of Sutton,04/01/2018,40146395,"2,226.40",Beverley Lodge Nursing Home,10434,Peoples Services Directorate,Nursing Care - Ext Provider,G311,,
http://opendatacommunities.org/id/london-borough-council/sutton,London Borough of Sutton,04/01/2018,40146483,"3,380.00",Beverley Lodge Nursing Home,10434,Peoples Services Directorate,Nursing Care - Ext Provider,G311,,
http://opendatacommunities.org/id/london-borough-council/sutton,London Borough of Sutton,26/01/2018,40154297,"2,226.40",Beverley Lodge Nursing Home,10434,Peoples Services Directorate,Nursing Care - Ext Provider,G311,,
http://opendatacommunities.org/id/london-borough-council/sutton,London Borough of Sutton,26/01/2018,40154449,"3,380.00",Beverley Lodge Nursing Home,10434,Peoples Services Directorate,Nursing Care - Ext Provider,G311,,
http://opendatacommunities.org/id/london-borough-council/sutton,London Borough of Sutton,26/01/2018,40154540,"2,800.00",Beverley Lodge Nursing Home,10434,Peoples Services Directorate,Nursing Care - Ext Provider,G311,,
http://opendatacommunities.org/id/london-borough-council/sutton,London Borough of Sutton,26/01/2018,40154646,"3,400.00",Beverley Lodge Nursing Home,10434,Peoples Services Directorate,Nursing Care - Ext Provider,G311,,
http://opendatacommunities.org/id/london-borough-council/sutton,London Borough of Sutton,25/12/2017,40146163,490,Beyond Community Care Services Ltd,29933,Peoples Services Directorate,Home Care,G334,,
http://opendatacommunities.org/id/london-borough-council/sutton,London Borough of Sutton,01/01/2018,40146180,490,Beyond Community Care Services Ltd,29933,Peoples Services Directorate,Home Care,G334,,
http://opendatacommunities.org/id/london-borough-council/sutton,London Borough of Sutton,08/01/2018,40148269,490,Beyond Community Care Services Ltd,29933,Peoples Services Directorate,Home Care,G334,,
http://opendatacommunities.org/id/london-borough-council/sutton,London Borough of Sutton,15/01/2018,40153142,490,Beyond Community Care Services Ltd,29933,Peoples Services Directorate,Home Care,G334,,
http://opendatacommunities.org/id/london-borough-council/sutton,London Borough of Sutton,22/01/2018,40154677,490,Beyond Community Care Services Ltd,29933,Peoples Services Directorate,Home Care,G334,,
http://opendatacommunities.org/id/london-borough-council/sutton,London Borough of Sutton,01/04/2017,40153844,"5,911.00",Bibliographic Data Services Ltd,10492,Peoples Services Directorate,Books,F006,,
http://opendatacommunities.org/id/london-borough-council/sutton,London Borough of Sutton,20/12/2017,6922324,"4,945.00",Bibliotheca Ltd,28968,"Environment, Housing & Regeneration Directorate",Equipment It,Y523,,
http://opendatacommunities.org/id/london-borough-council/sutton,London Borough of Sutton,20/12/2017,6922325,"14,980.00",Bibliotheca Ltd,28968,"Environment, Housing & Regeneration Directorate",Equipment It,Y523,,
http://opendatacommunities.org/id/london-borough-council/sutton,London Borough of Sutton,20/12/2017,6922326,750,Bibliotheca Ltd,28968,"Environment, Housing & Regeneration Directorate",Equipment It,Y523,,
http://opendatacommunities.org/id/london-borough-council/sutton,London Borough of Sutton,21/12/2017,6922403,419.7,Bibliotheca Ltd,28968,"Environment, Housing & Regeneration Directorate",Equipment It,Y523,,
http://opendatacommunities.org/id/london-borough-council/sutton,London Borough of Sutton,15/01/2018,6923510,"2,568.60",Bibliotheca Ltd,28968,Peoples Services Directorate,IT Equipment - Repair and Maintenance,F382,,
http://opendatacommunities.org/id/london-borough-council/sutton,London Borough of Sutton,22/01/2018,1248384,"1,563.30",Bizzy Bees Day Nursery,10483,Peoples Services Directorate,Non-Maintained Childrens' Nurseries - 2 Year Olds,G404,,
http://opendatacommunities.org/id/london-borough-council/sutton,London Borough of Sutton,22/01/2018,1248444,"11,700.00",Bizzy Bees Day Nursery,10483,Peoples Services Directorate,Non-Maintained Childrens' Nurseries - 3 & 4 yr olds,G405,,
http://opendatacommunities.org/id/london-borough-council/sutton,London Borough of Sutton,05/01/2018,6923904,"6,425.77",Bloom Procurement Services Ltd,29692,Peoples Services Directorate,Contractual Consultant Fees,G430,,
http://opendatacommunities.org/id/london-borough-council/sutton,London Borough of Sutton,01/12/2017,1247910,"12,350.00",Blossom House Lower School,10507,Peoples Services Directorate,Independent Schools,G325,,
http://opendatacommunities.org/id/london-borough-council/sutton,London Borough of Sutton,22/01/2018,1248518,900,Boadicea Rose (Billy Bears Playdays),26969,Peoples Services Directorate,Non-Maintained Childrens' Nurseries - 3 & 4 yr olds,G405,,
http://opendatacommunities.org/id/london-borough-council/sutton,London Borough of Sutton,27/12/2017,6922682,500,Bottomline Technologies Ltd,25145,Resources Directorate,Fees - Computer Software,F384,,
http://opendatacommunities.org/id/london-borough-council/sutton,London Borough of Sutton,29/12/2017,6922721,887.2,Bottomline Technologies Ltd,25145,Resources Directorate,Fees - Computer Software,F384,,
http://opendatacommunities.org/id/london-borough-council/sutton,London Borough of Sutton,04/01/2018,1247779,"2,178.90",Bournemouth University,10556,Peoples Services Directorate,Approved Lodgings,H323,,
http://opendatacommunities.org/id/london-borough-council/sutton,London Borough of Sutton,03/01/2018,6922841,"1,595.00",Brennan & Scott,25733,Chief Executive's Directorate,Provider Contract Payments,F470,,
http://opendatacommunities.org/id/london-borough-council/sutton,London Borough of Sutton,04/01/2018,40146208,"3,400.00",Bridge House Care Centre,10620,Peoples Services Directorate,Nursing Care - Ext Provider,G311,,
http://opendatacommunities.org/id/london-borough-council/sutton,London Borough of Sutton,04/01/2018,40146219,"2,034.96",Bridge House Care Centre,10620,Peoples Services Directorate,Nursing Care - Ext Provider,G311,,
http://opendatacommunities.org/id/london-borough-council/sutton,London Borough of Sutton,04/01/2018,40146242,"3,380.00",Bridge House Care Centre,10620,Peoples Services Directorate,Nursing Care - Ext Provider,G311,,
http://opendatacommunities.org/id/london-borough-council/sutton,London Borough of Sutton,04/01/2018,40146253,"1,996.00",Bridge House Care Centre,10620,Peoples Services Directorate,Nursing Care - Ext Provider,G311,,
http://opendatacommunities.org/id/london-borough-council/sutton,London Borough of Sutton,04/01/2018,40146293,"1,942.48",Bridge House Care Centre,10620,Peoples Services Directorate,Nursing Care - Ext Provider,G311,,
http://opendatacommunities.org/id/london-borough-council/sutton,London Borough of Sutton,04/01/2018,40146327,"3,360.00",Bridge House Care Centre,10620,Peoples Services Directorate,Nursing Care - Ext Provider,G311,,
http://opendatacommunities.org/id/london-borough-council/sutton,London Borough of Sutton,04/01/2018,40146337,"2,033.92",Bridge House Care Centre,10620,Peoples Services Directorate,Nursing Care - Ext Provider,G311,,
http://opendatacommunities.org/id/london-borough-council/sutton,London Borough of Sutton,04/01/2018,40146359,"3,200.00",Bridge House Care Centre,10620,Peoples Services Directorate,Nursing Care - Ext Provider,G311,,
http://opendatacommunities.org/id/london-borough-council/sutton,London Borough of Sutton,04/01/2018,40146410,"3,475.36",Bridge House Care Centre,10620,Peoples Services Directorate,Nursing Care - Ext Provider,G311,,
http://opendatacommunities.org/id/london-borough-council/sutton,London Borough of Sutton,04/01/2018,40146496,"3,000.00",Bridge House Care Centre,10620,Peoples Services Directorate,Nursing Care - Ext Provider,G311,,
http://opendatacommunities.org/id/london-borough-council/sutton,London Borough of Sutton,26/01/2018,40154313,"1,841.23",Bridge House Care Centre,10620,Peoples Services Directorate,Nursing Care - 3rd party top up payment,G360,,
http://opendatacommunities.org/id/london-borough-council/sutton,London Borough of Sutton,26/01/2018,40154422,"1,942.48",Bridge House Care Centre,10620,Peoples Services Directorate,Nursing Care - Ext Provider,G311,,
http://opendatacommunities.org/id/london-borough-council/sutton,London Borough of Sutton,26/01/2018,40154461,"3,000.00",Bridge House Care Centre,10620,Peoples Services Directorate,Nursing Care - Ext Provider,G311,,
http://opendatacommunities.org/id/london-borough-council/sutton,London Borough of Sutton,26/01/2018,40154499,"3,400.00",Bridge House Care Centre,10620,Peoples Services Directorate,Nursing Care - Ext Provider,G311,,
http://opendatacommunities.org/id/london-borough-council/sutton,London Borough of Sutton,26/01/2018,40154511,"2,034.96",Bridge House Care Centre,10620,Peoples Services Directorate,Nursing Care - Ext Provider,G311,,
http://opendatacommunities.org/id/london-borough-council/sutton,London Borough of Sutton,26/01/2018,40154553,"3,360.00",Bridge House Care Centre,10620,Peoples Services Directorate,Nursing Care - Ext Provider,G311,,
http://opendatacommunities.org/id/london-borough-council/sutton,London Borough of Sutton,26/01/2018,40154562,"2,033.92",Bridge House Care Centre,10620,Peoples Services Directorate,Nursing Care - Ext Provider,G311,,
http://opendatacommunities.org/id/london-borough-council/sutton,London Borough of Sutton,26/01/2018,40154601,"2,428.57",Bridge House Care Centre,10620,Peoples Services Directorate,Nursing Care - Short Term Placements,G328,,
http://opendatacommunities.org/id/london-borough-council/sutton,London Borough of Sutton,26/01/2018,40154602,"3,380.00",Bridge House Care Centre,10620,Peoples Services Directorate,Nursing Care - Ext Provider,G311,,
http://opendatacommunities.org/id/london-borough-council/sutton,London Borough of Sutton,26/01/2018,40154614,"1,996.00",Bridge House Care Centre,10620,Peoples Services Directorate,Nursing Care - Ext Provider,G311,,
http://opendatacommunities.org/id/london-borough-council/sutton,London Borough of Sutton,26/01/2018,40154652,"3,200.00",Bridge House Care Centre,10620,Peoples Services Directorate,Nursing Care - Ext Provider,G311,,
http://opendatacommunities.org/id/london-borough-council/sutton,London Borough of Sutton,01/12/2017,40146729,"3,077.86",Brighter Futures Foster Care Ltd,27648,Peoples Services Directorate,Foster Parents,G326,,
http://opendatacommunities.org/id/london-borough-council/sutton,London Borough of Sutton,01/12/2017,40146730,"3,077.86",Brighter Futures Foster Care Ltd,27648,Peoples Services Directorate,Foster Parents,G326,,
http://opendatacommunities.org/id/london-borough-council/sutton,London Borough of Sutton,01/12/2017,40146731,"3,808.57",Brighter Futures Foster Care Ltd,27648,Peoples Services Directorate,Foster Parents,G326,,
http://opendatacommunities.org/id/london-borough-council/sutton,London Borough of Sutton,01/12/2017,40146732,"2,860.86",Brighter Futures Foster Care Ltd,27648,Peoples Services Directorate,Foster Parents,G326,,
http://opendatacommunities.org/id/london-borough-council/sutton,London Borough of Sutton,18/12/2017,1247925,805.71,Brit School,10597,Peoples Services Directorate,Independent Schools,G325,,
http://opendatacommunities.org/id/london-borough-council/sutton,London Borough of Sutton,18/12/2017,1247926,435.52,Brit School,10597,Peoples Services Directorate,Independent Schools,G325,,
http://opendatacommunities.org/id/london-borough-council/sutton,London Borough of Sutton,18/12/2017,1247927,505.86,Brit School,10597,Peoples Services Directorate,Independent Schools,G325,,
http://opendatacommunities.org/id/london-borough-council/sutton,London Borough of Sutton,20/01/2018,6923869,425,Britaniacrest Recycling Ltd,25243,Resources Directorate,Equipment It,Y523,,
http://opendatacommunities.org/id/london-borough-council/sutton,London Borough of Sutton,04/01/2018,40146424,"2,439.36",British Home & Hospital For Incurables,10589,Peoples Services Directorate,Nursing Care - Ext Provider,G311,,
http://opendatacommunities.org/id/london-borough-council/sutton,London Borough of Sutton,04/01/2018,40146510,"2,710.40",British Home & Hospital For Incurables,10589,Peoples Services Directorate,Nursing Care - Ext Provider,G311,,
http://opendatacommunities.org/id/london-borough-council/sutton,London Borough of Sutton,26/01/2018,40154331,"2,439.36",British Home & Hospital For Incurables,10589,Peoples Services Directorate,Nursing Care - Ext Provider,G311,,
http://opendatacommunities.org/id/london-borough-council/sutton,London Borough of Sutton,26/01/2018,40154571,"2,710.40",British Home & Hospital For Incurables,10589,Peoples Services Directorate,Nursing Care - Ext Provider,G311,,
http://opendatacommunities.org/id/london-borough-council/sutton,London Borough of Sutton,03/01/2018,6923190,628.5,British Telecommunications Plc,10574,Resources Directorate,"Telephones - Mobile, Pagers etc.",F374,,
http://opendatacommunities.org/id/london-borough-council/sutton,London Borough of Sutton,03/01/2018,6923191,"2,373.50",British Telecommunications Plc,10574,Resources Directorate,"Telephones - Mobile, Pagers etc.",F374,,
http://opendatacommunities.org/id/london-borough-council/sutton,London Borough of Sutton,04/01/2018,40146334,"3,380.00",Broadlands Nursing Home,10586,Peoples Services Directorate,Nursing Care - Ext Provider,G311,,
http://opendatacommunities.org/id/london-borough-council/sutton,London Borough of Sutton,04/01/2018,40146336,"3,380.00",Broadlands Nursing Home,10586,Peoples Services Directorate,Nursing Care - Ext Provider,G311,,
http://opendatacommunities.org/id/london-borough-council/sutton,London Borough of Sutton,04/01/2018,40146369,"2,945.00",Broadlands Nursing Home,10586,Peoples Services Directorate,Nursing Care - Ext Provider,G311,,
http://opendatacommunities.org/id/london-borough-council/sutton,London Borough of Sutton,04/01/2018,40146379,"1,835.60",Broadlands Nursing Home,10586,Peoples Services Directorate,Nursing Care - Ext Provider,G311,,
http://opendatacommunities.org/id/london-borough-council/sutton,London Borough of Sutton,04/01/2018,40146416,"3,400.00",Broadlands Nursing Home,10586,Peoples Services Directorate,Nursing Care - Ext Provider,G311,,
http://opendatacommunities.org/id/london-borough-council/sutton,London Borough of Sutton,04/01/2018,40146467,"3,400.00",Broadlands Nursing Home,10586,Peoples Services Directorate,Nursing Care - Short Term Placements,G328,,
http://opendatacommunities.org/id/london-borough-council/sutton,London Borough of Sutton,04/01/2018,40146500,"3,277.16",Broadlands Nursing Home,10586,Peoples Services Directorate,Nursing Care - Ext Provider,G311,,
http://opendatacommunities.org/id/london-borough-council/sutton,London Borough of Sutton,26/01/2018,40154270,"2,945.00",Broadlands Nursing Home,10586,Peoples Services Directorate,Nursing Care - Ext Provider,G311,,
http://opendatacommunities.org/id/london-borough-council/sutton,London Borough of Sutton,26/01/2018,40154279,"1,835.60",Broadlands Nursing Home,10586,Peoples Services Directorate,Nursing Care - Ext Provider,G311,,
http://opendatacommunities.org/id/london-borough-council/sutton,London Borough of Sutton,26/01/2018,40154319,"3,400.00",Broadlands Nursing Home,10586,Peoples Services Directorate,Nursing Care - Ext Provider,G311,,
http://opendatacommunities.org/id/london-borough-council/sutton,London Borough of Sutton,26/01/2018,40154370,"3,400.00",Broadlands Nursing Home,10586,Peoples Services Directorate,Nursing Care - Short Term Placements,G328,,
http://opendatacommunities.org/id/london-borough-council/sutton,London Borough of Sutton,26/01/2018,40154465,"3,277.16",Broadlands Nursing Home,10586,Peoples Services Directorate,Nursing Care - Ext Provider,G311,,
http://opendatacommunities.org/id/london-borough-council/sutton,London Borough of Sutton,26/01/2018,40154559,"3,380.00",Broadlands Nursing Home,10586,Peoples Services Directorate,Nursing Care - Ext Provider,G311,,
http://opendatacommunities.org/id/london-borough-council/sutton,London Borough of Sutton,26/01/2018,40154561,"3,380.00",Broadlands Nursing Home,10586,Peoples Services Directorate,Nursing Care - Ext Provider,G311,,
http://opendatacommunities.org/id/london-borough-council/sutton,London Borough of Sutton,01/03/2017,40146768,"4,140.00",Broadwood Educational Services Ltd,24807,Peoples Services Directorate,Residential Care-Children,G330,,
http://opendatacommunities.org/id/london-borough-council/sutton,London Borough of Sutton,08/01/2017,6923059,"1,960.00",Bromley & Croydon Women's Aid,26394,Peoples Services Directorate,C.C.A Rent & Utilities,H211,,
http://opendatacommunities.org/id/london-borough-council/sutton,London Borough of Sutton,30/11/2017,1248359,"3,442.00",Brunswick Cars 9761/1961276/Loc09,10611,Peoples Services Directorate,Hired Peoples Transport (Children),E072,,
http://opendatacommunities.org/id/london-borough-council/sutton,London Borough of Sutton,30/11/2017,1248360,"2,640.00",Brunswick Cars 9761/1961276/Loc09,10611,Peoples Services Directorate,Hired Peoples Transport (Children),E072,,
http://opendatacommunities.org/id/london-borough-council/sutton,London Borough of Sutton,30/11/2017,1248361,"6,424.00",Brunswick Cars 9761/1961276/Loc09,10611,Peoples Services Directorate,Hired Peoples Transport (Children),E072,,
http://opendatacommunities.org/id/london-borough-council/sutton,London Borough of Sutton,30/11/2017,1248362,"4,410.00",Brunswick Cars 9761/1961276/Loc09,10611,Peoples Services Directorate,Hired Peoples Transport (Children),E072,,
http://opendatacommunities.org/id/london-borough-council/sutton,London Borough of Sutton,30/11/2017,1248363,"2,288.00",Brunswick Cars 9761/1961276/Loc09,10611,Peoples Services Directorate,Hired Peoples Transport (Children),E072,,
http://opendatacommunities.org/id/london-borough-council/sutton,London Borough of Sutton,30/11/2017,1248365,"6,034.00",Brunswick Cars 9761/1961276/Loc09,10611,Peoples Services Directorate,Hired Peoples Transport (Children),E072,,
http://opendatacommunities.org/id/london-borough-council/sutton,London Borough of Sutton,30/11/2017,1248366,"3,885.00",Brunswick Cars 9761/1961276/Loc09,10611,Peoples Services Directorate,Hired Peoples Transport (Children),E072,,
http://opendatacommunities.org/id/london-borough-council/sutton,London Borough of Sutton,30/11/2017,1248367,"3,278.00",Brunswick Cars 9761/1961276/Loc09,10611,Peoples Services Directorate,Hired Peoples Transport (Children),E072,,
http://opendatacommunities.org/id/london-borough-council/sutton,London Borough of Sutton,30/11/2017,1248368,"2,486.00",Brunswick Cars 9761/1961276/Loc09,10611,Peoples Services Directorate,Hired Peoples Transport (Children),E072,,
http://opendatacommunities.org/id/london-borough-council/sutton,London Borough of Sutton,30/11/2017,1248369,"3,630.00",Brunswick Cars 9761/1961276/Loc09,10611,Peoples Services Directorate,Hired Peoples Transport (Children),E072,,
http://opendatacommunities.org/id/london-borough-council/sutton,London Borough of Sutton,30/11/2017,1248370,"7,821.00",Brunswick Cars 9761/1961276/Loc09,10611,Peoples Services Directorate,Hired Peoples Transport (Children),E072,,
http://opendatacommunities.org/id/london-borough-council/sutton,London Borough of Sutton,30/11/2017,1248371,"4,746.00",Brunswick Cars 9761/1961276/Loc09,10611,Peoples Services Directorate,Hired Peoples Transport (Children),E072,,
http://opendatacommunities.org/id/london-borough-council/sutton,London Borough of Sutton,30/11/2017,1248372,"4,972.00",Brunswick Cars 9761/1961276/Loc09,10611,Peoples Services Directorate,Hired Peoples Transport (Children),E072,,
http://opendatacommunities.org/id/london-borough-council/sutton,London Borough of Sutton,03/01/2018,6923836,"63,153.11",Built Off-Site Ltd,28510,Peoples Services Directorate,Building Works -Main Contractor,Y350,,
http://opendatacommunities.org/id/london-borough-council/sutton,London Borough of Sutton,31/12/2017,6923802,"1,302.00",Buller Hotel,23493,"Environment, Housing & Regeneration Directorate",Bed and Breakfast Accommodation,G400,,
http://opendatacommunities.org/id/london-borough-council/sutton,London Borough of Sutton,31/12/2017,6923803,"1,085.00",Buller Hotel,23493,"Environment, Housing & Regeneration Directorate",Bed and Breakfast Accommodation,G400,,
http://opendatacommunities.org/id/london-borough-council/sutton,London Borough of Sutton,31/12/2017,6923806,"1,302.00",Buller Hotel,23493,"Environment, Housing & Regeneration Directorate",Bed and Breakfast Accommodation,G400,,
http://opendatacommunities.org/id/london-borough-council/sutton,London Borough of Sutton,31/12/2017,6923812,924,Buller Hotel,23493,"Environment, Housing & Regeneration Directorate",Bed and Breakfast Accommodation,G400,,
http://opendatacommunities.org/id/london-borough-council/sutton,London Borough of Sutton,31/12/2017,6923813,"1,085.00",Buller Hotel,23493,"Environment, Housing & Regeneration Directorate",Bed and Breakfast Accommodation,G400,,
http://opendatacommunities.org/id/london-borough-council/sutton,London Borough of Sutton,31/12/2017,6923814,"1,302.00",Buller Hotel,23493,"Environment, Housing & Regeneration Directorate",Bed and Breakfast Accommodation,G400,,
http://opendatacommunities.org/id/london-borough-council/sutton,London Borough of Sutton,31/12/2017,6923815,992,Buller Hotel,23493,"Environment, Housing & Regeneration Directorate",Bed and Breakfast Accommodation,G400,,
http://opendatacommunities.org/id/london-borough-council/sutton,London Borough of Sutton,31/12/2017,6923816,"1,085.00",Buller Hotel,23493,"Environment, Housing & Regeneration Directorate",Bed and Breakfast Accommodation,G400,,
http://opendatacommunities.org/id/london-borough-council/sutton,London Borough of Sutton,31/12/2017,6923817,"1,116.00",Buller Hotel,23493,"Environment, Housing & Regeneration Directorate",Bed and Breakfast Accommodation,G400,,
http://opendatacommunities.org/id/london-borough-council/sutton,London Borough of Sutton,15/01/2018,1248085,600,Bumpsa Daisies Nurserys,10727,Peoples Services Directorate,Non-Maintained Childrens' Nurseries - 2 Year Olds,G404,,
http://opendatacommunities.org/id/london-borough-council/sutton,London Borough of Sutton,15/01/2018,1248103,600,Bumpsa Daisies Nurserys,10727,Peoples Services Directorate,Non-Maintained Childrens' Nurseries - 3 & 4 yr olds,G405,,
http://opendatacommunities.org/id/london-borough-council/sutton,London Borough of Sutton,22/01/2018,1248387,"3,647.70",Bumpsa Daisies Nurserys,10727,Peoples Services Directorate,Non-Maintained Childrens' Nurseries - 2 Year Olds,G404,,
http://opendatacommunities.org/id/london-borough-council/sutton,London Borough of Sutton,22/01/2018,1248447,"25,563.63",Bumpsa Daisies Nurserys,10727,Peoples Services Directorate,Non-Maintained Childrens' Nurseries - 3 & 4 yr olds,G405,,
http://opendatacommunities.org/id/london-borough-council/sutton,London Borough of Sutton,28/12/2017,6922571,448.54,Bunzl Catering Supplies,10706,Peoples Services Directorate,Refreshments,F155,,
http://opendatacommunities.org/id/london-borough-council/sutton,London Borough of Sutton,04/01/2018,40146217,"3,436.00",Bupa Care Services,10175,Peoples Services Directorate,Nursing Care - Ext Provider,G311,,
http://opendatacommunities.org/id/london-borough-council/sutton,London Borough of Sutton,04/01/2018,40146234,"1,971.80",Bupa Care Services,10175,Peoples Services Directorate,Nursing Care - Ext Provider,G311,,
http://opendatacommunities.org/id/london-borough-council/sutton,London Borough of Sutton,04/01/2018,40146548,"1,868.00",Bupa Care Services,10175,Peoples Services Directorate,Residential Care - Ext Provider,G310,,
http://opendatacommunities.org/id/london-borough-council/sutton,London Borough of Sutton,26/01/2018,40154509,"3,436.00",Bupa Care Services,10175,Peoples Services Directorate,Nursing Care - Ext Provider,G311,,
http://opendatacommunities.org/id/london-borough-council/sutton,London Borough of Sutton,04/01/2018,40146197,"2,439.56",Burlington Nursing Home Ltd,19236,Peoples Services Directorate,Nursing Care - Ext Provider,G311,,
http://opendatacommunities.org/id/london-borough-council/sutton,London Borough of Sutton,26/01/2018,40154233,"2,439.56",Burlington Nursing Home Ltd,19236,Peoples Services Directorate,Nursing Care - Ext Provider,G311,,
http://opendatacommunities.org/id/london-borough-council/sutton,London Borough of Sutton,15/01/2018,1248086,"1,200.00",Busy Bees Day Nurseries Ltd - Cheam,24079,Peoples Services Directorate,Non-Maintained Childrens' Nurseries - 2 Year Olds,G404,,
http://opendatacommunities.org/id/london-borough-council/sutton,London Borough of Sutton,22/01/2018,1248389,521.1,Busy Bees Day Nurseries Ltd - Cheam,24079,Peoples Services Directorate,Non-Maintained Childrens' Nurseries - 2 Year Olds,G404,,
http://opendatacommunities.org/id/london-borough-council/sutton,London Borough of Sutton,22/01/2018,1248449,"37,919.88",Busy Bees Day Nurseries Ltd - Cheam,24079,Peoples Services Directorate,Non-Maintained Childrens' Nurseries - 3 & 4 yr olds,G405,,
http://opendatacommunities.org/id/london-borough-council/sutton,London Borough of Sutton,15/01/2018,1248104,600,Busy Bees Day Nursery at Carshalton,24082,Peoples Services Directorate,Non-Maintained Childrens' Nurseries - 3 & 4 yr olds,G405,,
http://opendatacommunities.org/id/london-borough-council/sutton,London Borough of Sutton,22/01/2018,1248388,521.1,Busy Bees Day Nursery at Carshalton,24082,Peoples Services Directorate,Non-Maintained Childrens' Nurseries - 2 Year Olds,G404,,
http://opendatacommunities.org/id/london-borough-council/sutton,London Borough of Sutton,22/01/2018,1248448,"31,575.00",Busy Bees Day Nursery at Carshalton,24082,Peoples Services Directorate,Non-Maintained Childrens' Nurseries - 3 & 4 yr olds,G405,,
http://opendatacommunities.org/id/london-borough-council/sutton,London Borough of Sutton,04/01/2018,40146409,"7,824.28",Butterfly's Care Homes Ltd,28860,Peoples Services Directorate,Residential Care - Ext Provider,G310,,
http://opendatacommunities.org/id/london-borough-council/sutton,London Borough of Sutton,26/01/2018,40154312,"7,824.28",Butterfly's Care Homes Ltd,28860,Peoples Services Directorate,Residential Care - Ext Provider,G310,,
http://opendatacommunities.org/id/london-borough-council/sutton,London Borough of Sutton,01/12/2017,40146783,"4,711.38",By The Bridge Ltd,25655,Peoples Services Directorate,Foster Parents,G326,,
http://opendatacommunities.org/id/london-borough-council/sutton,London Borough of Sutton,01/12/2017,40146784,"3,912.86",By The Bridge Ltd,25655,Peoples Services Directorate,Foster Parents,G326,,
http://opendatacommunities.org/id/london-borough-council/sutton,London Borough of Sutton,01/12/2017,40146785,"3,912.86",By The Bridge Ltd,25655,Peoples Services Directorate,Foster Parents,G326,,
http://opendatacommunities.org/id/london-borough-council/sutton,London Borough of Sutton,01/12/2017,40146786,"4,388.05",By The Bridge Ltd,25655,Peoples Services Directorate,Foster Parents,G326,,
http://opendatacommunities.org/id/london-borough-council/sutton,London Borough of Sutton,01/12/2017,40146787,"4,749.42",By The Bridge Ltd,25655,Peoples Services Directorate,Foster Parents,G326,,
http://opendatacommunities.org/id/london-borough-council/sutton,London Borough of Sutton,22/09/2017,6922846,"2,600.00",C G Dyke T/A Stripe Social Work Consulting Ltd,28543,Peoples Services Directorate,Children Assessments,G329,,
http://opendatacommunities.org/id/london-borough-council/sutton,London Borough of Sutton,01/12/2017,40146696,"4,428.66",Caldecott Fostering Ltd,26730,Peoples Services Directorate,Foster Parents,G326,,
http://opendatacommunities.org/id/london-borough-council/sutton,London Borough of Sutton,31/12/2017,6922852,"8,000.00",Callcredit Ltd,29066,Resources Directorate,Fees - Bailiffs,F302,,
http://opendatacommunities.org/id/london-borough-council/sutton,London Borough of Sutton,04/01/2018,40146519,"4,705.24",Cambian Asperger Syndrome Services Ltd,12082,Peoples Services Directorate,Residential Care - Ext Provider,G310,,
http://opendatacommunities.org/id/london-borough-council/sutton,London Borough of Sutton,04/01/2018,40146574,"70,000.00",Cambian Asperger Syndrome Services Ltd,12082,Peoples Services Directorate,One to One Care,G335,,
http://opendatacommunities.org/id/london-borough-council/sutton,London Borough of Sutton,26/01/2018,40154579,"4,705.24",Cambian Asperger Syndrome Services Ltd,12082,Peoples Services Directorate,Residential Care - Ext Provider,G310,,
http://opendatacommunities.org/id/london-borough-council/sutton,London Borough of Sutton,27/11/2017,40146690,"18,157.01",Cambian Childcare Ltd,26117,Peoples Services Directorate,Residential Care-Children,G330,,
http://opendatacommunities.org/id/london-borough-council/sutton,London Borough of Sutton,01/12/2017,40146691,"5,735.00",Capstone Foster Care (South East) Ltd,16360,Peoples Services Directorate,Foster Parents,G326,,
http://opendatacommunities.org/id/london-borough-council/sutton,London Borough of Sutton,01/12/2017,40146692,"5,739.34",Capstone Foster Care (South East) Ltd,16360,Peoples Services Directorate,Foster Parents,G326,,
http://opendatacommunities.org/id/london-borough-council/sutton,London Borough of Sutton,01/12/2017,40146693,"3,432.32",Capstone Foster Care (South East) Ltd,16360,Peoples Services Directorate,Foster Parents,G326,,
http://opendatacommunities.org/id/london-borough-council/sutton,London Borough of Sutton,01/12/2017,40146717,"22,142.99",Care 4 Children Residential Services Ltd,29992,Peoples Services Directorate,Residential Care-Children,G330,,
http://opendatacommunities.org/id/london-borough-council/sutton,London Borough of Sutton,04/01/2018,40146290,"2,267.40",Care Base(Redhill)Ltd t/a Acorn Court Care Home,24206,Peoples Services Directorate,Residential Care - Ext Provider,G310,,
http://opendatacommunities.org/id/london-borough-council/sutton,London Borough of Sutton,26/01/2018,40154419,"1,834.52",Care Base(Redhill)Ltd t/a Acorn Court Care Home,24206,Peoples Services Directorate,Residential Care - Ext Provider,G310,,
http://opendatacommunities.org/id/london-borough-council/sutton,London Borough of Sutton,04/01/2018,40146440,"3,053.24",Care Direct Uk Ltd  (David House),27080,Peoples Services Directorate,Residential Care - Ext Provider,G310,,
http://opendatacommunities.org/id/london-borough-council/sutton,London Borough of Sutton,04/01/2018,40146521,"3,080.00",Care Direct Uk Ltd  (David House),27080,Peoples Services Directorate,Residential Care - Ext Provider,G310,,
http://opendatacommunities.org/id/london-borough-council/sutton,London Borough of Sutton,26/01/2018,40154343,"3,053.24",Care Direct Uk Ltd  (David House),27080,Peoples Services Directorate,Residential Care - Ext Provider,G310,,
http://opendatacommunities.org/id/london-borough-council/sutton,London Borough of Sutton,26/01/2018,40154581,"3,080.00",Care Direct Uk Ltd  (David House),27080,Peoples Services Directorate,Residential Care - Ext Provider,G310,,
http://opendatacommunities.org/id/london-borough-council/sutton,London Borough of Sutton,31/12/2017,6922680,"1,453.20",Care Monitoring 2000 Ltd,20716,Peoples Services Directorate,Telephones - Other Expenses,F373,,
http://opendatacommunities.org/id/london-borough-council/sutton,London Borough of Sutton,04/01/2018,40146237,"15,857.14",Care UK Homecare Ltd,10853,Peoples Services Directorate,Nursing Care - Ext Provider,G311,,
http://opendatacommunities.org/id/london-borough-council/sutton,London Borough of Sutton,04/01/2018,40146340,"3,800.00",Care UK Homecare Ltd,10853,Peoples Services Directorate,Nursing Care - Ext Provider,G311,,
http://opendatacommunities.org/id/london-borough-council/sutton,London Borough of Sutton,26/01/2018,40154527,"4,000.00",Care UK Homecare Ltd,10853,Peoples Services Directorate,Nursing Care - Ext Provider,G311,,
http://opendatacommunities.org/id/london-borough-council/sutton,London Borough of Sutton,26/01/2018,40154632,"3,800.00",Care UK Homecare Ltd,10853,Peoples Services Directorate,Nursing Care - Ext Provider,G311,,
http://opendatacommunities.org/id/london-borough-council/sutton,London Borough of Sutton,01/12/2017,40153920,"4,060.00",Care Unlimited Domcare Ltd,28906,Peoples Services Directorate,Supported Living - Ext Provider,G306,,
http://opendatacommunities.org/id/london-borough-council/sutton,London Borough of Sutton,01/12/2017,40153923,"4,732.00",Care Unlimited Domcare Ltd,28906,Peoples Services Directorate,Supported Living - Ext Provider,G306,,
http://opendatacommunities.org/id/london-borough-council/sutton,London Borough of Sutton,01/12/2017,40153929,"4,060.00",Care Unlimited Domcare Ltd,28906,Peoples Services Directorate,Supported Living - Ext Provider,G306,,
http://opendatacommunities.org/id/london-borough-council/sutton,London Borough of Sutton,01/12/2017,40153932,"4,060.00",Care Unlimited Domcare Ltd,28906,Peoples Services Directorate,Supported Living - Ext Provider,G306,,
http://opendatacommunities.org/id/london-borough-council/sutton,London Borough of Sutton,01/12/2017,40153933,"4,060.00",Care Unlimited Domcare Ltd,28906,Peoples Services Directorate,Supported Living - Ext Provider,G306,,
http://opendatacommunities.org/id/london-borough-council/sutton,London Borough of Sutton,01/12/2017,40153934,"4,060.00",Care Unlimited Domcare Ltd,28906,Peoples Services Directorate,Supported Living - Ext Provider,G306,,
http://opendatacommunities.org/id/london-borough-council/sutton,London Borough of Sutton,01/01/2018,40153943,"4,732.00",Care Unlimited Domcare Ltd,28906,Peoples Services Directorate,Supported Living - Ext Provider,G306,,
http://opendatacommunities.org/id/london-borough-council/sutton,London Borough of Sutton,04/01/2018,40146254,"1,692.00",Care Unlimited Group Ltd,10774,Peoples Services Directorate,Residential Care - Ext Provider,G310,,
http://opendatacommunities.org/id/london-borough-council/sutton,London Borough of Sutton,04/01/2018,40146420,"1,780.00",Care Unlimited Group Ltd,10774,Peoples Services Directorate,Residential Care - Ext Provider,G310,,
http://opendatacommunities.org/id/london-borough-council/sutton,London Borough of Sutton,04/01/2018,40146476,"2,550.00",Care Unlimited Group Ltd,10774,Peoples Services Directorate,Interim Placements - Ext Provider,G317,,
http://opendatacommunities.org/id/london-borough-council/sutton,London Borough of Sutton,26/01/2018,40154324,"1,780.00",Care Unlimited Group Ltd,10774,Peoples Services Directorate,Residential Care - Ext Provider,G310,,
http://opendatacommunities.org/id/london-borough-council/sutton,London Borough of Sutton,26/01/2018,40154582,546.43,Care Unlimited Group Ltd,10774,Peoples Services Directorate,Respite Care - Residential,G327,,
http://opendatacommunities.org/id/london-borough-council/sutton,London Borough of Sutton,26/01/2018,40154583,600,Care Unlimited Group Ltd,10774,Peoples Services Directorate,Respite Care - Residential,G327,,
http://opendatacommunities.org/id/london-borough-council/sutton,London Borough of Sutton,26/01/2018,40154615,"1,692.00",Care Unlimited Group Ltd,10774,Peoples Services Directorate,Residential Care - Ext Provider,G310,,
http://opendatacommunities.org/id/london-borough-council/sutton,London Borough of Sutton,31/12/2017,40146992,532.1,Caremark (Sutton),25541,Peoples Services Directorate,Home Care,G334,,
http://opendatacommunities.org/id/london-borough-council/sutton,London Borough of Sutton,31/12/2017,40146995,712.08,Caremark (Sutton),25541,Peoples Services Directorate,Home Care,G334,,
http://opendatacommunities.org/id/london-borough-council/sutton,London Borough of Sutton,31/12/2017,40147004,547.75,Caremark (Sutton),25541,Peoples Services Directorate,Home Care,G334,,
http://opendatacommunities.org/id/london-borough-council/sutton,London Borough of Sutton,17/12/2017,40147016,594.7,Caremark (Sutton),25541,Peoples Services Directorate,Home Care,G334,,
http://opendatacommunities.org/id/london-borough-council/sutton,London Borough of Sutton,17/12/2017,40147037,564.7,Caremark (Sutton),25541,Peoples Services Directorate,Home Care,G334,,
http://opendatacommunities.org/id/london-borough-council/sutton,London Borough of Sutton,17/12/2017,40147044,712.08,Caremark (Sutton),25541,Peoples Services Directorate,Home Care,G334,,
http://opendatacommunities.org/id/london-borough-council/sutton,London Borough of Sutton,31/12/2017,40147055,603.81,Caremark (Sutton),25541,Peoples Services Directorate,Home Care,G334,,
http://opendatacommunities.org/id/london-borough-council/sutton,London Borough of Sutton,17/12/2017,40147059,547.75,Caremark (Sutton),25541,Peoples Services Directorate,Home Care,G334,,
http://opendatacommunities.org/id/london-borough-council/sutton,London Borough of Sutton,17/12/2017,40147108,603.81,Caremark (Sutton),25541,Peoples Services Directorate,Home Care,G334,,
http://opendatacommunities.org/id/london-borough-council/sutton,London Borough of Sutton,31/12/2017,40147149,719.9,Caremark (Sutton),25541,Peoples Services Directorate,Home Care,G334,,
http://opendatacommunities.org/id/london-borough-council/sutton,London Borough of Sutton,24/12/2017,40147849,712.08,Caremark (Sutton),25541,Peoples Services Directorate,Home Care,G334,,
http://opendatacommunities.org/id/london-borough-council/sutton,London Borough of Sutton,24/12/2017,40147894,524.28,Caremark (Sutton),25541,Peoples Services Directorate,Home Care,G334,,
http://opendatacommunities.org/id/london-borough-council/sutton,London Borough of Sutton,24/12/2017,40147935,712.08,Caremark (Sutton),25541,Peoples Services Directorate,Home Care,G334,,
http://opendatacommunities.org/id/london-borough-council/sutton,London Borough of Sutton,24/12/2017,40147938,603.81,Caremark (Sutton),25541,Peoples Services Directorate,Home Care,G334,,
http://opendatacommunities.org/id/london-borough-council/sutton,London Borough of Sutton,24/12/2017,40148003,547.75,Caremark (Sutton),25541,Peoples Services Directorate,Home Care,G334,,
http://opendatacommunities.org/id/london-borough-council/sutton,London Borough of Sutton,07/01/2018,40149977,712.08,Caremark (Sutton),25541,Peoples Services Directorate,Home Care,G334,,
http://opendatacommunities.org/id/london-borough-council/sutton,London Borough of Sutton,07/01/2018,40149991,603.81,Caremark (Sutton),25541,Peoples Services Directorate,Home Care,G334,,
http://opendatacommunities.org/id/london-borough-council/sutton,London Borough of Sutton,07/01/2018,40149992,563.4,Caremark (Sutton),25541,Peoples Services Directorate,Home Care,G334,,
http://opendatacommunities.org/id/london-borough-council/sutton,London Borough of Sutton,07/01/2018,40150002,712.08,Caremark (Sutton),25541,Peoples Services Directorate,Home Care,G334,,
http://opendatacommunities.org/id/london-borough-council/sutton,London Borough of Sutton,07/01/2018,40150013,547.75,Caremark (Sutton),25541,Peoples Services Directorate,Home Care,G334,,
http://opendatacommunities.org/id/london-borough-council/sutton,London Borough of Sutton,05/11/2017,40154727,602.53,Caremark (Sutton),25541,Peoples Services Directorate,Home Care,G334,,
http://opendatacommunities.org/id/london-borough-council/sutton,London Borough of Sutton,05/11/2017,40154769,712.08,Caremark (Sutton),25541,Peoples Services Directorate,Home Care,G334,,
http://opendatacommunities.org/id/london-borough-council/sutton,London Borough of Sutton,05/11/2017,40154792,766.85,Caremark (Sutton),25541,Peoples Services Directorate,Home Care,G334,,
http://opendatacommunities.org/id/london-borough-council/sutton,London Borough of Sutton,05/11/2017,40154795,547.75,Caremark (Sutton),25541,Peoples Services Directorate,Home Care,G334,,
http://opendatacommunities.org/id/london-borough-council/sutton,London Borough of Sutton,10/12/2017,40154905,684.69,Caremark (Sutton),25541,Peoples Services Directorate,Home Care,G334,,
http://opendatacommunities.org/id/london-borough-council/sutton,London Borough of Sutton,10/12/2017,40154913,571.23,Caremark (Sutton),25541,Peoples Services Directorate,Home Care,G334,,
http://opendatacommunities.org/id/london-borough-council/sutton,London Borough of Sutton,10/12/2017,40154918,712.08,Caremark (Sutton),25541,Peoples Services Directorate,Home Care,G334,,
http://opendatacommunities.org/id/london-borough-council/sutton,London Borough of Sutton,10/12/2017,40154920,766.85,Caremark (Sutton),25541,Peoples Services Directorate,Home Care,G334,,
http://opendatacommunities.org/id/london-borough-council/sutton,London Borough of Sutton,10/12/2017,40154921,547.75,Caremark (Sutton),25541,Peoples Services Directorate,Home Care,G334,,
http://opendatacommunities.org/id/london-borough-council/sutton,London Borough of Sutton,10/12/2017,40154967,603.81,Caremark (Sutton),25541,Peoples Services Directorate,Home Care,G334,,
http://opendatacommunities.org/id/london-borough-council/sutton,London Borough of Sutton,25/06/2017,40156314,579.05,Caremark (Sutton),25541,Peoples Services Directorate,Home Care,G334,,
http://opendatacommunities.org/id/london-borough-council/sutton,London Borough of Sutton,25/06/2017,40156317,602.53,Caremark (Sutton),25541,Peoples Services Directorate,Home Care,G334,,
http://opendatacommunities.org/id/london-borough-council/sutton,London Borough of Sutton,25/06/2017,40156319,602.53,Caremark (Sutton),25541,Peoples Services Directorate,Home Care,G334,,
http://opendatacommunities.org/id/london-borough-council/sutton,London Borough of Sutton,25/06/2017,40156321,492.98,Caremark (Sutton),25541,Peoples Services Directorate,Home Care,G334,,
http://opendatacommunities.org/id/london-borough-council/sutton,London Borough of Sutton,21/01/2018,40156368,712.08,Caremark (Sutton),25541,Peoples Services Directorate,Home Care,G334,,
http://opendatacommunities.org/id/london-borough-council/sutton,London Borough of Sutton,21/01/2018,40156416,571.23,Caremark (Sutton),25541,Peoples Services Directorate,Home Care,G334,,
http://opendatacommunities.org/id/london-borough-council/sutton,London Borough of Sutton,21/01/2018,40156427,712.08,Caremark (Sutton),25541,Peoples Services Directorate,Home Care,G334,,
http://opendatacommunities.org/id/london-borough-council/sutton,London Borough of Sutton,21/01/2018,40156468,547.75,Caremark (Sutton),25541,Peoples Services Directorate,Home Care,G334,,
http://opendatacommunities.org/id/london-borough-council/sutton,London Borough of Sutton,21/01/2018,40156585,603.81,Caremark (Sutton),25541,Peoples Services Directorate,Home Care,G334,,
http://opendatacommunities.org/id/london-borough-council/sutton,London Borough of Sutton,04/01/2018,40146265,"5,270.48",Caretech Community Services Ltd,10791,Peoples Services Directorate,Residential Care - Ext Provider,G310,,
http://opendatacommunities.org/id/london-borough-council/sutton,London Borough of Sutton,04/01/2018,40146267,"5,270.48",Caretech Community Services Ltd,10791,Peoples Services Directorate,Residential Care - Ext Provider,G310,,
http://opendatacommunities.org/id/london-borough-council/sutton,London Borough of Sutton,04/01/2018,40146514,"5,270.48",Caretech Community Services Ltd,10791,Peoples Services Directorate,Residential Care - Ext Provider,G310,,
http://opendatacommunities.org/id/london-borough-council/sutton,London Borough of Sutton,04/01/2018,40146579,"5,405.88",Caretech Community Services Ltd,10791,Peoples Services Directorate,Residential Care - Ext Provider,G310,,
http://opendatacommunities.org/id/london-borough-council/sutton,London Borough of Sutton,01/12/2017,40153931,"2,092.50",Caretech Community Services Ltd,10791,Peoples Services Directorate,One to One Care,G335,,
http://opendatacommunities.org/id/london-borough-council/sutton,London Borough of Sutton,26/01/2018,40154475,"5,405.88",Caretech Community Services Ltd,10791,Peoples Services Directorate,Residential Care - Ext Provider,G310,,
http://opendatacommunities.org/id/london-borough-council/sutton,London Borough of Sutton,26/01/2018,40154575,"5,270.48",Caretech Community Services Ltd,10791,Peoples Services Directorate,Residential Care - Ext Provider,G310,,
http://opendatacommunities.org/id/london-borough-council/sutton,London Borough of Sutton,26/01/2018,40154626,"5,270.48",Caretech Community Services Ltd,10791,Peoples Services Directorate,Residential Care - Ext Provider,G310,,
http://opendatacommunities.org/id/london-borough-council/sutton,London Borough of Sutton,26/01/2018,40154628,"5,270.48",Caretech Community Services Ltd,10791,Peoples Services Directorate,Residential Care - Ext Provider,G310,,
http://opendatacommunities.org/id/london-borough-council/sutton,London Borough of Sutton,01/01/2018,1247401,"283,215.83",Carew Academy,25284,Peoples Services Directorate,Place Funding,G063,,
http://opendatacommunities.org/id/london-borough-council/sutton,London Borough of Sutton,01/01/2018,1247402,"20,025.00",Carew Academy,25284,Peoples Services Directorate,Top-up Funding,G064,,
http://opendatacommunities.org/id/london-borough-council/sutton,London Borough of Sutton,01/01/2018,1247403,"17,500.00",Carew Academy,25284,Peoples Services Directorate,Payments to Schools,G065,,
http://opendatacommunities.org/id/london-borough-council/sutton,London Borough of Sutton,04/01/2018,40146343,"2,625.28",Carlene House,10763,Peoples Services Directorate,Residential Care - Ext Provider,G310,,
http://opendatacommunities.org/id/london-borough-council/sutton,London Borough of Sutton,04/01/2018,40146437,"4,440.00",Carlene House,10763,Peoples Services Directorate,Residential Care - Ext Provider,G310,,
http://opendatacommunities.org/id/london-borough-council/sutton,London Borough of Sutton,04/01/2018,40146438,"2,630.60",Carlene House,10763,Peoples Services Directorate,Residential Care - Ext Provider,G310,,
http://opendatacommunities.org/id/london-borough-council/sutton,London Borough of Sutton,04/01/2018,40146439,"2,654.68",Carlene House,10763,Peoples Services Directorate,Residential Care - Ext Provider,G310,,
http://opendatacommunities.org/id/london-borough-council/sutton,London Borough of Sutton,04/01/2018,40146441,"2,740.64",Carlene House,10763,Peoples Services Directorate,Residential Care - Ext Provider,G310,,
http://opendatacommunities.org/id/london-borough-council/sutton,London Borough of Sutton,04/01/2018,40146474,"2,625.28",Carlene House,10763,Peoples Services Directorate,Residential Care - Ext Provider,G310,,
http://opendatacommunities.org/id/london-borough-council/sutton,London Borough of Sutton,04/01/2018,40146518,"2,682.68",Carlene House,10763,Peoples Services Directorate,Residential Care - Ext Provider,G310,,
http://opendatacommunities.org/id/london-borough-council/sutton,London Borough of Sutton,04/01/2018,40149516,"1,675.00",Carlene House,10763,Peoples Services Directorate,Supported Living - Ext Provider,G306,,
http://opendatacommunities.org/id/london-borough-council/sutton,London Borough of Sutton,04/01/2018,40149537,"1,675.00",Carlene House,10763,Peoples Services Directorate,Supported Living - Ext Provider,G306,,
http://opendatacommunities.org/id/london-borough-council/sutton,London Borough of Sutton,26/01/2018,40154340,"4,440.00",Carlene House,10763,Peoples Services Directorate,Residential Care - Ext Provider,G310,,
http://opendatacommunities.org/id/london-borough-council/sutton,London Borough of Sutton,26/01/2018,40154341,"2,630.60",Carlene House,10763,Peoples Services Directorate,Residential Care - Ext Provider,G310,,
http://opendatacommunities.org/id/london-borough-council/sutton,London Borough of Sutton,26/01/2018,40154342,"2,654.68",Carlene House,10763,Peoples Services Directorate,Residential Care - Ext Provider,G310,,
http://opendatacommunities.org/id/london-borough-council/sutton,London Borough of Sutton,26/01/2018,40154344,"2,740.64",Carlene House,10763,Peoples Services Directorate,Residential Care - Ext Provider,G310,,
http://opendatacommunities.org/id/london-borough-council/sutton,London Borough of Sutton,26/01/2018,40154440,"2,625.28",Carlene House,10763,Peoples Services Directorate,Residential Care - Ext Provider,G310,,
http://opendatacommunities.org/id/london-borough-council/sutton,London Borough of Sutton,26/01/2018,40154578,"2,682.68",Carlene House,10763,Peoples Services Directorate,Residential Care - Ext Provider,G310,,
http://opendatacommunities.org/id/london-borough-council/sutton,London Borough of Sutton,26/01/2018,40154635,"2,625.28",Carlene House,10763,Peoples Services Directorate,Residential Care - Ext Provider,G310,,
http://opendatacommunities.org/id/london-borough-council/sutton,London Borough of Sutton,22/01/2018,1248429,521.1,Carly-Jo Etherington-Stanbrook,25990,Peoples Services Directorate,Non-Maintained Childrens' Nurseries - 2 Year Olds,G404,,
http://opendatacommunities.org/id/london-borough-council/sutton,London Borough of Sutton,22/01/2018,1248504,"1,350.00",Carly-Jo Etherington-Stanbrook,25990,Peoples Services Directorate,Non-Maintained Childrens' Nurseries - 3 & 4 yr olds,G405,,
http://opendatacommunities.org/id/london-borough-council/sutton,London Borough of Sutton,22/01/2018,1248497,"1,686.15",Caroline Brown,27834,Peoples Services Directorate,Non-Maintained Childrens' Nurseries - 3 & 4 yr olds,G405,,
http://opendatacommunities.org/id/london-borough-council/sutton,London Borough of Sutton,01/01/2018,1247404,"12,204.17",Carshalton Boys Sports College (Academy),23984,Peoples Services Directorate,Top-up Funding,G064,,
http://opendatacommunities.org/id/london-borough-council/sutton,London Borough of Sutton,01/01/2018,1247405,"-2,550.00",Carshalton Boys Sports College (Academy),23984,Peoples Services Directorate,Top-up Funding,G064,,
http://opendatacommunities.org/id/london-borough-council/sutton,London Borough of Sutton,01/01/2018,1247406,"11,078.00",Carshalton High School for Girls (Academy),23995,Peoples Services Directorate,Top-up Funding,G064,,
http://opendatacommunities.org/id/london-borough-council/sutton,London Borough of Sutton,01/01/2018,1247407,"-4,228.33",Carshalton High School for Girls (Academy),23995,Peoples Services Directorate,Top-up Funding,G064,,
http://opendatacommunities.org/id/london-borough-council/sutton,London Borough of Sutton,15/12/2017,40146699,"3,475.66",Castle Homes Ltd,10759,Peoples Services Directorate,Residential Care-Children,G330,,
http://opendatacommunities.org/id/london-borough-council/sutton,London Borough of Sutton,15/01/2018,1248105,600,Caterpillars Day Nursery,28020,Peoples Services Directorate,Non-Maintained Childrens' Nurseries - 3 & 4 yr olds,G405,,
http://opendatacommunities.org/id/london-borough-council/sutton,London Borough of Sutton,22/01/2018,1248390,"4,168.80",Caterpillars Day Nursery,28020,Peoples Services Directorate,Non-Maintained Childrens' Nurseries - 2 Year Olds,G404,,
http://opendatacommunities.org/id/london-borough-council/sutton,London Borough of Sutton,22/01/2018,1248450,"31,113.50",Caterpillars Day Nursery,28020,Peoples Services Directorate,Non-Maintained Childrens' Nurseries - 3 & 4 yr olds,G405,,
http://opendatacommunities.org/id/london-borough-council/sutton,London Borough of Sutton,22/01/2018,1248528,450,Cathie McKnight Fagbohun,27116,Peoples Services Directorate,Non-Maintained Childrens' Nurseries - 3 & 4 yr olds,G405,,
http://opendatacommunities.org/id/london-borough-council/sutton,London Borough of Sutton,12/01/2018,6923367,"1,055.95",Caysh Enterprise Cic,28016,Peoples Services Directorate,Approved Lodgings,H323,,
http://opendatacommunities.org/id/london-borough-council/sutton,London Borough of Sutton,04/01/2018,6922794,484.49,Caysh Housing Project,23133,Peoples Services Directorate,Approved Lodgings,H323,,
http://opendatacommunities.org/id/london-borough-council/sutton,London Borough of Sutton,04/01/2018,6922795,"1,296.42",Caysh Housing Project,23133,Peoples Services Directorate,Approved Lodgings,H323,,
http://opendatacommunities.org/id/london-borough-council/sutton,London Borough of Sutton,04/01/2018,6922796,"1,240.31",Caysh Housing Project,23133,Peoples Services Directorate,Approved Lodgings,H323,,
http://opendatacommunities.org/id/london-borough-council/sutton,London Borough of Sutton,04/01/2018,6922797,"1,255.90",Caysh Housing Project,23133,Peoples Services Directorate,Approved Lodgings,H323,,
http://opendatacommunities.org/id/london-borough-council/sutton,London Borough of Sutton,04/01/2018,6922798,"1,229.77",Caysh Housing Project,23133,Peoples Services Directorate,Approved Lodgings,H323,,
http://opendatacommunities.org/id/london-borough-council/sutton,London Borough of Sutton,04/01/2018,6922799,"1,256.12",Caysh Housing Project,23133,Peoples Services Directorate,Approved Lodgings,H323,,
http://opendatacommunities.org/id/london-borough-council/sutton,London Borough of Sutton,04/01/2018,6922800,"1,256.12",Caysh Housing Project,23133,Peoples Services Directorate,Approved Lodgings,H323,,
http://opendatacommunities.org/id/london-borough-council/sutton,London Borough of Sutton,04/01/2018,6922801,"1,365.55",Caysh Housing Project,23133,Peoples Services Directorate,Approved Lodgings,H323,,
http://opendatacommunities.org/id/london-borough-council/sutton,London Borough of Sutton,04/01/2018,6922802,"1,296.42",Caysh Housing Project,23133,Peoples Services Directorate,Approved Lodgings,H323,,
http://opendatacommunities.org/id/london-borough-council/sutton,London Borough of Sutton,04/01/2018,6922803,"1,365.55",Caysh Housing Project,23133,Peoples Services Directorate,Approved Lodgings,H323,,
http://opendatacommunities.org/id/london-borough-council/sutton,London Borough of Sutton,04/01/2018,6922804,"1,296.42",Caysh Housing Project,23133,Peoples Services Directorate,Approved Lodgings,H323,,
http://opendatacommunities.org/id/london-borough-council/sutton,London Borough of Sutton,04/01/2018,6922831,"-1,200.30",Caysh Housing Project,23133,Peoples Services Directorate,Approved Lodgings,H323,,
http://opendatacommunities.org/id/london-borough-council/sutton,London Borough of Sutton,18/12/2017,6922641,"2,232.23",Central London Community Healthcare NHS Trust,29865,Chief Executive's Directorate,Provider Contract Payments,F470,,
http://opendatacommunities.org/id/london-borough-council/sutton,London Borough of Sutton,01/12/2017,40146708,"5,978.66",Channels & Choices Theraputic Fostering Ltd,25665,Peoples Services Directorate,Foster Parents,G326,,
http://opendatacommunities.org/id/london-borough-council/sutton,London Borough of Sutton,01/12/2017,40146709,"5,978.66",Channels & Choices Theraputic Fostering Ltd,25665,Peoples Services Directorate,Foster Parents,G326,,
http://opendatacommunities.org/id/london-borough-council/sutton,London Borough of Sutton,15/01/2018,1248087,600,Cheam Baptist Church Pre-School,10924,Peoples Services Directorate,Non-Maintained Childrens' Nurseries - 2 Year Olds,G404,,
http://opendatacommunities.org/id/london-borough-council/sutton,London Borough of Sutton,15/01/2018,1248106,800,Cheam Baptist Church Pre-School,10924,Peoples Services Directorate,Non-Maintained Childrens' Nurseries - 3 & 4 yr olds,G405,,
http://opendatacommunities.org/id/london-borough-council/sutton,London Borough of Sutton,22/01/2018,1248391,"1,893.33",Cheam Baptist Church Pre-School,10924,Peoples Services Directorate,Non-Maintained Childrens' Nurseries - 2 Year Olds,G404,,
http://opendatacommunities.org/id/london-borough-council/sutton,London Borough of Sutton,22/01/2018,1248451,"11,954.13",Cheam Baptist Church Pre-School,10924,Peoples Services Directorate,Non-Maintained Childrens' Nurseries - 3 & 4 yr olds,G405,,
http://opendatacommunities.org/id/london-borough-council/sutton,London Borough of Sutton,01/01/2018,1247408,"4,058.00",Cheam Common Infants,10936,Peoples Services Directorate,Top-up Funding,G064,,
http://opendatacommunities.org/id/london-borough-council/sutton,London Borough of Sutton,01/01/2018,1247409,"3,212.50",Cheam Common Junior Academy,28932,Peoples Services Directorate,Top-up Funding,G064,,
http://opendatacommunities.org/id/london-borough-council/sutton,London Borough of Sutton,09/01/2018,6923166,"1,700.00",Cheam Family Practice,10918,Chief Executive's Directorate,Provider Contract Payments,F470,,
http://opendatacommunities.org/id/london-borough-council/sutton,London Borough of Sutton,09/01/2018,6923167,550,Cheam Family Practice,10918,Chief Executive's Directorate,Provider Contract Payments,F470,,
http://opendatacommunities.org/id/london-borough-council/sutton,London Borough of Sutton,01/01/2018,1247411,"82,163.64",Cheam High School (Academy),23996,Peoples Services Directorate,Place Funding,G063,,
http://opendatacommunities.org/id/london-borough-council/sutton,London Borough of Sutton,01/01/2018,1247412,"7,854.50",Cheam High School (Academy),23996,Peoples Services Directorate,Top-up Funding,G064,,
http://opendatacommunities.org/id/london-borough-council/sutton,London Borough of Sutton,01/01/2018,1247412,"62,551.67",Cheam High School (Academy),23996,Peoples Services Directorate,Top-up Funding,G064,,
http://opendatacommunities.org/id/london-borough-council/sutton,London Borough of Sutton,16/01/2018,1248583,"1,015.00",Cheam High School (Academy),23996,Peoples Services Directorate,Special Educational Needs,G331,,
http://opendatacommunities.org/id/london-borough-council/sutton,London Borough of Sutton,01/01/2018,1247413,"9,800.00",Cheam Park Farm Primary School (LEO Academy Trust),23882,Peoples Services Directorate,Top-up Funding,G064,,
http://opendatacommunities.org/id/london-borough-council/sutton,London Borough of Sutton,23/12/2017,6923736,"350,000.00",Cheam Park Farm Primary School (LEO Academy Trust),23882,Peoples Services Directorate,Building Works -Main Contractor,Y350,,
http://opendatacommunities.org/id/london-borough-council/sutton,London Borough of Sutton,31/12/2017,1247823,"2,269.00",Cheam Station Cars,15604,Peoples Services Directorate,Hired Peoples Transport (Children),E072,,
http://opendatacommunities.org/id/london-borough-council/sutton,London Borough of Sutton,31/12/2017,1247824,736,Cheam Station Cars,15604,Peoples Services Directorate,Hired Peoples Transport (Children),E072,,
http://opendatacommunities.org/id/london-borough-council/sutton,London Borough of Sutton,31/12/2017,1247825,910,Cheam Station Cars,15604,Peoples Services Directorate,Hired Peoples Transport (Children),E072,,
http://opendatacommunities.org/id/london-borough-council/sutton,London Borough of Sutton,31/12/2017,1247826,540,Cheam Station Cars,15604,Peoples Services Directorate,Hired Peoples Transport (Children),E072,,
http://opendatacommunities.org/id/london-borough-council/sutton,London Borough of Sutton,31/12/2017,1247827,700,Cheam Station Cars,15604,Peoples Services Directorate,Hired Peoples Transport (Children),E072,,
http://opendatacommunities.org/id/london-borough-council/sutton,London Borough of Sutton,31/12/2017,1247828,"1,865.00",Cheam Station Cars,15604,Peoples Services Directorate,Hired Peoples Transport (Children),E072,,
http://opendatacommunities.org/id/london-borough-council/sutton,London Borough of Sutton,31/12/2017,1247829,560,Cheam Station Cars,15604,Peoples Services Directorate,Hired Peoples Transport (Children),E072,,
http://opendatacommunities.org/id/london-borough-council/sutton,London Borough of Sutton,31/12/2017,1247830,675,Cheam Station Cars,15604,Peoples Services Directorate,Hired Peoples Transport (Children),E072,,
http://opendatacommunities.org/id/london-borough-council/sutton,London Borough of Sutton,31/12/2017,1247831,490,Cheam Station Cars,15604,Peoples Services Directorate,Hired Peoples Transport (Children),E072,,
http://opendatacommunities.org/id/london-borough-council/sutton,London Borough of Sutton,31/12/2017,1247832,575,Cheam Station Cars,15604,Peoples Services Directorate,Hired Peoples Transport (Children),E072,,
http://opendatacommunities.org/id/london-borough-council/sutton,London Borough of Sutton,31/12/2017,1247833,420,Cheam Station Cars,15604,Peoples Services Directorate,Hired Peoples Transport (Children),E072,,
http://opendatacommunities.org/id/london-borough-council/sutton,London Borough of Sutton,31/12/2017,1247834,"1,624.00",Cheam Station Cars,15604,Peoples Services Directorate,Hired Peoples Transport (Children),E072,,
http://opendatacommunities.org/id/london-borough-council/sutton,London Borough of Sutton,31/12/2017,1247835,450,Cheam Station Cars,15604,Peoples Services Directorate,Hired Peoples Transport (Children),E072,,
http://opendatacommunities.org/id/london-borough-council/sutton,London Borough of Sutton,31/12/2017,1247837,"1,976.00",Cheam Station Cars,15604,Peoples Services Directorate,Hired Peoples Transport (Children),E072,,
http://opendatacommunities.org/id/london-borough-council/sutton,London Borough of Sutton,31/12/2017,1247838,"1,170.00",Cheam Station Cars,15604,Peoples Services Directorate,Hired Peoples Transport (Children),E072,,
http://opendatacommunities.org/id/london-borough-council/sutton,London Borough of Sutton,31/12/2017,1247839,772,Cheam Station Cars,15604,Peoples Services Directorate,Hired Peoples Transport (Children),E072,,
http://opendatacommunities.org/id/london-borough-council/sutton,London Borough of Sutton,31/12/2017,1247840,"2,210.00",Cheam Station Cars,15604,Peoples Services Directorate,Hired Peoples Transport (Children),E072,,
http://opendatacommunities.org/id/london-borough-council/sutton,London Borough of Sutton,31/12/2017,1247841,840,Cheam Station Cars,15604,Peoples Services Directorate,Hired Peoples Transport (Children),E072,,
http://opendatacommunities.org/id/london-borough-council/sutton,London Borough of Sutton,31/12/2017,1247842,972,Cheam Station Cars,15604,Peoples Services Directorate,Hired Peoples Transport (Children),E072,,
http://opendatacommunities.org/id/london-borough-council/sutton,London Borough of Sutton,31/12/2017,1247843,"2,184.00",Cheam Station Cars,15604,Peoples Services Directorate,Hired Peoples Transport (Children),E072,,
http://opendatacommunities.org/id/london-borough-council/sutton,London Borough of Sutton,31/12/2017,1247844,"1,023.00",Cheam Station Cars,15604,Peoples Services Directorate,Hired Peoples Transport (Children),E072,,
http://opendatacommunities.org/id/london-borough-council/sutton,London Borough of Sutton,31/12/2017,1247845,"2,100.00",Cheam Station Cars,15604,Peoples Services Directorate,Hired Peoples Transport (Children),E072,,
http://opendatacommunities.org/id/london-borough-council/sutton,London Borough of Sutton,31/12/2017,1247846,"1,430.00",Cheam Station Cars,15604,Peoples Services Directorate,Hired Peoples Transport (Children),E072,,
http://opendatacommunities.org/id/london-borough-council/sutton,London Borough of Sutton,31/12/2017,1247847,960,Cheam Station Cars,15604,Peoples Services Directorate,Hired Peoples Transport (Children),E072,,
http://opendatacommunities.org/id/london-borough-council/sutton,London Borough of Sutton,31/12/2017,1247871,"2,470.00",Cheam Station Cars,15604,Peoples Services Directorate,Hired Peoples Transport (Children),E072,,
http://opendatacommunities.org/id/london-borough-council/sutton,London Borough of Sutton,31/12/2017,1247882,575,Cheam Station Cars,15604,Peoples Services Directorate,Hired Peoples Transport (Children),E072,,
http://opendatacommunities.org/id/london-borough-council/sutton,London Borough of Sutton,04/01/2018,40146236,"3,200.00",Chegworth Nursing Home Bayswift Ltd,10908,Peoples Services Directorate,Nursing Care - Ext Provider,G311,,
http://opendatacommunities.org/id/london-borough-council/sutton,London Borough of Sutton,04/01/2018,40146303,"1,928.24",Chegworth Nursing Home Bayswift Ltd,10908,Peoples Services Directorate,Nursing Care - Ext Provider,G311,,
http://opendatacommunities.org/id/london-borough-council/sutton,London Borough of Sutton,04/01/2018,40146339,"3,400.00",Chegworth Nursing Home Bayswift Ltd,10908,Peoples Services Directorate,Nursing Care - Ext Provider,G311,,
http://opendatacommunities.org/id/london-borough-council/sutton,London Borough of Sutton,04/01/2018,40146436,"3,400.00",Chegworth Nursing Home Bayswift Ltd,10908,Peoples Services Directorate,Nursing Care - Ext Provider,G311,,
http://opendatacommunities.org/id/london-borough-council/sutton,London Borough of Sutton,04/01/2018,40146470,"2,781.64",Chegworth Nursing Home Bayswift Ltd,10908,Peoples Services Directorate,Nursing Care - Ext Provider,G311,,
http://opendatacommunities.org/id/london-borough-council/sutton,London Borough of Sutton,04/01/2018,40146582,"1,904.00",Chegworth Nursing Home Bayswift Ltd,10908,Peoples Services Directorate,Nursing Care - Ext Provider,G311,,
http://opendatacommunities.org/id/london-borough-council/sutton,London Borough of Sutton,26/01/2018,40154339,"3,400.00",Chegworth Nursing Home Bayswift Ltd,10908,Peoples Services Directorate,Nursing Care - Ext Provider,G311,,
http://opendatacommunities.org/id/london-borough-council/sutton,London Borough of Sutton,26/01/2018,40154432,"1,928.24",Chegworth Nursing Home Bayswift Ltd,10908,Peoples Services Directorate,Nursing Care - Ext Provider,G311,,
http://opendatacommunities.org/id/london-borough-council/sutton,London Borough of Sutton,26/01/2018,40154434,"2,781.64",Chegworth Nursing Home Bayswift Ltd,10908,Peoples Services Directorate,Nursing Care - Ext Provider,G311,,
http://opendatacommunities.org/id/london-borough-council/sutton,London Borough of Sutton,26/01/2018,40154437,"17,728.57",Chegworth Nursing Home Bayswift Ltd,10908,Peoples Services Directorate,Nursing Care - Ext Provider,G311,,
http://opendatacommunities.org/id/london-borough-council/sutton,London Borough of Sutton,26/01/2018,40154478,"1,904.00",Chegworth Nursing Home Bayswift Ltd,10908,Peoples Services Directorate,Nursing Care - Ext Provider,G311,,
http://opendatacommunities.org/id/london-borough-council/sutton,London Borough of Sutton,26/01/2018,40154526,"3,200.00",Chegworth Nursing Home Bayswift Ltd,10908,Peoples Services Directorate,Nursing Care - Ext Provider,G311,,
http://opendatacommunities.org/id/london-borough-council/sutton,London Borough of Sutton,26/01/2018,40154631,"3,400.00",Chegworth Nursing Home Bayswift Ltd,10908,Peoples Services Directorate,Nursing Care - Ext Provider,G311,,
http://opendatacommunities.org/id/london-borough-council/sutton,London Borough of Sutton,07/03/2017,6922704,"90,561.82",Chelsea and Westminster NHS ft,28891,Chief Executive's Directorate,Provider Contract Payments,F470,,
http://opendatacommunities.org/id/london-borough-council/sutton,London Borough of Sutton,01/01/2018,6923267,"9,513.61",Chelsea and Westminster NHS ft,28891,Chief Executive's Directorate,Provider Contract Payments,F470,,
http://opendatacommunities.org/id/london-borough-council/sutton,London Borough of Sutton,21/12/2017,6923268,"90,960.11",Chelsea and Westminster NHS ft,28891,Chief Executive's Directorate,Provider Contract Payments,F470,,
http://opendatacommunities.org/id/london-borough-council/sutton,London Borough of Sutton,21/12/2017,6923269,"92,406.21",Chelsea and Westminster NHS ft,28891,Chief Executive's Directorate,Provider Contract Payments,F470,,
http://opendatacommunities.org/id/london-borough-council/sutton,London Borough of Sutton,21/12/2017,6923306,"-2,962.82",Chelsea and Westminster NHS ft,28891,Chief Executive's Directorate,Provider Contract Payments,F470,,
http://opendatacommunities.org/id/london-borough-council/sutton,London Borough of Sutton,16/01/2018,6923581,939,Chelsea Studios Ltd,99898,"Environment, Housing & Regeneration Directorate",Depositors,X460,,
http://opendatacommunities.org/id/london-borough-council/sutton,London Borough of Sutton,16/01/2018,6923581,"3,000.00",Chelsea Studios Ltd,99898,"Environment, Housing & Regeneration Directorate",Depositors,X460,,
http://opendatacommunities.org/id/london-borough-council/sutton,London Borough of Sutton,19/01/2018,6923838,939,Chelsea Studios Ltd,99898,"Environment, Housing & Regeneration Directorate",Depositors,X460,,
http://opendatacommunities.org/id/london-borough-council/sutton,London Borough of Sutton,19/01/2018,6923838,"3,000.00",Chelsea Studios Ltd,99898,"Environment, Housing & Regeneration Directorate",Depositors,X460,,
http://opendatacommunities.org/id/london-borough-council/sutton,London Borough of Sutton,24/12/2017,40147068,"1,952.00",Chenash Homecare Specialists And Care Agency,25667,Peoples Services Directorate,Home Care,G334,,
http://opendatacommunities.org/id/london-borough-council/sutton,London Borough of Sutton,31/12/2017,40148022,"1,115.43",Chenash Homecare Specialists And Care Agency,25667,Peoples Services Directorate,Home Care,G334,,
http://opendatacommunities.org/id/london-borough-council/sutton,London Borough of Sutton,04/01/2018,40146329,"2,725.00",Cherry Lodge,10934,Peoples Services Directorate,Residential Care - Ext Provider,G310,,
http://opendatacommunities.org/id/london-borough-council/sutton,London Borough of Sutton,04/01/2018,40146348,"3,360.00",Cherry Lodge,10934,Peoples Services Directorate,Residential Care - Ext Provider,G310,,
http://opendatacommunities.org/id/london-borough-council/sutton,London Borough of Sutton,26/01/2018,40154555,"2,725.00",Cherry Lodge,10934,Peoples Services Directorate,Residential Care - Ext Provider,G310,,
http://opendatacommunities.org/id/london-borough-council/sutton,London Borough of Sutton,26/01/2018,40154640,"3,360.00",Cherry Lodge,10934,Peoples Services Directorate,Residential Care - Ext Provider,G310,,
http://opendatacommunities.org/id/london-borough-council/sutton,London Borough of Sutton,04/01/2018,40146381,"4,020.20",CHHG Ltd T/A Belmont House,29991,Peoples Services Directorate,Nursing Care - Ext Provider,G311,,
http://opendatacommunities.org/id/london-borough-council/sutton,London Borough of Sutton,26/01/2018,40154281,509.45,CHHG Ltd T/A Belmont House,29991,Peoples Services Directorate,Nursing Care - 3rd party top up payment,G360,,
http://opendatacommunities.org/id/london-borough-council/sutton,London Borough of Sutton,01/12/2017,40146694,"3,454.33",Children First Fostering Agency,21215,Peoples Services Directorate,Foster Parents,G326,,
http://opendatacommunities.org/id/london-borough-council/sutton,London Borough of Sutton,01/12/2017,40146695,"3,337.46",Children First Fostering Agency,21215,Peoples Services Directorate,Foster Parents,G326,,
http://opendatacommunities.org/id/london-borough-council/sutton,London Borough of Sutton,01/12/2017,40146737,"4,465.86",Children First Fostering Agency,21215,Peoples Services Directorate,Foster Parents,G326,,
http://opendatacommunities.org/id/london-borough-council/sutton,London Borough of Sutton,06/12/2017,40146734,"4,565.06",Children of All Nations,19625,Peoples Services Directorate,Foster Parents,G326,,
http://opendatacommunities.org/id/london-borough-council/sutton,London Borough of Sutton,05/01/2018,6922901,"3,558.80",Children of Colour,16870,Peoples Services Directorate,Approved Lodgings,H323,,
http://opendatacommunities.org/id/london-borough-council/sutton,London Borough of Sutton,01/12/2017,40146697,"3,558.80",Children of Colour,16870,Peoples Services Directorate,Foster Parents,G326,,
http://opendatacommunities.org/id/london-borough-council/sutton,London Borough of Sutton,01/12/2017,40146707,"3,385.20",Children of Colour,16870,Peoples Services Directorate,Foster Parents,G326,,
http://opendatacommunities.org/id/london-borough-council/sutton,London Borough of Sutton,01/12/2017,40146761,"2,994.60",Children of Colour,16870,Peoples Services Directorate,Foster Parents,G326,,
http://opendatacommunities.org/id/london-borough-council/sutton,London Borough of Sutton,22/01/2018,1248452,"5,579.38",Chiltern Day Nursery,10941,Peoples Services Directorate,Non-Maintained Childrens' Nurseries - 3 & 4 yr olds,G405,,
http://opendatacommunities.org/id/london-borough-council/sutton,London Borough of Sutton,04/01/2018,40146279,"7,511.00",Choice Care Group,22029,Peoples Services Directorate,Residential Care - Ext Provider,G310,,
http://opendatacommunities.org/id/london-borough-council/sutton,London Borough of Sutton,04/01/2018,40146458,"7,682.20",Choice Care Group,22029,Peoples Services Directorate,Residential Care - Ext Provider,G310,,
http://opendatacommunities.org/id/london-borough-council/sutton,London Borough of Sutton,04/10/2017,40149501,"1,240.00",Choice Care Group,22029,Peoples Services Directorate,Supported Living - Ext Provider,G306,,
http://opendatacommunities.org/id/london-borough-council/sutton,London Borough of Sutton,04/12/2017,40149502,"2,302.85",Choice Care Group,22029,Peoples Services Directorate,Supported Living - Ext Provider,G306,,
http://opendatacommunities.org/id/london-borough-council/sutton,London Borough of Sutton,02/11/2017,40149507,"1,200.00",Choice Care Group,22029,Peoples Services Directorate,Supported Living - Ext Provider,G306,,
http://opendatacommunities.org/id/london-borough-council/sutton,London Borough of Sutton,04/12/2017,40149510,"1,240.00",Choice Care Group,22029,Peoples Services Directorate,Supported Living - Ext Provider,G306,,
http://opendatacommunities.org/id/london-borough-council/sutton,London Borough of Sutton,26/01/2018,40154359,"7,682.20",Choice Care Group,22029,Peoples Services Directorate,Residential Care - Ext Provider,G310,,
http://opendatacommunities.org/id/london-borough-council/sutton,London Borough of Sutton,26/01/2018,40154411,"7,511.00",Choice Care Group,22029,Peoples Services Directorate,Residential Care - Ext Provider,G310,,
http://opendatacommunities.org/id/london-borough-council/sutton,London Borough of Sutton,01/12/2017,40149504,802.01,Choice Support,22320,Peoples Services Directorate,Supported Living - Ext Provider,G306,,
http://opendatacommunities.org/id/london-borough-council/sutton,London Borough of Sutton,01/12/2017,40149504,"5,166.73",Choice Support,22320,Peoples Services Directorate,Supported Living - Ext Provider,G306,,
http://opendatacommunities.org/id/london-borough-council/sutton,London Borough of Sutton,02/09/2017,40149505,650.5,Choice Support,22320,Peoples Services Directorate,Supported Living - Ext Provider,G306,,
http://opendatacommunities.org/id/london-borough-council/sutton,London Borough of Sutton,02/08/2017,40149506,"4,927.29",Choice Support,22320,Peoples Services Directorate,Supported Living - Ext Provider,G306,,
http://opendatacommunities.org/id/london-borough-council/sutton,London Borough of Sutton,01/11/2017,40149517,776.15,Choice Support,22320,Peoples Services Directorate,Supported Living - Ext Provider,G306,,
http://opendatacommunities.org/id/london-borough-council/sutton,London Borough of Sutton,01/11/2017,40149517,"5,000.05",Choice Support,22320,Peoples Services Directorate,Supported Living - Ext Provider,G306,,
http://opendatacommunities.org/id/london-borough-council/sutton,London Borough of Sutton,01/11/2017,40149518,776.15,Choice Support,22320,Peoples Services Directorate,Supported Living - Ext Provider,G306,,
http://opendatacommunities.org/id/london-borough-council/sutton,London Borough of Sutton,01/11/2017,40149518,"6,337.45",Choice Support,22320,Peoples Services Directorate,Supported Living - Ext Provider,G306,,
http://opendatacommunities.org/id/london-borough-council/sutton,London Borough of Sutton,01/11/2017,40149519,776.15,Choice Support,22320,Peoples Services Directorate,Supported Living - Ext Provider,G306,,
http://opendatacommunities.org/id/london-borough-council/sutton,London Borough of Sutton,01/11/2017,40149519,"5,117.95",Choice Support,22320,Peoples Services Directorate,Supported Living - Ext Provider,G306,,
http://opendatacommunities.org/id/london-borough-council/sutton,London Borough of Sutton,01/11/2017,40149520,776.15,Choice Support,22320,Peoples Services Directorate,Supported Living - Ext Provider,G306,,
http://opendatacommunities.org/id/london-borough-council/sutton,London Borough of Sutton,01/11/2017,40149520,"5,776.15",Choice Support,22320,Peoples Services Directorate,Supported Living - Ext Provider,G306,,
http://opendatacommunities.org/id/london-borough-council/sutton,London Borough of Sutton,01/11/2017,40149521,776.15,Choice Support,22320,Peoples Services Directorate,Supported Living - Ext Provider,G306,,
http://opendatacommunities.org/id/london-borough-council/sutton,London Borough of Sutton,01/11/2017,40149521,"4,584.25",Choice Support,22320,Peoples Services Directorate,Supported Living - Ext Provider,G306,,
http://opendatacommunities.org/id/london-borough-council/sutton,London Borough of Sutton,01/11/2017,40149522,776.15,Choice Support,22320,Peoples Services Directorate,Supported Living - Ext Provider,G306,,
http://opendatacommunities.org/id/london-borough-council/sutton,London Borough of Sutton,01/11/2017,40149522,"5,346.55",Choice Support,22320,Peoples Services Directorate,Supported Living - Ext Provider,G306,,
http://opendatacommunities.org/id/london-borough-council/sutton,London Borough of Sutton,01/11/2017,40149523,776.15,Choice Support,22320,Peoples Services Directorate,Supported Living - Ext Provider,G306,,
http://opendatacommunities.org/id/london-borough-council/sutton,London Borough of Sutton,01/11/2017,40149523,"5,006.95",Choice Support,22320,Peoples Services Directorate,Supported Living - Ext Provider,G306,,
http://opendatacommunities.org/id/london-borough-council/sutton,London Borough of Sutton,01/11/2017,40149524,776.15,Choice Support,22320,Peoples Services Directorate,Supported Living - Ext Provider,G306,,
http://opendatacommunities.org/id/london-borough-council/sutton,London Borough of Sutton,01/11/2017,40149524,"5,367.25",Choice Support,22320,Peoples Services Directorate,Supported Living - Ext Provider,G306,,
http://opendatacommunities.org/id/london-borough-council/sutton,London Borough of Sutton,01/11/2017,40149525,"3,292.03",Choice Support,22320,Peoples Services Directorate,Supported Living - Ext Provider,G306,,
http://opendatacommunities.org/id/london-borough-council/sutton,London Borough of Sutton,01/11/2017,40149525,554.4,Choice Support,22320,Peoples Services Directorate,Supported Living - Ext Provider,G306,,
http://opendatacommunities.org/id/london-borough-council/sutton,London Borough of Sutton,01/11/2017,40149525,"2,882.87",Choice Support,22320,Peoples Services Directorate,Supported Living - Ext Provider,G306,,
http://opendatacommunities.org/id/london-borough-council/sutton,London Borough of Sutton,01/11/2017,40149526,"2,587.20",Choice Support,22320,Peoples Services Directorate,Supported Living - Ext Provider,G306,,
http://opendatacommunities.org/id/london-borough-council/sutton,London Borough of Sutton,01/11/2017,40149526,554.4,Choice Support,22320,Peoples Services Directorate,Supported Living - Ext Provider,G306,,
http://opendatacommunities.org/id/london-borough-council/sutton,London Borough of Sutton,01/11/2017,40149526,"1,386.00",Choice Support,22320,Peoples Services Directorate,Supported Living - Ext Provider,G306,,
http://opendatacommunities.org/id/london-borough-council/sutton,London Borough of Sutton,01/11/2017,40149527,"1,559.27",Choice Support,22320,Peoples Services Directorate,Supported Living - Ext Provider,G306,,
http://opendatacommunities.org/id/london-borough-council/sutton,London Borough of Sutton,01/11/2017,40149527,554.4,Choice Support,22320,Peoples Services Directorate,Supported Living - Ext Provider,G306,,
http://opendatacommunities.org/id/london-borough-council/sutton,London Borough of Sutton,01/11/2017,40149527,"1,628.53",Choice Support,22320,Peoples Services Directorate,Supported Living - Ext Provider,G306,,
http://opendatacommunities.org/id/london-borough-council/sutton,London Borough of Sutton,01/11/2017,40149528,"2,148.30",Choice Support,22320,Peoples Services Directorate,Supported Living - Ext Provider,G306,,
http://opendatacommunities.org/id/london-borough-council/sutton,London Borough of Sutton,01/11/2017,40149528,554.4,Choice Support,22320,Peoples Services Directorate,Supported Living - Ext Provider,G306,,
http://opendatacommunities.org/id/london-borough-council/sutton,London Borough of Sutton,01/11/2017,40149528,"1,386.00",Choice Support,22320,Peoples Services Directorate,Supported Living - Ext Provider,G306,,
http://opendatacommunities.org/id/london-borough-council/sutton,London Borough of Sutton,01/11/2017,40149538,554.4,Choice Support,22320,Peoples Services Directorate,Supported Living - Ext Provider,G306,,
http://opendatacommunities.org/id/london-borough-council/sutton,London Borough of Sutton,01/11/2017,40149538,"3,963.90",Choice Support,22320,Peoples Services Directorate,Supported Living - Ext Provider,G306,,
http://opendatacommunities.org/id/london-borough-council/sutton,London Borough of Sutton,01/11/2017,40149539,"1,517.65",Choice Support,22320,Peoples Services Directorate,Supported Living - Ext Provider,G306,,
http://opendatacommunities.org/id/london-borough-council/sutton,London Borough of Sutton,01/11/2017,40149539,554.4,Choice Support,22320,Peoples Services Directorate,Supported Living - Ext Provider,G306,,
http://opendatacommunities.org/id/london-borough-council/sutton,London Borough of Sutton,01/11/2017,40149539,"1,836.35",Choice Support,22320,Peoples Services Directorate,Supported Living - Ext Provider,G306,,
http://opendatacommunities.org/id/london-borough-council/sutton,London Borough of Sutton,01/11/2017,40149540,"1,261.33",Choice Support,22320,Peoples Services Directorate,Supported Living - Ext Provider,G306,,
http://opendatacommunities.org/id/london-borough-council/sutton,London Borough of Sutton,01/11/2017,40149540,554.4,Choice Support,22320,Peoples Services Directorate,Supported Living - Ext Provider,G306,,
http://opendatacommunities.org/id/london-borough-council/sutton,London Borough of Sutton,01/11/2017,40149540,"1,704.77",Choice Support,22320,Peoples Services Directorate,Supported Living - Ext Provider,G306,,
http://opendatacommunities.org/id/london-borough-council/sutton,London Borough of Sutton,01/12/2017,40149541,802.01,Choice Support,22320,Peoples Services Directorate,Supported Living - Ext Provider,G306,,
http://opendatacommunities.org/id/london-borough-council/sutton,London Borough of Sutton,01/12/2017,40149541,"6,548.71",Choice Support,22320,Peoples Services Directorate,Supported Living - Ext Provider,G306,,
http://opendatacommunities.org/id/london-borough-council/sutton,London Borough of Sutton,01/12/2017,40149542,802.01,Choice Support,22320,Peoples Services Directorate,Supported Living - Ext Provider,G306,,
http://opendatacommunities.org/id/london-borough-council/sutton,London Borough of Sutton,01/12/2017,40149542,"5,288.56",Choice Support,22320,Peoples Services Directorate,Supported Living - Ext Provider,G306,,
http://opendatacommunities.org/id/london-borough-council/sutton,London Borough of Sutton,01/12/2017,40149543,802.01,Choice Support,22320,Peoples Services Directorate,Supported Living - Ext Provider,G306,,
http://opendatacommunities.org/id/london-borough-council/sutton,London Borough of Sutton,01/12/2017,40149543,"5,968.70",Choice Support,22320,Peoples Services Directorate,Supported Living - Ext Provider,G306,,
http://opendatacommunities.org/id/london-borough-council/sutton,London Borough of Sutton,01/12/2017,40149544,802.01,Choice Support,22320,Peoples Services Directorate,Supported Living - Ext Provider,G306,,
http://opendatacommunities.org/id/london-borough-council/sutton,London Borough of Sutton,01/12/2017,40149544,"4,737.07",Choice Support,22320,Peoples Services Directorate,Supported Living - Ext Provider,G306,,
http://opendatacommunities.org/id/london-borough-council/sutton,London Borough of Sutton,01/12/2017,40149545,802.01,Choice Support,22320,Peoples Services Directorate,Supported Living - Ext Provider,G306,,
http://opendatacommunities.org/id/london-borough-council/sutton,London Borough of Sutton,01/12/2017,40149545,"5,524.78",Choice Support,22320,Peoples Services Directorate,Supported Living - Ext Provider,G306,,
http://opendatacommunities.org/id/london-borough-council/sutton,London Borough of Sutton,01/12/2017,40149546,802.01,Choice Support,22320,Peoples Services Directorate,Supported Living - Ext Provider,G306,,
http://opendatacommunities.org/id/london-borough-council/sutton,London Borough of Sutton,01/12/2017,40149546,"5,173.86",Choice Support,22320,Peoples Services Directorate,Supported Living - Ext Provider,G306,,
http://opendatacommunities.org/id/london-borough-council/sutton,London Borough of Sutton,01/12/2017,40149547,802.01,Choice Support,22320,Peoples Services Directorate,Supported Living - Ext Provider,G306,,
http://opendatacommunities.org/id/london-borough-council/sutton,London Borough of Sutton,01/12/2017,40149547,"5,546.17",Choice Support,22320,Peoples Services Directorate,Supported Living - Ext Provider,G306,,
http://opendatacommunities.org/id/london-borough-council/sutton,London Borough of Sutton,01/12/2017,40149548,"3,402.21",Choice Support,22320,Peoples Services Directorate,Supported Living - Ext Provider,G306,,
http://opendatacommunities.org/id/london-borough-council/sutton,London Borough of Sutton,01/12/2017,40149548,572.88,Choice Support,22320,Peoples Services Directorate,Supported Living - Ext Provider,G306,,
http://opendatacommunities.org/id/london-borough-council/sutton,London Borough of Sutton,01/12/2017,40149548,"2,978.52",Choice Support,22320,Peoples Services Directorate,Supported Living - Ext Provider,G306,,
http://opendatacommunities.org/id/london-borough-council/sutton,London Borough of Sutton,01/12/2017,40149549,"2,673.93",Choice Support,22320,Peoples Services Directorate,Supported Living - Ext Provider,G306,,
http://opendatacommunities.org/id/london-borough-council/sutton,London Borough of Sutton,01/12/2017,40149549,572.88,Choice Support,22320,Peoples Services Directorate,Supported Living - Ext Provider,G306,,
http://opendatacommunities.org/id/london-borough-council/sutton,London Borough of Sutton,01/12/2017,40149549,"1,431.71",Choice Support,22320,Peoples Services Directorate,Supported Living - Ext Provider,G306,,
http://opendatacommunities.org/id/london-borough-council/sutton,London Borough of Sutton,01/12/2017,40149550,"1,611.25",Choice Support,22320,Peoples Services Directorate,Supported Living - Ext Provider,G306,,
http://opendatacommunities.org/id/london-borough-council/sutton,London Borough of Sutton,01/12/2017,40149550,572.88,Choice Support,22320,Peoples Services Directorate,Supported Living - Ext Provider,G306,,
http://opendatacommunities.org/id/london-borough-council/sutton,London Borough of Sutton,01/12/2017,40149550,"1,682.81",Choice Support,22320,Peoples Services Directorate,Supported Living - Ext Provider,G306,,
http://opendatacommunities.org/id/london-borough-council/sutton,London Borough of Sutton,01/12/2017,40149551,"2,219.91",Choice Support,22320,Peoples Services Directorate,Supported Living - Ext Provider,G306,,
http://opendatacommunities.org/id/london-borough-council/sutton,London Borough of Sutton,01/12/2017,40149551,572.88,Choice Support,22320,Peoples Services Directorate,Supported Living - Ext Provider,G306,,
http://opendatacommunities.org/id/london-borough-council/sutton,London Borough of Sutton,01/12/2017,40149551,"1,432.20",Choice Support,22320,Peoples Services Directorate,Supported Living - Ext Provider,G306,,
http://opendatacommunities.org/id/london-borough-council/sutton,London Borough of Sutton,01/12/2017,40149552,572.88,Choice Support,22320,Peoples Services Directorate,Supported Living - Ext Provider,G306,,
http://opendatacommunities.org/id/london-borough-council/sutton,London Borough of Sutton,01/12/2017,40149552,"4,096.03",Choice Support,22320,Peoples Services Directorate,Supported Living - Ext Provider,G306,,
http://opendatacommunities.org/id/london-borough-council/sutton,London Borough of Sutton,01/12/2017,40149553,"1,568.25",Choice Support,22320,Peoples Services Directorate,Supported Living - Ext Provider,G306,,
http://opendatacommunities.org/id/london-borough-council/sutton,London Borough of Sutton,01/12/2017,40149553,572.88,Choice Support,22320,Peoples Services Directorate,Supported Living - Ext Provider,G306,,
http://opendatacommunities.org/id/london-borough-council/sutton,London Borough of Sutton,01/12/2017,40149553,"1,897.55",Choice Support,22320,Peoples Services Directorate,Supported Living - Ext Provider,G306,,
http://opendatacommunities.org/id/london-borough-council/sutton,London Borough of Sutton,01/12/2017,40149554,"1,303.28",Choice Support,22320,Peoples Services Directorate,Supported Living - Ext Provider,G306,,
http://opendatacommunities.org/id/london-borough-council/sutton,London Borough of Sutton,01/12/2017,40149554,572.88,Choice Support,22320,Peoples Services Directorate,Supported Living - Ext Provider,G306,,
http://opendatacommunities.org/id/london-borough-council/sutton,London Borough of Sutton,01/12/2017,40149554,"1,761.69",Choice Support,22320,Peoples Services Directorate,Supported Living - Ext Provider,G306,,
http://opendatacommunities.org/id/london-borough-council/sutton,London Borough of Sutton,04/01/2018,40146365,"3,000.00",Christchurch Fairmile Village Llp,27141,Peoples Services Directorate,Nursing Care - Ext Provider,G311,,
http://opendatacommunities.org/id/london-borough-council/sutton,London Borough of Sutton,26/01/2018,40154266,465.15,Christchurch Fairmile Village Llp,27141,Peoples Services Directorate,Nursing Care - 3rd party top up payment,G360,,
http://opendatacommunities.org/id/london-borough-council/sutton,London Borough of Sutton,15/01/2018,1248107,"1,200.00",Christchurch Fledgelings Pre-School,10896,Peoples Services Directorate,Non-Maintained Childrens' Nurseries - 3 & 4 yr olds,G405,,
http://opendatacommunities.org/id/london-borough-council/sutton,London Borough of Sutton,22/01/2018,1248392,"4,220.91",Christchurch Fledgelings Pre-School,10896,Peoples Services Directorate,Non-Maintained Childrens' Nurseries - 2 Year Olds,G404,,
http://opendatacommunities.org/id/london-borough-council/sutton,London Borough of Sutton,22/01/2018,1248453,"10,856.75",Christchurch Fledgelings Pre-School,10896,Peoples Services Directorate,Non-Maintained Childrens' Nurseries - 3 & 4 yr olds,G405,,
http://opendatacommunities.org/id/london-borough-council/sutton,London Borough of Sutton,22/01/2018,1248438,521.1,Christina Snowsill,26437,Peoples Services Directorate,Non-Maintained Childrens' Nurseries - 2 Year Olds,G404,,
http://opendatacommunities.org/id/london-borough-council/sutton,London Borough of Sutton,02/01/2018,6922638,"13,541.76",Chroma Vision Limited,20351,"Environment, Housing & Regeneration Directorate",IT Equipment - Repair and Maintenance,F382,,
http://opendatacommunities.org/id/london-borough-council/sutton,London Borough of Sutton,22/01/2018,40155742,500,CILIP,12656,Peoples Services Directorate,Books,F006,,
http://opendatacommunities.org/id/london-borough-council/sutton,London Borough of Sutton,01/12/2017,6921158,"120,245.75",Citizens Advice Bureau,10969,Chief Executive's Directorate,Provider Contract Payments,F470,,
http://opendatacommunities.org/id/london-borough-council/sutton,London Borough of Sutton,31/12/2017,6922773,"3,040.00",City Sprint UK (Excel) Ltd,26267,Peoples Services Directorate,Hired Vehicles,E070,,
http://opendatacommunities.org/id/london-borough-council/sutton,London Borough of Sutton,12/09/2017,6916418,"11,971.00",City Suburban Tree Surgeons,24817,"Environment, Housing & Regeneration Directorate",Emergency Repairs,D540,,
http://opendatacommunities.org/id/london-borough-council/sutton,London Borough of Sutton,07/11/2017,6919839,"1,493.00",City Suburban Tree Surgeons,24817,"Environment, Housing & Regeneration Directorate",Highway Trees - Maintenance,D560,,
http://opendatacommunities.org/id/london-borough-council/sutton,London Borough of Sutton,30/11/2017,6921059,"1,775.50",City Suburban Tree Surgeons,24817,"Environment, Housing & Regeneration Directorate",Highway Trees - Maintenance,D560,,
http://opendatacommunities.org/id/london-borough-council/sutton,London Borough of Sutton,29/01/2018,6924266,645.8,City Suburban Tree Surgeons,24817,"Environment, Housing & Regeneration Directorate",Emergency Repairs,D540,,
http://opendatacommunities.org/id/london-borough-council/sutton,London Borough of Sutton,29/01/2018,6924269,"1,871.62",City Suburban Tree Surgeons,24817,"Environment, Housing & Regeneration Directorate",Trees - SCH,D875,,
http://opendatacommunities.org/id/london-borough-council/sutton,London Borough of Sutton,01/01/2018,6923824,"12,789.00",Cityglen Ltd T/A Hytyme ltd,24115,"Environment, Housing & Regeneration Directorate",Bed and Breakfast Accommodation,G400,,
http://opendatacommunities.org/id/london-borough-council/sutton,London Borough of Sutton,18/10/2017,6923020,507.96,Civica UK Ltd,10978,"Environment, Housing & Regeneration Directorate",General Office Expenses,F235,,
http://opendatacommunities.org/id/london-borough-council/sutton,London Borough of Sutton,08/01/2018,6923188,"2,964.00",Civica UK Ltd,10978,Resources Directorate,Purchase of Software,F381,,
http://opendatacommunities.org/id/london-borough-council/sutton,London Borough of Sutton,08/01/2018,6923189,"1,025.00",Civica UK Ltd,10978,Resources Directorate,IT Licences,F385,,
http://opendatacommunities.org/id/london-borough-council/sutton,London Borough of Sutton,31/08/2017,6923782,"5,395.00",Civica UK Ltd,10978,"Environment, Housing & Regeneration Directorate",General Office Expenses,F235,,
http://opendatacommunities.org/id/london-borough-council/sutton,London Borough of Sutton,22/01/2018,6923850,"2,050.00",Civica UK Ltd,10978,Resources Directorate,IT Licences,F385,,
http://opendatacommunities.org/id/london-borough-council/sutton,London Borough of Sutton,22/01/2018,6923851,"15,000.00",Civica UK Ltd,10978,Resources Directorate,IT Licences,F385,,
http://opendatacommunities.org/id/london-borough-council/sutton,London Borough of Sutton,19/12/2017,6923934,"8,571.75",Civica UK Ltd,10978,Resources Directorate,Purchase of Software,F381,,
http://opendatacommunities.org/id/london-borough-council/sutton,London Borough of Sutton,19/12/2017,6923935,498.72,Civica UK Ltd,10978,Resources Directorate,Purchase of Software,F381,,
http://opendatacommunities.org/id/london-borough-council/sutton,London Borough of Sutton,19/12/2017,6923936,498.72,Civica UK Ltd,10978,Resources Directorate,Purchase of Software,F381,,
http://opendatacommunities.org/id/london-borough-council/sutton,London Borough of Sutton,19/12/2017,6923937,"8,571.75",Civica UK Ltd,10978,Resources Directorate,Purchase of Software,F381,,
http://opendatacommunities.org/id/london-borough-council/sutton,London Borough of Sutton,22/01/2018,1248527,450,Clare McEvilly,27124,Peoples Services Directorate,Non-Maintained Childrens' Nurseries - 3 & 4 yr olds,G405,,
http://opendatacommunities.org/id/london-borough-council/sutton,London Borough of Sutton,04/01/2018,40146306,"3,200.00",Claremont Care Svs Ltd,18724,Peoples Services Directorate,Interim Placements - Ext Provider,G317,,
http://opendatacommunities.org/id/london-borough-council/sutton,London Borough of Sutton,04/01/2018,40146313,"3,400.00",Claremont Care Svs Ltd,18724,Peoples Services Directorate,Nursing Care - Ext Provider,G311,,
http://opendatacommunities.org/id/london-borough-council/sutton,London Borough of Sutton,04/01/2018,40146352,"2,805.00",Claremont Care Svs Ltd,18724,Peoples Services Directorate,Nursing Care - Ext Provider,G311,,
http://opendatacommunities.org/id/london-borough-council/sutton,London Borough of Sutton,04/01/2018,40146353,"4,000.00",Claremont Care Svs Ltd,18724,Peoples Services Directorate,Nursing Care - Ext Provider,G311,,
http://opendatacommunities.org/id/london-borough-council/sutton,London Borough of Sutton,04/01/2018,40146451,"4,200.00",Claremont Care Svs Ltd,18724,Peoples Services Directorate,Nursing Care - Ext Provider,G311,,
http://opendatacommunities.org/id/london-borough-council/sutton,London Borough of Sutton,26/01/2018,40154351,"14,518.75",Claremont Care Svs Ltd,18724,Peoples Services Directorate,Nursing Care - Ext Provider,G311,,
http://opendatacommunities.org/id/london-borough-council/sutton,London Borough of Sutton,26/01/2018,40154352,"4,200.00",Claremont Care Svs Ltd,18724,Peoples Services Directorate,Nursing Care - Ext Provider,G311,,
http://opendatacommunities.org/id/london-borough-council/sutton,London Borough of Sutton,26/01/2018,40154531,"3,200.00",Claremont Care Svs Ltd,18724,Peoples Services Directorate,Interim Placements - Ext Provider,G317,,
http://opendatacommunities.org/id/london-borough-council/sutton,London Borough of Sutton,26/01/2018,40154539,"3,400.00",Claremont Care Svs Ltd,18724,Peoples Services Directorate,Nursing Care - Ext Provider,G311,,
http://opendatacommunities.org/id/london-borough-council/sutton,London Borough of Sutton,26/01/2018,40154644,"2,805.00",Claremont Care Svs Ltd,18724,Peoples Services Directorate,Nursing Care - Ext Provider,G311,,
http://opendatacommunities.org/id/london-borough-council/sutton,London Borough of Sutton,26/01/2018,40154645,"4,000.00",Claremont Care Svs Ltd,18724,Peoples Services Directorate,Nursing Care - Ext Provider,G311,,
http://opendatacommunities.org/id/london-borough-council/sutton,London Borough of Sutton,15/12/2017,1247929,"6,166.67",Clay Hill School Priory,29031,Peoples Services Directorate,Independent Schools,G325,,
http://opendatacommunities.org/id/london-borough-council/sutton,London Borough of Sutton,29/09/2017,6923325,"1,921.85",Click Netherfield Ltd,23314,"Environment, Housing & Regeneration Directorate",Equipment -General,Y520,,
http://opendatacommunities.org/id/london-borough-council/sutton,London Borough of Sutton,12/01/2018,6923674,"3,569.15",Click Netherfield Ltd,23314,"Environment, Housing & Regeneration Directorate",Equipment -General,Y520,,
http://opendatacommunities.org/id/london-borough-council/sutton,London Borough of Sutton,12/01/2018,6923675,"10,350.00",Click Netherfield Ltd,23314,Peoples Services Directorate,Repairs to Administrative Equipment,F030,,
http://opendatacommunities.org/id/london-borough-council/sutton,London Borough of Sutton,04/01/2018,40146256,"2,000.00",Cloyda Limited,20402,Peoples Services Directorate,Residential Care - Ext Provider,G310,,
http://opendatacommunities.org/id/london-borough-council/sutton,London Borough of Sutton,04/01/2018,40146373,"2,600.00",Cloyda Limited,20402,Peoples Services Directorate,Residential Care - Ext Provider,G310,,
http://opendatacommunities.org/id/london-borough-council/sutton,London Borough of Sutton,26/01/2018,40154274,"2,600.00",Cloyda Limited,20402,Peoples Services Directorate,Residential Care - Ext Provider,G310,,
http://opendatacommunities.org/id/london-borough-council/sutton,London Borough of Sutton,26/01/2018,40154617,"2,000.00",Cloyda Limited,20402,Peoples Services Directorate,Residential Care - Ext Provider,G310,,
http://opendatacommunities.org/id/london-borough-council/sutton,London Borough of Sutton,04/01/2018,40146286,"7,036.00",Cmg Homes Ltd,11026,Peoples Services Directorate,Residential Care - Ext Provider,G310,,
http://opendatacommunities.org/id/london-borough-council/sutton,London Borough of Sutton,04/01/2018,40146328,"5,416.92",Cmg Homes Ltd,11026,Peoples Services Directorate,Residential Care - Ext Provider,G310,,
http://opendatacommunities.org/id/london-borough-council/sutton,London Borough of Sutton,04/01/2018,40146595,"7,000.00",Cmg Homes Ltd,11026,Peoples Services Directorate,Residential Care - Ext Provider,G310,,
http://opendatacommunities.org/id/london-borough-council/sutton,London Borough of Sutton,10/01/2018,40148280,"4,682.64",Cmg Homes Ltd,11026,Peoples Services Directorate,Supported Living - Ext Provider,G306,,
http://opendatacommunities.org/id/london-borough-council/sutton,London Borough of Sutton,10/01/2018,40148287,"3,808.57",Cmg Homes Ltd,11026,Peoples Services Directorate,Supported Living - Ext Provider,G306,,
http://opendatacommunities.org/id/london-borough-council/sutton,London Borough of Sutton,10/01/2018,40148297,"4,592.43",Cmg Homes Ltd,11026,Peoples Services Directorate,Supported Living - Ext Provider,G306,,
http://opendatacommunities.org/id/london-borough-council/sutton,London Borough of Sutton,10/01/2018,40148311,"4,003.69",Cmg Homes Ltd,11026,Peoples Services Directorate,Supported Living - Ext Provider,G306,,
http://opendatacommunities.org/id/london-borough-council/sutton,London Borough of Sutton,25/01/2018,40153854,"3,162.00",Cmg Homes Ltd,11026,Peoples Services Directorate,Supported Living - Ext Provider,G306,,
http://opendatacommunities.org/id/london-borough-council/sutton,London Borough of Sutton,25/01/2018,40153860,"3,808.57",Cmg Homes Ltd,11026,Peoples Services Directorate,Supported Living - Ext Provider,G306,,
http://opendatacommunities.org/id/london-borough-council/sutton,London Borough of Sutton,25/01/2018,40153870,"4,592.43",Cmg Homes Ltd,11026,Peoples Services Directorate,Supported Living - Ext Provider,G306,,
http://opendatacommunities.org/id/london-borough-council/sutton,London Borough of Sutton,25/01/2018,40153883,"4,003.69",Cmg Homes Ltd,11026,Peoples Services Directorate,Supported Living - Ext Provider,G306,,
http://opendatacommunities.org/id/london-borough-council/sutton,London Borough of Sutton,26/01/2018,40154415,"7,036.00",Cmg Homes Ltd,11026,Peoples Services Directorate,Residential Care - Ext Provider,G310,,
http://opendatacommunities.org/id/london-borough-council/sutton,London Borough of Sutton,26/01/2018,40154490,"7,000.00",Cmg Homes Ltd,11026,Peoples Services Directorate,Residential Care - Ext Provider,G310,,
http://opendatacommunities.org/id/london-borough-council/sutton,London Borough of Sutton,26/01/2018,40154554,"5,416.92",Cmg Homes Ltd,11026,Peoples Services Directorate,Residential Care - Ext Provider,G310,,
http://opendatacommunities.org/id/london-borough-council/sutton,London Borough of Sutton,31/12/2017,6922854,"2,125.69",Cobalt Telephone Technologies,15645,"Environment, Housing & Regeneration Directorate",Credit Card Commission,F460,,
http://opendatacommunities.org/id/london-borough-council/sutton,London Borough of Sutton,10/01/2018,40148306,"3,764.29",Cognithan Ltd,29938,Peoples Services Directorate,Supported Living - Ext Provider,G306,,
http://opendatacommunities.org/id/london-borough-council/sutton,London Borough of Sutton,25/01/2018,40153878,"3,764.29",Cognithan Ltd,29938,Peoples Services Directorate,Supported Living - Ext Provider,G306,,
http://opendatacommunities.org/id/london-borough-council/sutton,London Borough of Sutton,22/12/2017,6923715,"15,000.00",Cognus Ltd,26829,Peoples Services Directorate,Contractual Consultant Fees,G430,,
http://opendatacommunities.org/id/london-borough-council/sutton,London Borough of Sutton,22/12/2017,6923716,"120,583.38",Cognus Ltd,26829,Peoples Services Directorate,Contractual Consultant Fees,G430,,
http://opendatacommunities.org/id/london-borough-council/sutton,London Borough of Sutton,31/10/2017,6923720,"351,166.62",Cognus Ltd,26829,Peoples Services Directorate,Contractual Consultant Fees,G430,,
http://opendatacommunities.org/id/london-borough-council/sutton,London Borough of Sutton,19/12/2017,1247922,"15,847.02",Coleg Elidyr Camphill Communities,28764,Peoples Services Directorate,Independent Schools,G325,,
http://opendatacommunities.org/id/london-borough-council/sutton,London Borough of Sutton,02/01/2018,1247923,"11,810.52",Coleg Elidyr Camphill Communities,28764,Peoples Services Directorate,Independent Schools,G325,,
http://opendatacommunities.org/id/london-borough-council/sutton,London Borough of Sutton,04/01/2018,40146449,"2,683.89",Coleg Elidyr Camphill Communities,28764,Peoples Services Directorate,Interim Placements - Ext Provider,G317,,
http://opendatacommunities.org/id/london-borough-council/sutton,London Borough of Sutton,26/01/2018,40154349,"4,954.87",Coleg Elidyr Camphill Communities,28764,Peoples Services Directorate,Interim Placements - Ext Provider,G317,,
http://opendatacommunities.org/id/london-borough-council/sutton,London Borough of Sutton,09/01/2018,6923126,"1,000.00",Colin Bull Properties,99898,"Environment, Housing & Regeneration Directorate",Depositors,X460,,
http://opendatacommunities.org/id/london-borough-council/sutton,London Borough of Sutton,09/01/2018,6923126,746,Colin Bull Properties,99898,"Environment, Housing & Regeneration Directorate",Depositors,X460,,
http://opendatacommunities.org/id/london-borough-council/sutton,London Borough of Sutton,27/12/2017,40146141,476,Community Home Care Provider,11097,Peoples Services Directorate,Home Care,G334,,
http://opendatacommunities.org/id/london-borough-council/sutton,London Borough of Sutton,27/12/2017,40146154,465.75,Community Home Care Provider,11097,Peoples Services Directorate,Home Care,G334,,
http://opendatacommunities.org/id/london-borough-council/sutton,London Borough of Sutton,15/01/2018,40152959,567,Community Home Care Provider,11097,Peoples Services Directorate,Home Care,G334,,
http://opendatacommunities.org/id/london-borough-council/sutton,London Borough of Sutton,15/01/2018,40152960,476,Community Home Care Provider,11097,Peoples Services Directorate,Home Care,G334,,
http://opendatacommunities.org/id/london-borough-council/sutton,London Borough of Sutton,15/01/2018,40152964,567,Community Home Care Provider,11097,Peoples Services Directorate,Home Care,G334,,
http://opendatacommunities.org/id/london-borough-council/sutton,London Borough of Sutton,15/01/2018,40152970,459,Community Home Care Provider,11097,Peoples Services Directorate,Home Care,G334,,
http://opendatacommunities.org/id/london-borough-council/sutton,London Borough of Sutton,15/01/2018,40152979,537.75,Community Home Care Provider,11097,Peoples Services Directorate,Home Care,G334,,
http://opendatacommunities.org/id/london-borough-council/sutton,London Borough of Sutton,15/01/2018,40153126,465.75,Community Home Care Provider,11097,Peoples Services Directorate,Home Care,G334,,
http://opendatacommunities.org/id/london-borough-council/sutton,London Borough of Sutton,22/01/2018,40154662,567,Community Home Care Provider,11097,Peoples Services Directorate,Home Care,G334,,
http://opendatacommunities.org/id/london-borough-council/sutton,London Borough of Sutton,22/01/2018,40154663,476,Community Home Care Provider,11097,Peoples Services Directorate,Home Care,G334,,
http://opendatacommunities.org/id/london-borough-council/sutton,London Borough of Sutton,22/01/2018,40154672,472.5,Community Home Care Provider,11097,Peoples Services Directorate,Home Care,G334,,
http://opendatacommunities.org/id/london-borough-council/sutton,London Borough of Sutton,01/12/2017,40146718,"3,675.67",Compass Fostering London Ltd,25848,Peoples Services Directorate,Foster Parents,G326,,
http://opendatacommunities.org/id/london-borough-council/sutton,London Borough of Sutton,01/12/2017,40146719,"3,172.23",Compass Fostering London Ltd,25848,Peoples Services Directorate,Foster Parents,G326,,
http://opendatacommunities.org/id/london-borough-council/sutton,London Borough of Sutton,01/12/2017,40146720,"3,272.67",Compass Fostering London Ltd,25848,Peoples Services Directorate,Foster Parents,G326,,
http://opendatacommunities.org/id/london-borough-council/sutton,London Borough of Sutton,31/05/2017,6910873,"1,400.30",Compass Fostering South Ltd,27957,Peoples Services Directorate,Fees - Consultants (Ad Hoc),F283,,
http://opendatacommunities.org/id/london-borough-council/sutton,London Borough of Sutton,22/01/2018,1248428,521.1,Connie GBetuwa,99338,Peoples Services Directorate,Non-Maintained Childrens' Nurseries - 2 Year Olds,G404,,
http://opendatacommunities.org/id/london-borough-council/sutton,London Borough of Sutton,22/01/2018,1248500,"1,439.75",Connie GBetuwa,99338,Peoples Services Directorate,Non-Maintained Childrens' Nurseries - 3 & 4 yr olds,G405,,
http://opendatacommunities.org/id/london-borough-council/sutton,London Borough of Sutton,26/01/2018,6924311,"1,020.00",Consult54 Ltd,26814,"Environment, Housing & Regeneration Directorate",Fees - Consultants (Ad Hoc),F283,,
http://opendatacommunities.org/id/london-borough-council/sutton,London Borough of Sutton,25/01/2018,6924179,"1,302.26",Contract Security Services,23827,Chief Executive's Directorate,General Office Expenses,F235,,
http://opendatacommunities.org/id/london-borough-council/sutton,London Borough of Sutton,15/01/2018,1248108,"1,200.00",Co-operative Childcare,24665,Peoples Services Directorate,Non-Maintained Childrens' Nurseries - 3 & 4 yr olds,G405,,
http://opendatacommunities.org/id/london-borough-council/sutton,London Borough of Sutton,22/01/2018,1248393,"4,168.80",Co-operative Childcare,24665,Peoples Services Directorate,Non-Maintained Childrens' Nurseries - 2 Year Olds,G404,,
http://opendatacommunities.org/id/london-borough-council/sutton,London Borough of Sutton,22/01/2018,1248454,"28,414.38",Co-operative Childcare,24665,Peoples Services Directorate,Non-Maintained Childrens' Nurseries - 3 & 4 yr olds,G405,,
http://opendatacommunities.org/id/london-borough-council/sutton,London Borough of Sutton,28/11/2017,6923347,"2,638.34",Core Assets Children's Services Ltd,27511,Peoples Services Directorate,Provider Contract Payments,F470,,
http://opendatacommunities.org/id/london-borough-council/sutton,London Borough of Sutton,01/12/2017,6923348,"6,908.26",Core Assets Children's Services Ltd,27511,Peoples Services Directorate,Provider Contract Payments,F470,,
http://opendatacommunities.org/id/london-borough-council/sutton,London Borough of Sutton,19/12/2017,6922708,700,Core Assets Expert Services LTD T/A Carter Brown,29709,Peoples Services Directorate,Training - Course Fees,A520,,
http://opendatacommunities.org/id/london-borough-council/sutton,London Borough of Sutton,24/11/2017,40146676,"13,728.66",Cornerways Childrens Services Ltd,18435,Peoples Services Directorate,Residential Care-Children,G330,,
http://opendatacommunities.org/id/london-borough-council/sutton,London Borough of Sutton,10/11/2017,40146677,"13,900.00",Cornerways Childrens Services Ltd,18435,Peoples Services Directorate,Residential Care-Children,G330,,
http://opendatacommunities.org/id/london-borough-council/sutton,London Borough of Sutton,01/12/2017,6922679,"166,565.17",Cranstoun,11184,Chief Executive's Directorate,Provider Contract Payments,F470,,
http://opendatacommunities.org/id/london-borough-council/sutton,London Borough of Sutton,01/01/2018,6922681,"166,565.17",Cranstoun,11184,Chief Executive's Directorate,Provider Contract Payments,F470,,
http://opendatacommunities.org/id/london-borough-council/sutton,London Borough of Sutton,15/12/2017,6922714,"1,922.00",Crest Manor Ltd,25469,Peoples Services Directorate,C.C.A Rent & Utilities,H211,,
http://opendatacommunities.org/id/london-borough-council/sutton,London Borough of Sutton,19/12/2017,6922758,"3,512.88",Crest Manor Ltd,25469,Peoples Services Directorate,Approved Lodgings,H323,,
http://opendatacommunities.org/id/london-borough-council/sutton,London Borough of Sutton,15/12/2017,6922759,770.28,Crest Manor Ltd,25469,Peoples Services Directorate,Approved Lodgings,H323,,
http://opendatacommunities.org/id/london-borough-council/sutton,London Borough of Sutton,15/12/2017,6922760,"1,645.00",Crest Manor Ltd,25469,Peoples Services Directorate,Approved Lodgings,H323,,
http://opendatacommunities.org/id/london-borough-council/sutton,London Borough of Sutton,15/12/2017,6922761,"1,275.00",Crest Manor Ltd,25469,Peoples Services Directorate,Approved Lodgings,H323,,
http://opendatacommunities.org/id/london-borough-council/sutton,London Borough of Sutton,15/12/2017,6922762,"2,363.00",Crest Manor Ltd,25469,Peoples Services Directorate,Approved Lodgings,H323,,
http://opendatacommunities.org/id/london-borough-council/sutton,London Borough of Sutton,15/12/2017,6922763,"1,695.00",Crest Manor Ltd,25469,Peoples Services Directorate,Approved Lodgings,H323,,
http://opendatacommunities.org/id/london-borough-council/sutton,London Borough of Sutton,15/12/2017,6922764,"1,695.00",Crest Manor Ltd,25469,Peoples Services Directorate,Approved Lodgings,H323,,
http://opendatacommunities.org/id/london-borough-council/sutton,London Borough of Sutton,15/12/2017,6922765,975,Crest Manor Ltd,25469,Peoples Services Directorate,Approved Lodgings,H323,,
http://opendatacommunities.org/id/london-borough-council/sutton,London Borough of Sutton,15/12/2017,6922766,"1,250.00",Crest Manor Ltd,25469,Peoples Services Directorate,Approved Lodgings,H323,,
http://opendatacommunities.org/id/london-borough-council/sutton,London Borough of Sutton,15/12/2017,6922769,"1,375.00",Crest Manor Ltd,25469,Peoples Services Directorate,Approved Lodgings,H323,,
http://opendatacommunities.org/id/london-borough-council/sutton,London Borough of Sutton,04/01/2018,40146276,"1,885.71",CRNH Ltd T/A St Judes Nursing Home,14297,Peoples Services Directorate,Nursing Care - Ext Provider,G311,,
http://opendatacommunities.org/id/london-borough-council/sutton,London Borough of Sutton,04/01/2018,40146321,"2,556.52",CRNH Ltd T/A St Judes Nursing Home,14297,Peoples Services Directorate,Nursing Care - Ext Provider,G311,,
http://opendatacommunities.org/id/london-borough-council/sutton,London Borough of Sutton,04/01/2018,40146401,"3,984.00",CRNH Ltd T/A St Judes Nursing Home,14297,Peoples Services Directorate,Nursing Care - Ext Provider,G311,,
http://opendatacommunities.org/id/london-borough-council/sutton,London Borough of Sutton,04/01/2018,40146402,"3,700.00",CRNH Ltd T/A St Judes Nursing Home,14297,Peoples Services Directorate,Nursing Care - Ext Provider,G311,,
http://opendatacommunities.org/id/london-borough-council/sutton,London Borough of Sutton,04/01/2018,40146599,"3,400.00",CRNH Ltd T/A St Judes Nursing Home,14297,Peoples Services Directorate,Nursing Care - Ext Provider,G311,,
http://opendatacommunities.org/id/london-borough-council/sutton,London Borough of Sutton,04/01/2018,40146600,"3,799.04",CRNH Ltd T/A St Judes Nursing Home,14297,Peoples Services Directorate,Nursing Care - Ext Provider,G311,,
http://opendatacommunities.org/id/london-borough-council/sutton,London Borough of Sutton,26/01/2018,40154303,"3,984.00",CRNH Ltd T/A St Judes Nursing Home,14297,Peoples Services Directorate,Nursing Care - Ext Provider,G311,,
http://opendatacommunities.org/id/london-borough-council/sutton,London Borough of Sutton,26/01/2018,40154304,"3,700.00",CRNH Ltd T/A St Judes Nursing Home,14297,Peoples Services Directorate,Nursing Care - Ext Provider,G311,,
http://opendatacommunities.org/id/london-borough-council/sutton,London Borough of Sutton,26/01/2018,40154494,"3,400.00",CRNH Ltd T/A St Judes Nursing Home,14297,Peoples Services Directorate,Nursing Care - Ext Provider,G311,,
http://opendatacommunities.org/id/london-borough-council/sutton,London Borough of Sutton,26/01/2018,40154495,"3,799.04",CRNH Ltd T/A St Judes Nursing Home,14297,Peoples Services Directorate,Nursing Care - Ext Provider,G311,,
http://opendatacommunities.org/id/london-borough-council/sutton,London Borough of Sutton,26/01/2018,40154547,"2,556.52",CRNH Ltd T/A St Judes Nursing Home,14297,Peoples Services Directorate,Nursing Care - Ext Provider,G311,,
http://opendatacommunities.org/id/london-borough-council/sutton,London Borough of Sutton,12/12/2017,40146739,"3,209.43",Croham Services for Children Limited,20855,Peoples Services Directorate,Foster Parents,G326,,
